Workbook

Sheet TCRP Project G-17
A1: TCRP Project G-17
A3: TCRP Research Report 247: Assessing Lifecycle and Human Costs of Bus Operator Workstation Design and Components
A5: The Transit Cooperative Research Program (TCRP) is sponsored by the Federal Transit Administration in cooperation with the American Public Transportation Association. TCRP is administered by the Transportation Research Board (TRB), part of the National Academies of Sciences, Engineering, and Medicine. Any opinions and conclusions expressed or implied in resulting research products are those of the individuals and organizations who performed the research and are not necessarily those of TRB; the National Academies of Sciences, Engineering, and Medicine; or TCRP sponsors.
A7: Any software included is offered as is, without warranty or promise of support of any kind either expressed or implied. Under no circumstance will the National Academy of Sciences or the Transportation Research Board (collectively "TRB") be liable for any loss or damage caused by the installation or operation of this product. TRB makes no representation or warranty of any kind, expressed or implied, in fact or in law, including without limitation, the warranty of merchantability or the warranty of fitness for a particular purpose, and shall not in any case be liable for any consequential or special damages.

Sheet Background and Instructions
B2: Bus Package Assessment Tool
B3: Version 1.0, updated April 2023
B4: Overview
B5: This tool estimates what percentage of a bus driver population is "accommodated" by a candidate bus workstation design. Specifically, the interaction of virtual drivers with the workstation is simulated and four criteria are considered: 1- Is there at least 14 degrees of "up vision"? 2- Is the driver able to see a location 42" above the ground and 24" in front of the bus? 3- Is the driver able to adjust their seat to their preferred location? 4- Is the driver able to adjust the steering wheel to their preferred location? This is a true multivariate analysis: While each of the criteria is consdered and reported individually (univariate analysis), they are also considered in aggregate. In other words, if a driver fails any of the individual assessments, they are considered disaccommodated for the entire package. Drivers that are simultaneously able to achieve all of these objectives are considered accommodated.
B6: Use
B7: To use the tool a number of input variables are required. These describe both the vehicle and the target user population. All of the calculations are performed in 2D (i.e., along a plane that passes through the middle of the driver seat)--the width of the user and vehicle is not considered. The vehicle parameters include: Seat Track (Seat Adjustment Envelope), Steering Wheel Adjustment Envelope, Roof, Dashboard, Accelerator Heel Point, Upper Day Light Opening, and a seat recline angle. These are illustrated in the figure that is generated during analysis and additional details are in the tech report. The population is defined by the fraction of the user population that will be male and female. It is recommended that this be kept in parity (50:50) to ensure that one group is not disproportionately disaccommodated. The plot is updated with each change of input to show its effect. Each dot represents and individual and their estimated knee, hip, shoulder, elbow, eye, and hand location. The preferred steering wheel and seat locations are calculated from this figure. A Rapid Upper Limb Assessment (RULA) can also be performed for a reach to a specific locaiton in the cab. This calculation is independent of the multivariate accommodation calculation and follows the convention for RULA reporting.
B8: Background
B9: The virtual population is an estimate of the SAE Class B driving population. The body dimensions (anthropometry) for 500 men and 500 women define the 1000 individuals and the interaction of each is predicted. The calculations are based on the Cascading Posture Prediction model created at the University of Michigan Transportation Research Institute (UMTRI). That model is described in XXX and the full details of the implementation are described in the NAE report that accompanies this spreadsheet.

Sheet Input & Output
B3: Model Inputs | E3: Accommodation Rates & RULA | AA3: Calculations for Plot
B4: Male & Female Ratio | E4: Male | AA4: Bus Geometry | AC4: H Point | AE4: SW Range | AG4: Average Male | AI4: Average Female | AK4: Stick
B5: Male | C5: 0.8 | E5: Up Vision | F5: Down Vision | G5: H point | H5: SW | I5: Total | J5: RULA | AA5: =C39-C31+1200 -> 1050 | AB5: =C40-C32 -> 1550 | AC5: =C20 -> 475 | AD5: =C22 -> 400 | AE5: =C24+C27*SIN(C29/180*3.14) -> 114.0098084 | AF5: =C25+C27*COS(C29/180*3.14) -> 758.4321109 | AG5: 32 | AH5: 128 | AI5: 32 | AJ5: 128 | AK5: =C37-610 -> -1060 | AL5: =-C32+1067 -> 217
B6: Female | C6: =1-C5 -> 0.2 | E6: =SUM('Male Accommodation'!A2:A501)/500 ->  | F6: =SUM('Male Accommodation'!B2:B501)/500 ->  | G6: =SUM('Male Accommodation'!C2:C501)/500 ->  | H6: =SUM('Male Accommodation'!D2:D501)/500 ->  | I6: =SUM('Male Accommodation'!E2:E501)/500 ->  | J6: =AVERAGE('Male Accommodation'!F2:'Male Accommodation'!F501) ->  | AA6: =C39-C31 -> -150 | AB6: =AB5 -> 1550 | AC6: =C21 -> 700 | AD6: =C22 -> 400 | AE6: =C24 -> 20 | AF6: =C25 -> 500 | AG6: =AVERAGE('Male Posturing'!T2:'Male Posturing'!T501) ->  | AH6: =AVERAGE('Male Posturing'!U2:'Male Posturing'!U501) ->  | AI6: =AVERAGE('Female Posturing'!T2:'Female Posturing'!T501) ->  | AJ6: =AVERAGE('Female Posturing'!U2:'Female Posturing'!U501) ->  | AK6: =AK5 -> -1060 | AL6: =-C32 -> -850
AA7: =C33-C31 -> -250 | AB7: =C34-C32 -> 550 | AC7: =C21 -> 700 | AD7: =C23 -> 550 | AE7: =C24+C27*SIN(C30/180*3.14) -> 230.583999 | AF7: =C25+C27*COS(C30/180*3.14) -> 676.8597731 | AG7: =AVERAGE('Male Posturing'!I2:'Male Posturing'!I501) ->  | AH7: =AVERAGE('Male Posturing'!J2:'Male Posturing'!J501) ->  | AI7: =AVERAGE('Female Posturing'!I2:'Female Posturing'!I501) ->  | AJ7: =AVERAGE('Female Posturing'!J2:'Female Posturing'!J501) -> 
B8: Seat Parameters | E8: Female | AA8: =C35-C31 -> -60 | AB8: =C36-C32 -> 700 | AC8: =C20 -> 475 | AD8: =C23 -> 550 | AE8: =C24+C28*SIN(C30/180*3.14) -> 326.3039986 | AF8: =C25+C28*COS(C30/180*3.14) -> 757.2505791 | AG8: =AVERAGE('Male Posturing'!M2:'Male Posturing'!M501) ->  | AH8: =AVERAGE('Male Posturing'!N2:'Male Posturing'!N501) ->  | AI8: =AVERAGE('Female Posturing'!M2:'Female Posturing'!M501) ->  | AJ8: =AVERAGE('Female Posturing'!N2:'Female Posturing'!N501) -> 
B9: Recline (deg) | C9: 10 | E9: Up Vision | F9: Down Vision | G9: H point | H9: SW | I9: Total | J9: RULA | AA9: =AA7 -> -250 | AB9: =AB7 -> 550 | AC9: =C20 -> 475 | AD9: =C22 -> 400 | AE9: =C24+C28*SIN((C30-0.1*(C30-C29))/180*3.14) -> 312.4280091 | AF9: =C25+C28*COS((C30-0.1*(C30-C29))/180*3.14) -> 772.9209766 | AG9: =AVERAGE('Male Posturing'!O2:'Male Posturing'!O501) ->  | AH9: =AVERAGE('Male Posturing'!P2:'Male Posturing'!P501) ->  | AI9: =AVERAGE('Female Posturing'!O2:'Female Posturing'!O501) ->  | AJ9: =AVERAGE('Female Posturing'!P2:'Female Posturing'!P501) -> 
B10: Note: forward = positive | E10: =SUM('Female Accommodation'!A2:A501)/500 ->  | F10: =SUM('Female Accommodation'!B2:B501)/500 ->  | G10: =SUM('Female Accommodation'!C2:C501)/500 ->  | H10: =SUM('Female Accommodation'!D2:D501)/500 ->  | I10: =SUM('Female Accommodation'!E2:E501)/500 ->  | J10: =AVERAGE('Female Accommodation'!F2:'Female Accommodation'!F501) ->  | AA10: =AA9 -> -250 | AB10: =C38-C32 -> -200 | AE10: =C24+C28*SIN((C30-0.2*(C30-C29))/180*3.14) -> 297.7513071 | AF10: =C25+C28*COS((C30-0.2*(C30-C29))/180*3.14) -> 787.8440748 | AG10: =AVERAGE('Male Posturing'!Q2:'Male Posturing'!Q501) ->  | AH10: =AVERAGE('Male Posturing'!R2:'Male Posturing'!R501) ->  | AI10: =AVERAGE('Female Posturing'!Q2:'Female Posturing'!Q501) ->  | AJ10: =AVERAGE('Female Posturing'!R2:'Female Posturing'!R501) -> 
AA11: =C37-C31 -> -450 | AB11: =AB10 -> -200 | AE11: =C24+C28*SIN((C30-0.3*(C30-C29))/180*3.14) -> 282.3140796 | AF11: =C25+C28*COS((C30-0.3*(C30-C29))/180*3.14) -> 801.9790119 | AG11: =AVERAGE('Male Posturing'!E2:'Male Posturing'!E501) ->  | AH11: =AVERAGE('Male Posturing'!F2:'Male Posturing'!F501) ->  | AI11: =AVERAGE('Female Posturing'!E2:'Female Posturing'!E501) ->  | AJ11: =AVERAGE('Female Posturing'!F2:'Female Posturing'!F501) -> 
B12: Reach target (i.e., button) | E12: Male & Female | AA12: =AA9 -> -250 | AB12: =AB10 -> -200 | AE12: =C24+C28*SIN((C30-0.4*(C30-C29))/180*3.14) -> 266.1585961 | AF12: =C25+C28*COS((C30-0.4*(C30-C29))/180*3.14) -> 815.2870844
B13: x | C13: 150 | E13: Up Vision | F13: Down Vision | G13: H point | H13: SW | I13: Total | J13: RULA | AA13: =AA9 -> -250 | AB13: =-C32+400 -> -450 | AE13: =C24+C28*SIN((C30-0.5*(C30-C29))/180*3.14) -> 249.3290927 | AF13: =C25+C28*COS((C30-0.5*(C30-C29))/180*3.14) -> 827.7318527
B14: y | C14: 300 | E14: =E6*$C$5+E10*$C$6 ->  | F14: =F6*$C$5+F10*$C$6 ->  | G14: =G6*$C$5+G10*$C$6 ->  | H14: =H6*$C$5+H10*$C$6 ->  | I14: =I6*$C$5+I10*$C$6 ->  | J14: =J6*C5+J10*C6 ->  | AA14: =AA9+500 -> 250 | AB14: =AB13 -> -450 | AE14: =C24+C28*SIN((C30-0.6*(C30-C29))/180*3.14) -> 231.8716512 | AF14: =C25+C28*COS((C30-0.6*(C30-C29))/180*3.14) -> 839.2792411
B15: z | C15: 1100 | AE15: =C24+C28*SIN((C30-0.7*(C30-C29))/180*3.14) -> 213.8340728 | AF15: =C25+C28*COS((C30-0.7*(C30-C29))/180*3.14) -> 849.8976311
B16: Force (lbs) | C16: 2 | AE16: =C24+C28*SIN((C30-0.8*(C30-C29))/180*3.14) -> 195.2657471 | AF16: =C25+C28*COS((C30-0.8*(C30-C29))/180*3.14) -> 859.5579479
AE17: =C24+C28*SIN((C30-0.9*(C30-C29))/180*3.14) -> 176.217517 | AF17: =C25+C28*COS((C30-0.9*(C30-C29))/180*3.14) -> 868.2337402
AE18: =C24+C28*SIN(C29/180*3.14) -> 156.7415394 | AF18: =C25+C28*COS(C29/180*3.14) -> 875.9012522
B19: Bus Geometry (mm) | E19: Acronym Definitions | AE19: =C24+C27*SIN(C29/180*3.14) -> 114.0098084 | AF19: =C25+C27*COS(C29/180*3.14) -> 758.4321109
B20: ST_X1 | C20: 475 | E20: ST | F20: Seat Track (Seat Adjustment Envelope) | AE20: =C24+C27*SIN((C29+0.1*(C30-C29))/180*3.14) -> 127.3995429 | AF20: =C25+C27*COS((C29+0.1*(C30-C29))/180*3.14) -> 753.1606964
B21: ST_X2 | C21: 700 | E21: SW | F21: Steering Wheel Adjustment Envelope | AE21: =C24+C27*SIN((C29+0.2*(C30-C29))/180*3.14) -> 140.4952011 | AF21: =C25+C27*COS((C29+0.2*(C30-C29))/180*3.14) -> 747.1960892
B22: ST_Z1 | C22: 400 | E22: Rf | F22: Roof | AE22: =C24+C27*SIN((C29+0.3*(C30-C29))/180*3.14) -> 153.260925 | AF22: =C25+C27*COS((C29+0.3*(C30-C29))/180*3.14) -> 740.5546214
B23: ST_Z2 | C23: 550 | E23: Db | F23: Dashboard | AE23: =C24+C27*SIN((C29+0.4*(C30-C29))/180*3.14) -> 165.6617602 | AF23: =C25+C27*COS((C29+0.4*(C30-C29))/180*3.14) -> 733.2544782
B24: SW_Pivot_X | C24: 20 | E24: AHP | F24: Accelerator Heel Point | AE24: =C24+C27*SIN((C29+0.5*(C30-C29))/180*3.14) -> 177.6637512 | AF24: =C25+C27*COS((C29+0.5*(C30-C29))/180*3.14) -> 725.3156487
B25: SW_Pivot_Z | C25: 500 | E25: UDLO | F25: Upper Day Light Opening | AE25: =C24+C27*SIN((C29+0.6*(C30-C29))/180*3.14) -> 189.2340348 | AF25: =C25+C27*COS((C29+0.6*(C30-C29))/180*3.14) -> 716.7598705
B26: SW_Diameter | C26: 450 | AE26: =C24+C27*SIN((C29+0.7*(C30-C29))/180*3.14) -> 200.3409297 | AF26: =C25+C27*COS((C29+0.7*(C30-C29))/180*3.14) -> 707.6105707
B27: SW_Telescop_min | C27: 275 | AE27: =C24+C27*SIN((C29+0.8*(C30-C29))/180*3.14) -> 210.9540236 | AF27: =C25+C27*COS((C29+0.8*(C30-C29))/180*3.14) -> 697.8928014
B28: SW_Telescop_max | C28: 400 | AE28: =C24+C27*SIN((C29+0.9*(C30-C29))/180*3.14) -> 221.0442563 | AF28: =C25+C27*COS((C29+0.9*(C30-C29))/180*3.14) -> 687.6331714
B29: SW_Angle_min | C29: 20 | AE29: =C24+C27*SIN(C30/180*3.14) -> 230.583999 | AF29: =C25+C27*COS(C30/180*3.14) -> 676.8597731
B30: SW_Angle_max | C30: 50
B31: AHP_X | C31: 0
B32: AHP_Z | C32: 850
B33: Cowl_X | C33: -250
B34: Cowl_Z | C34: 1400
B35: Db_X | C35: -60
B36: Db_Z | C36: 1550
B37: Bumper_X | C37: -450
B38: Bumper_Z | C38: 650
B39: UDLO_X | C39: -150
B40: UDLO_Z | C40: 2400

Sheet Male Population (hidden)
A1: Stature | B1: ErectSittingHeight | C1: BMI | D1: SteeringWheelAngleRandom | E1: SteeringWheelPrefHeightRandom | F1: UpperLeg | G1: LowerLeg | H1: UpperArm | I1: ForeArm | J1: HandLength | K1: LowerArm | L1: ErrectSitting/Stature | M1: Stature-ErectSitting
A2: 1740.048081 | B2: 931.0792404 | C2: 23.17911466 | D2: 10.78189925 | E2: 1.841497441 | F2: =A2*0.257 -> 447.1923568 | G2: =A2*0.247 -> 429.791876 | H2: =A2*0.162 -> 281.8877891 | I2: =A2*0.147 -> 255.7870679 | J2: =A2*0.046 -> 80.04221173 | K2: =I2+J2 -> 335.8292796 | L2: =B2/A2 -> 0.5350882258 | M2: =A2-B2 -> 808.9688406
A3: 1675.276524 | B3: 863.4248443 | C3: 22.85460247 | D3: -7.590087489 | E3: 24.13954837 | F3: =A3*0.257 -> 430.5460667 | G3: =A3*0.247 -> 413.7933014 | H3: =A3*0.162 -> 271.3947969 | I3: =A3*0.147 -> 246.265649 | J3: =A3*0.046 -> 77.0627201 | K3: =I3+J3 -> 323.3283691 | L3: =B3/A3 -> 0.5153924334 | M3: =A3-B3 -> 811.8516797
A4: 1665.620747 | B4: 902.1250609 | C4: 29.95783388 | D4: -9.617128841 | E4: 5.108996647 | F4: 428.064532 | G4: 411.4083245 | H4: 269.830561 | I4: 244.8462498 | J4: 76.61855436 | K4: 321.4648042 | L4: 0.541614928 | M4: 763.4956861
A5: 1683.010875 | B5: 860.6577947 | C5: 23.34660553 | D5: -2.63437491 | E5: -10.17829497 | F5: 432.5337949 | G5: 415.7036861 | H5: 272.6477617 | I5: 247.4025986 | J5: 77.41850025 | K5: 324.8210989 | L5: 0.5113798179 | M5: 822.3530803
A6: 1833.049054 | B6: 936.754517 | C6: 24.50806288 | D6: -9.163286833 | E6: 32.71918912 | F6: 471.0936069 | G6: 452.7631163 | H6: 296.9539467 | I6: 269.4582109 | J6: 84.32025648 | K6: 353.7784674 | L6: 0.5110362513 | M6: 896.294537
A7: 1804.46188 | B7: 907.9743398 | C7: 25.83689496 | D7: -7.572963311 | E7: 11.72593878 | F7: 463.7467032 | G7: 445.7020844 | H7: 292.3228246 | I7: 265.2558964 | J7: 83.00524648 | K7: 348.2611428 | L7: 0.5031828879 | M7: 896.4875402
A8: 1719.061391 | B8: 894.3902833 | C8: 23.3384001 | D8: -4.075235726 | E8: -14.29027702 | F8: 441.7987775 | G8: 424.6081636 | H8: 278.4879453 | I8: 252.7020245 | J8: 79.07682399 | K8: 331.7788485 | L8: 0.5202782681 | M8: 824.6711077
A9: 1834.59518 | B9: 938.989725 | C9: 25.93409488 | D9: -21.22836812 | E9: -13.18829205 | F9: 471.4909613 | G9: 453.1450095 | H9: 297.2044192 | I9: 269.6854915 | J9: 84.39137828 | K9: 354.0768697 | L9: 0.5118239355 | M9: 895.605455
A10: 1653.246303 | B10: 856.8915744 | C10: 26.30145377 | D10: -1.07109305 | E10: -48.56993396 | F10: 424.8842999 | G10: 408.3518368 | H10: 267.8259011 | I10: 243.0272065 | J10: 76.04932994 | K10: 319.0765365 | L10: 0.5183084776 | M10: 796.3547286
A11: 1782.44709 | B11: 921.1856397 | C11: 23.1059741 | D11: 5.387447608 | E11: -19.3656457 | F11: 458.0889021 | G11: 440.2644312 | H11: 288.7564286 | I11: 262.0197222 | J11: 81.99256614 | K11: 344.0122884 | L11: 0.5168095282 | M11: 861.2614503
A12: 1842.92738 | B12: 946.432043 | C12: 26.52584152 | D12: -10.88176781 | E12: 5.12911714 | F12: 473.6323367 | G12: 455.2030629 | H12: 298.5542356 | I12: 270.9103249 | J12: 84.77465948 | K12: 355.6849843 | L12: 0.5135482023 | M12: 896.495337
A13: 1762.915847 | B13: 919.8926793 | C13: 25.6040914 | D13: 6.878688675 | E13: 28.82148929 | F13: 453.0693727 | G13: 435.4402142 | H13: 285.5923672 | I13: 259.1486295 | J13: 81.09412896 | K13: 340.2427585 | L13: 0.5218018097 | M13: 843.0231677
A14: 1643.924268 | B14: 845.564475 | C14: 24.81447769 | D14: -3.1930681 | E14: -12.19594564 | F14: 422.4885369 | G14: 406.0492942 | H14: 266.3157314 | I14: 241.6568674 | J14: 75.62051633 | K14: 317.2773837 | L14: 0.5143573165 | M14: 798.359793
A15: 1711.765291 | B15: 881.669771 | C15: 18.60882389 | D15: -4.049574439 | E15: 11.61010531 | F15: 439.9236798 | G15: 422.8060269 | H15: 277.3059771 | I15: 251.6294978 | J15: 78.74120339 | K15: 330.3707012 | L15: 0.5150646386 | M15: 830.09552
A16: 1839.137476 | B16: 957.0364326 | C16: 21.6027269 | D16: 4.254874071 | E16: -47.46973921 | F16: 472.6583313 | G16: 454.2669566 | H16: 297.9402711 | I16: 270.353209 | J16: 84.6003239 | K16: 354.9535329 | L16: 0.5203724273 | M16: 882.1010434
A17: 1817.61363 | B17: 955.5033362 | C17: 29.10243004 | D17: -1.761248149 | E17: -6.354147501 | F17: 467.1267029 | G17: 448.9505666 | H17: 294.4534081 | I17: 267.1892036 | J17: 83.61022698 | K17: 350.7994306 | L17: 0.5256911152 | M17: 862.1102938
A18: 1869.473819 | B18: 994.5674048 | C18: 26.52590615 | D18: -4.918949589 | E18: -33.60249018 | F18: 480.4547715 | G18: 461.7600333 | H18: 302.8547587 | I18: 274.8126514 | J18: 85.99579567 | K18: 360.8084471 | L18: 0.5320039225 | M18: 874.9064142
A19: 1899.789957 | B19: 961.1500392 | C19: 21.3735433 | D19: -0.572996885 | E19: 22.07390226 | F19: 488.2460189 | G19: 469.2481194 | H19: 307.765973 | I19: 279.2691237 | J19: 87.39033802 | K19: 366.6594617 | L19: 0.5059243711 | M19: 938.6399178
A20: 1739.136272 | B20: 912.7178507 | C20: 31.28401777 | D20: 0.92078509 | E20: 37.39386156 | F20: 446.9580219 | G20: 429.5666592 | H20: 281.7400761 | I20: 255.653032 | J20: 80.00026851 | K20: 335.6533005 | L20: 0.5248110027 | M20: 826.4184213
A21: 1765.368501 | B21: 879.8754352 | C21: 20.34326274 | D21: -13.72407053 | E21: 3.690624921 | F21: 453.6997048 | G21: 436.0460197 | H21: 285.9896972 | I21: 259.5091696 | J21: 81.20695105 | K21: 340.7161207 | L21: 0.4984089354 | M21: 885.4930658
A22: 1747.245898 | B22: 897.9137519 | C22: 27.87092285 | D22: -2.683811903 | E22: 25.78581431 | F22: 449.0421958 | G22: 431.5697368 | H22: 283.0538355 | I22: 256.845147 | J22: 80.37331131 | K22: 337.2184583 | L22: 0.5139023379 | M22: 849.3321461
A23: 1680.624911 | B23: 863.0998959 | C23: 25.84027553 | D23: 5.813974594 | E23: 19.34178633 | F23: 431.9206021 | G23: 415.114353 | H23: 272.2612356 | I23: 247.0518619 | J23: 77.30874591 | K23: 324.3606078 | L23: 0.5135589091 | M23: 817.5250151
A24: 1649.664771 | B24: 874.2155318 | C24: 28.01357219 | D24: -2.211177426 | E24: 19.52737405 | F24: 423.9638461 | G24: 407.4671984 | H24: 267.2456929 | I24: 242.5007213 | J24: 75.88457947 | K24: 318.3853008 | L24: 0.5299352615 | M24: 775.4492392
A25: 1635.149727 | B25: 860.7772083 | C25: 23.19652156 | D25: -5.420891769 | E25: -18.28758402 | F25: 420.2334798 | G25: 403.8819826 | H25: 264.8942558 | I25: 240.3670099 | J25: 75.21688744 | K25: 315.5838973 | L25: 0.5264210329 | M25: 774.3725187
A26: 1829.507481 | B26: 973.2402393 | C26: 22.73776917 | D26: 9.861310096 | E26: 11.15103675 | F26: 470.1834226 | G26: 451.8883478 | H26: 296.3802119 | I26: 268.9375997 | J26: 84.15734413 | K26: 353.0949438 | L26: 0.5319684393 | M26: 856.2672417
A27: 1743.16042 | B27: 913.6987455 | C27: 31.69560889 | D27: -2.308265175 | E27: -3.207987867 | F27: 447.9922279 | G27: 430.5606237 | H27: 282.391988 | I27: 256.2445817 | J27: 80.18537932 | K27: 336.4299611 | L27: 0.5241621683 | M27: 829.4616745
A28: 1679.748542 | B28: 840.5247692 | C28: 30.68550249 | D28: -14.60911248 | E28: -12.34351864 | F28: 431.6953753 | G28: 414.8978899 | H28: 272.1192638 | I28: 246.9230357 | J28: 77.26843293 | K28: 324.1914686 | L28: 0.5003872593 | M28: 839.2237728
A29: 1804.507133 | B29: 939.3630776 | C29: 23.85919497 | D29: 1.024651665 | E29: -16.01959427 | F29: 463.7583332 | G29: 445.7132619 | H29: 292.3301555 | I29: 265.2625486 | J29: 83.00732812 | K29: 348.2698767 | L29: 0.5205649013 | M29: 865.1440554
A30: 1679.592739 | B30: 872.2422708 | C30: 24.12953487 | D30: 5.697178657 | E30: -4.016515846 | F30: 431.6553339 | G30: 414.8594065 | H30: 272.0940237 | I30: 246.9001326 | J30: 77.26126599 | K30: 324.1613986 | L30: 0.5193177194 | M30: 807.3504682
A31: 1859.696917 | B31: 965.3616028 | C31: 29.46325689 | D31: 10.34554744 | E31: -0.72784456 | F31: 477.9421077 | G31: 459.3451385 | H31: 301.2709006 | I31: 273.3754468 | J31: 85.54605818 | K31: 358.921505 | L31: 0.5190962 | M31: 894.3353142
A32: 1905.835183 | B32: 937.9751505 | C32: 22.78793433 | D32: 1.093650234 | E32: 8.520037349 | F32: 489.799642 | G32: 470.7412902 | H32: 308.7452996 | I32: 280.1577719 | J32: 87.66841842 | K32: 367.8261903 | L32: 0.4921596363 | M32: 967.8600325
A33: 1603.685581 | B33: 841.5163638 | C33: 25.40356723 | D33: -5.875472694 | E33: -31.84009688 | F33: 412.1471943 | G33: 396.1103385 | H33: 259.7970641 | I33: 235.7417804 | J33: 73.76953673 | K33: 309.5113171 | L33: 0.5247389973 | M33: 762.1692172
A34: 1768.639484 | B34: 914.4602364 | C34: 20.80682849 | D34: -11.47904313 | E34: 0.570428052 | F34: 454.5403474 | G34: 436.8539525 | H34: 286.5195964 | I34: 259.9900041 | J34: 81.35741626 | K34: 341.3474204 | L34: 0.517041627 | M34: 854.1792476
A35: 1805.385987 | B35: 895.9991451 | C35: 23.6137785 | D35: 7.428222979 | E35: 7.972860367 | F35: 463.9841987 | G35: 445.9303388 | H35: 292.4725299 | I35: 265.3917401 | J35: 83.0477554 | K35: 348.4394955 | L35: 0.4962922896 | M35: 909.3868419
A36: 1754.088588 | B36: 930.9319688 | C36: 28.36698558 | D36: 1.868088597 | E36: 2.401448878 | F36: 450.8007671 | G36: 433.2598812 | H36: 284.1623513 | I36: 257.8510224 | J36: 80.68807505 | K36: 338.5390975 | L36: 0.530721182 | M36: 823.1566192
A37: 1774.704443 | B37: 949.2281353 | C37: 30.62509726 | D37: 11.18284245 | E37: 26.08189644 | F37: 456.0990419 | G37: 438.3519974 | H37: 287.5021198 | I37: 260.8815531 | J37: 81.63640438 | K37: 342.5179575 | L37: 0.5348654752 | M37: 825.4763077
A38: 1727.847423 | B38: 930.9032035 | C38: 25.61117755 | D38: -1.578276078 | E38: 7.727966601 | F38: 444.0567877 | G38: 426.7783135 | H38: 279.9112825 | I38: 253.9935712 | J38: 79.48098146 | K38: 333.4745526 | L38: 0.5387647029 | M38: 796.9442195
A39: 1767.048096 | B39: 886.0427502 | C39: 23.72710169 | D39: -3.283705914 | E39: 15.56002931 | F39: 454.1313607 | G39: 436.4608797 | H39: 286.2617916 | I39: 259.7560701 | J39: 81.28421242 | K39: 341.0402825 | L39: 0.5014253727 | M39: 881.0053458
A40: 1824.389185 | B40: 921.899115 | C40: 25.81703166 | D40: 2.419207695 | E40: -18.25143408 | F40: 468.8680205 | G40: 450.6241287 | H40: 295.551048 | I40: 268.1852102 | J40: 83.92190251 | K40: 352.1071127 | L40: 0.5053193269 | M40: 902.49007
A41: 1861.640208 | B41: 974.7738907 | C41: 21.68007254 | D41: -1.175173819 | E41: 43.0285235 | F41: 478.4415335 | G41: 459.8251314 | H41: 301.5857137 | I41: 273.6611106 | J41: 85.63544957 | K41: 359.2965601 | L41: 0.5236102478 | M41: 886.8663173
A42: 1791.214189 | B42: 900.3769747 | C42: 23.21739442 | D42: -8.754770488 | E42: -14.21412342 | F42: 460.3420466 | G42: 442.4299047 | H42: 290.1766986 | I42: 263.3084858 | J42: 82.39585269 | K42: 345.7043385 | L42: 0.5026629312 | M42: 890.8372143
A43: 1741.12225 | B43: 903.9578605 | C43: 23.83573664 | D43: 9.669968914 | E43: -22.29472641 | F43: 447.4684182 | G43: 430.0571957 | H43: 282.0618045 | I43: 255.9449707 | J43: 80.0916235 | K43: 336.0365943 | L43: 0.5191811549 | M43: 837.1643895
A44: 1731.290477 | B44: 930.9237973 | C44: 22.91469485 | D44: -0.647864798 | E44: 0.185189213 | F44: 444.9416526 | G44: 427.6287478 | H44: 280.4690573 | I44: 254.4997001 | J44: 79.63936194 | K44: 334.1390621 | L44: 0.5377051452 | M44: 800.3666797
A45: 1617.111619 | B45: 849.2108345 | C45: 27.59614659 | D45: -0.54599564 | E45: 13.17249793 | F45: 415.5976861 | G45: 399.4265699 | H45: 261.9720823 | I45: 237.715408 | J45: 74.38713447 | K45: 312.1025425 | L45: 0.5251405188 | M45: 767.9007845
A46: 1717.42341 | B46: 882.7178968 | C46: 26.03371734 | D46: 1.741940318 | E46: 1.956598131 | F46: 441.3778164 | G46: 424.2035823 | H46: 278.2225924 | I46: 252.4612413 | J46: 79.00147686 | K46: 331.4627181 | L46: 0.5139780276 | M46: 834.7055132
A47: 1679.861075 | B47: 872.6539677 | C47: 23.13859769 | D47: 5.063863282 | E47: 14.13954241 | F47: 431.7242963 | G47: 414.9256855 | H47: 272.1374942 | I47: 246.939578 | J47: 77.27360945 | K47: 324.2131875 | L47: 0.5194798431 | M47: 807.2071073
A48: 1749.25922 | B48: 844.0600904 | C48: 26.8877028 | D48: 1.330781197 | E48: 36.63300031 | F48: 449.5596195 | G48: 432.0670273 | H48: 283.3799936 | I48: 257.1411053 | J48: 80.46592412 | K48: 337.6070295 | L48: 0.4825243056 | M48: 905.1991296
A49: 1858.752981 | B49: 998.1173551 | C49: 20.5718699 | D49: -6.271047111 | E49: 2.759646292 | F49: 477.6995161 | G49: 459.1119863 | H49: 301.1179829 | I49: 273.2366882 | J49: 85.50263713 | K49: 358.7393253 | L49: 0.5369822485 | M49: 860.6356259
A50: 1793.768588 | B50: 906.8909638 | C50: 28.9503466 | D50: 5.012961992 | E50: 22.34935277 | F50: 460.9985271 | G50: 443.0608412 | H50: 290.5905113 | I50: 263.6839824 | J50: 82.51335505 | K50: 346.1973375 | L50: 0.5055785734 | M50: 886.8776242
A51: 1726.962111 | B51: 930.8054805 | C51: 27.94492874 | D51: 12.81956579 | E51: -17.73983884 | F51: 443.8292625 | G51: 426.5596414 | H51: 279.767862 | I51: 253.8634303 | J51: 79.44025711 | K51: 333.3036874 | L51: 0.5389843093 | M51: 796.1566305
A52: 1732.847253 | B52: 890.0264442 | C52: 25.77103446 | D52: 1.837030864 | E52: -33.78131223 | F52: 445.341744 | G52: 428.0132715 | H52: 280.721255 | I52: 254.7285462 | J52: 79.71097364 | K52: 334.4395198 | L52: 0.5136208299 | M52: 842.8208088
A53: 1836.297872 | B53: 968.3684262 | C53: 27.42335219 | D53: 11.62713972 | E53: -14.92550315 | F53: 471.9285531 | G53: 453.5655744 | H53: 297.4802553 | I53: 269.9357872 | J53: 84.46970211 | K53: 354.4054893 | L53: 0.5273482265 | M53: 867.9294458
A54: 1687.993901 | B54: 915.7817145 | C54: 27.57166126 | D54: -2.634879227 | E54: 39.99821571 | F54: 433.8144326 | G54: 416.9344935 | H54: 273.455012 | I54: 248.1351034 | J54: 77.64771945 | K54: 325.7828229 | L54: 0.5425266726 | M54: 772.2121865
A55: 1774.837372 | B55: 961.6807935 | C55: 24.45472491 | D55: -2.752645995 | E55: 30.29234397 | F55: 456.1332046 | G55: 438.3848309 | H55: 287.5236543 | I55: 260.9010937 | J55: 81.64251911 | K55: 342.5436128 | L55: 0.5418416406 | M55: 813.1565785
A56: 1711.323027 | B56: 910.2702415 | C56: 24.00677043 | D56: -8.693171116 | E56: -6.828462012 | F56: 439.8100179 | G56: 422.6967877 | H56: 277.2343304 | I56: 251.564485 | J56: 78.72085924 | K56: 330.2853442 | L56: 0.5319102397 | M56: 801.0527855
A57: 1857.38793 | B57: 973.9442091 | C57: 24.8662597 | D57: 6.627024405 | E57: 29.05609786 | F57: 477.348698 | G57: 458.7748187 | H57: 300.8968447 | I57: 273.0360257 | J57: 85.43984478 | K57: 358.4758705 | L57: 0.5243623011 | M57: 883.4437209
A58: 1684.09967 | B58: 901.7133987 | C58: 28.07433395 | D58: -1.545840435 | E58: 1.306194225 | F58: 432.8136152 | G58: 415.9726185 | H58: 272.8241465 | I58: 247.5626515 | J58: 77.46858482 | K58: 325.0312363 | L58: 0.5354275728 | M58: 782.3862713
A59: 1711.199751 | B59: 941.159002 | C59: 24.657366 | D59: 14.05413402 | E59: -15.81364437 | F59: 439.778336 | G59: 422.6663385 | H59: 277.2143597 | I59: 251.5463634 | J59: 78.71518855 | K59: 330.2615519 | L59: 0.5499994968 | M59: 770.040749
A60: 1792.069459 | B60: 923.3631924 | C60: 22.67813805 | D60: 4.148808119 | E60: -0.045492003 | F60: 460.561851 | G60: 442.6411564 | H60: 290.3152524 | I60: 263.4342105 | J60: 82.43519511 | K60: 345.8694056 | L60: 0.5152496672 | M60: 868.7062666
A61: 1743.194918 | B61: 885.8026249 | C61: 27.34452547 | D61: -0.857529404 | E61: 41.19370252 | F61: 448.0010939 | G61: 430.5691447 | H61: 282.3975767 | I61: 256.2496529 | J61: 80.18696623 | K61: 336.4366192 | L61: 0.5081489257 | M61: 857.3922931
A62: 1744.207296 | B62: 916.6976481 | C62: 25.35649807 | D62: -11.56228906 | E62: -26.9888224 | F62: 448.2612751 | G62: 430.8192021 | H62: 282.561582 | I62: 256.3984725 | J62: 80.23353562 | K62: 336.6320081 | L62: 0.5255669152 | M62: 827.5096479
A63: 1755.008515 | B63: 933.1416932 | C63: 19.83699742 | D63: 9.985848123 | E63: -20.47108022 | F63: 451.0371884 | G63: 433.4871032 | H63: 284.3113794 | I63: 257.9862517 | J63: 80.73039169 | K63: 338.7166434 | L63: 0.5317020888 | M63: 821.8668218
A64: 1815.077192 | B64: 904.8814802 | C64: 22.90808055 | D64: -9.363768787 | E64: -19.96217733 | F64: 466.4748383 | G64: 448.3240664 | H64: 294.0425051 | I64: 266.8163472 | J64: 83.49355083 | K64: 350.3098981 | L64: 0.4985360866 | M64: 910.1957118
A65: 1625.204777 | B65: 851.2230699 | C65: 28.63617251 | D65: -4.614830136 | E65: -12.42326928 | F65: 417.6776277 | G65: 401.4255799 | H65: 263.2831739 | I65: 238.9051022 | J65: 74.75941974 | K65: 313.664522 | L65: 0.5237635786 | M65: 773.9817071
A66: 1668.398192 | B66: 858.2099539 | C66: 23.64784609 | D66: -14.14170079 | E66: -12.16109966 | F66: 428.7783353 | G66: 412.0943534 | H66: 270.2805071 | I66: 245.2545342 | J66: 76.74631683 | K66: 322.0008511 | L66: 0.5143915631 | M66: 810.1882381
A67: 1798.400237 | B67: 915.7305312 | C67: 23.22295373 | D67: -7.765009678 | E67: -12.06372136 | F67: =A67*0.257 -> 462.1888609 | G67: =A67*0.247 -> 444.2048585 | H67: =A67*0.162 -> 291.3408384 | I67: =A67*0.147 -> 264.3648348 | J67: =A67*0.046 -> 82.7264109 | K67: =I67+J67 -> 347.0912457 | L67: =B67/A67 -> 0.5091917318 | M67: =A67-B67 -> 882.6697058
A68: 1705.166463 | B68: 888.9095719 | C68: 27.41104848 | D68: 21.92773477 | E68: 31.79745698 | F68: 438.227781 | G68: 421.1761164 | H68: 276.236967 | I68: 250.6594701 | J68: 78.4376573 | K68: 329.0971274 | L68: 0.5213036916 | M68: 816.2568911
A69: 1708.309883 | B69: 961.4863681 | C69: 23.2421638 | D69: -12.00514189 | E69: 28.83060889 | F69: 439.0356399 | G69: 421.9525411 | H69: 276.746201 | I69: 251.1215528 | J69: 78.58225462 | K69: 329.7038074 | L69: 0.5628290146 | M69: 746.8235149
A70: 1707.691859 | B70: 900.7665531 | C70: 31.4030224 | D70: 17.54455368 | E70: 14.12708392 | F70: 438.8768078 | G70: 421.7998892 | H70: 276.6460812 | I70: 251.0307033 | J70: 78.55382551 | K70: 329.5845288 | L70: 0.5274760481 | M70: 806.9253059
A71: 1811.781435 | B71: 923.515715 | C71: 27.90559073 | D71: -2.64886815 | E71: -10.9293483 | F71: 465.6278288 | G71: 447.5100144 | H71: 293.5085925 | I71: 266.3318709 | J71: 83.34194601 | K71: 349.673817 | L71: 0.5097279932 | M71: 888.26572
A72: 1715.831186 | B72: 930.6867142 | C72: 25.12782538 | D72: 5.315280909 | E72: 8.901764588 | F72: 440.9686148 | G72: 423.8103029 | H72: 277.9646521 | I72: 252.2271843 | J72: 78.92823456 | K72: 331.1554189 | L72: 0.5424115856 | M72: 785.1444718
A73: 1699.208431 | B73: 899.5794872 | C73: 22.18559344 | D73: 1.889144283 | E73: -47.57354021 | F73: 436.6965668 | G73: 419.7044825 | H73: 275.2717658 | I73: 249.7836394 | J73: 78.16358783 | K73: 327.9472272 | L73: 0.5294109132 | M73: 799.6289438
A74: 1776.850564 | B74: 916.6213003 | C74: 23.93568818 | D74: -6.14253185 | E74: -8.39741698 | F74: 456.6505949 | G74: 438.8820893 | H74: 287.8497914 | I74: 261.1970329 | J74: 81.73512594 | K74: 342.9321589 | L74: 0.5158685367 | M74: 860.2292637
A75: 1733.349919 | B75: 898.5882105 | C75: 27.23846178 | D75: -0.222425053 | E75: -8.030021913 | F75: 445.4709292 | G75: 428.13743 | H75: 280.8026869 | I75: 254.8024381 | J75: 79.73409627 | K75: 334.5365344 | L75: 0.5184113148 | M75: 834.7617085
A76: 1824.799811 | B76: 979.4519597 | C76: 26.51217348 | D76: -3.972016909 | E76: -17.91098738 | F76: 468.9735514 | G76: 450.7255533 | H76: 295.6175694 | I76: 268.2455722 | J76: 83.94079131 | K76: 352.1863635 | L76: 0.5367448823 | M76: 845.3478513
A77: 1756.82368 | B77: 940.5510466 | C77: 29.3766821 | D77: -2.754996304 | E77: 25.49225833 | F77: 451.5036858 | G77: 433.935449 | H77: 284.6054362 | I77: 258.253081 | J77: 80.81388928 | K77: 339.0669702 | L77: 0.535370201 | M77: 816.2726334
A78: 1862.257477 | B78: 938.6502941 | C78: 26.97451419 | D78: -7.452676286 | E78: 15.43551938 | F78: 478.6001716 | G78: 459.9775968 | H78: 301.6857113 | I78: 273.7518491 | J78: 85.66384394 | K78: 359.4156931 | L78: 0.504038945 | M78: 923.6071829
A79: 1683.982019 | B79: 886.9171273 | C79: 25.26515096 | D79: 2.440677466 | E79: 38.93824997 | F79: 432.7833789 | G79: 415.9435587 | H79: 272.8050871 | I79: 247.5453568 | J79: 77.46317287 | K79: 325.0085297 | L79: 0.5266785021 | M79: 797.0648917
A80: 1702.908615 | B80: 880.2565692 | C80: 22.42302622 | D80: -11.2214712 | E80: -2.06047469 | F80: 437.6475141 | G80: 420.6184279 | H80: 275.8711956 | I80: 250.3275664 | J80: 78.33379629 | K80: 328.6613627 | L80: 0.5169135686 | M80: 822.6520458
A81: 1809.774114 | B81: 933.6545213 | C81: 23.01973984 | D81: 3.816336465 | E81: 13.573188 | F81: 465.1119473 | G81: 447.0142062 | H81: 293.1834065 | I81: 266.0367948 | J81: 83.24960924 | K81: 349.286404 | L81: 0.5158956104 | M81: 876.1195927
A82: 1789.88862 | B82: 904.6346742 | C82: 25.07651145 | D82: 10.92591177 | E82: -0.696172605 | F82: 460.0013753 | G82: 442.1024891 | H82: 289.9619564 | I82: 263.1136271 | J82: 82.33487652 | K82: 345.4485037 | L82: 0.5054139482 | M82: 885.2539458
A83: 1581.043103 | B83: 810.7035616 | C83: 28.06828889 | D83: 1.218039469 | E83: -20.37910534 | F83: 406.3280775 | G83: 390.5176464 | H83: 256.1289827 | I83: 232.4133361 | J83: 72.72798274 | K83: 305.1413189 | L83: 0.5127649968 | M83: 770.3395414
A84: 1728.816419 | B84: 890.2975345 | C84: 24.69180431 | D84: 2.123904565 | E84: -19.47989876 | F84: 444.3058197 | G84: 427.0176555 | H84: 280.0682599 | I84: 254.1360136 | J84: 79.52555527 | K84: 333.6615689 | L84: 0.514975173 | M84: 838.5188845
A85: 1819.270674 | B85: 972.6863466 | C85: 29.07328537 | D85: -1.275959187 | E85: -38.43337061 | F85: 467.5525632 | G85: 449.3598565 | H85: 294.7218492 | I85: 267.4327891 | J85: 83.686451 | K85: 351.1192401 | L85: 0.5346573 | M85: 846.5843274
A86: 1693.876654 | B86: 880.4312482 | C86: 18.13399756 | D86: -5.40632944 | E86: -24.36364957 | F86: 435.3263001 | G86: 418.3875335 | H86: 274.4080179 | I86: 248.9998681 | J86: 77.91832608 | K86: 326.9181942 | L86: 0.5197729399 | M86: 813.4454058
A87: 1726.165884 | B87: 896.8297604 | C87: 28.44352769 | D87: 4.064660855 | E87: 13.64562234 | F87: 443.6246322 | G87: 426.3629733 | H87: 279.6388732 | I87: 253.7463849 | J87: 79.40363066 | K87: 333.1500156 | L87: 0.5195501595 | M87: 829.3361236
A88: 1753.855577 | B88: 877.2632368 | C88: 25.47618221 | D88: 4.65418095 | E88: 2.831225011 | F88: 450.7408833 | G88: 433.2023275 | H88: 284.1246035 | I88: 257.8167698 | J88: 80.67735654 | K88: 338.4941264 | L88: 0.5001912634 | M88: 876.5923402
A89: 1806.878995 | B89: 965.6931557 | C89: 24.69492035 | D89: 0.16793579 | E89: 53.91641356 | F89: 464.3679017 | G89: 446.2991118 | H89: 292.7143972 | I89: 265.6112123 | J89: 83.11643377 | K89: 348.727646 | L89: 0.5344536952 | M89: 841.1858393
A90: 1679.866407 | B90: 880.6487111 | C90: 23.82659509 | D90: 11.73854644 | E90: 4.279802937 | F90: 431.7256666 | G90: 414.9270025 | H90: 272.1383579 | I90: 246.9403618 | J90: 77.27385472 | K90: 324.2142166 | L90: 0.5242373485 | M90: 799.2176959
A91: 1686.518011 | B91: 915.3790429 | C91: 22.29645252 | D91: -7.317148642 | E91: 18.99892137 | F91: 433.4351288 | G91: 416.5699487 | H91: 273.2159178 | I91: 247.9181476 | J91: 77.57982851 | K91: 325.4979761 | L91: 0.5427626844 | M91: 771.1389681
A92: 1774.819786 | B92: 901.4487587 | C92: 29.68230281 | D92: -9.964569532 | E92: -12.26975569 | F92: 456.128685 | G92: 438.3804871 | H92: 287.5208053 | I92: 260.8985085 | J92: 81.64171016 | K92: 342.5402187 | L92: 0.5079100232 | M92: 873.3710273
A93: 1762.461764 | B93: 932.5582548 | C93: 26.7314701 | D93: -1.815018054 | E93: -33.40286763 | F93: 452.9526733 | G93: 435.3280557 | H93: 285.5188058 | I93: 259.0818793 | J93: 81.07324114 | K93: 340.1551205 | L93: 0.5291225454 | M93: 829.9035092
A94: 1674.72553 | B94: 885.487353 | C94: 26.89236558 | D94: -2.840875185 | E94: 15.38425073 | F94: 430.4044612 | G94: 413.6572059 | H94: 271.3055359 | I94: 246.1846529 | J94: 77.03737438 | K94: 323.2220273 | L94: 0.528735806 | M94: 789.238177
A95: 1706.174286 | B95: 936.4506028 | C95: 23.4258287 | D95: 8.931166335 | E95: -9.901369469 | F95: 438.4867915 | G95: 421.4250486 | H95: 276.4002343 | I95: 250.80762 | J95: 78.48401716 | K95: 329.2916372 | L95: 0.5488598735 | M95: 769.7236832
A96: 1773.327347 | B96: 899.2456117 | C96: 28.67017466 | D96: 2.684730833 | E96: -1.294254837 | F96: 455.7451282 | G96: 438.0118547 | H96: 287.2790302 | I96: 260.67912 | J96: 81.57305796 | K96: 342.252178 | L96: 0.5070951019 | M96: 874.0817353
A97: 1669.427206 | B97: 894.1199255 | C97: 19.70947213 | D97: -5.08480219 | E97: -26.00862787 | F97: 429.0427919 | G97: 412.3485199 | H97: 270.4472074 | I97: 245.4057993 | J97: 76.79365148 | K97: 322.1994508 | L97: 0.5355848535 | M97: 775.3072805
A98: 1715.976652 | B98: 883.0640971 | C98: 23.4864062 | D98: -7.466728216 | E98: 41.72275676 | F98: 441.0059996 | G98: 423.846233 | H98: 277.9882176 | I98: 252.2485678 | J98: 78.93492599 | K98: 331.1834938 | L98: 0.514613119 | M98: 832.9125549
A99: 1729.445448 | B99: 910.212343 | C99: 24.26289346 | D99: 3.761330728 | E99: 7.117866962 | F99: 444.4674801 | G99: 427.1730257 | H99: 280.1701626 | I99: 254.2284809 | J99: 79.55449061 | K99: 333.7829715 | L99: 0.5263030089 | M99: 819.233105
A100: 1833.920296 | B100: 929.8205509 | C100: 23.57104629 | D100: -3.695003156 | E100: 28.84731876 | F100: 471.3175161 | G100: 452.9783131 | H100: 297.095088 | I100: 269.5862835 | J100: 84.36033362 | K100: 353.9466171 | L100: 0.5070125201 | M100: 904.0997451
A101: 1670.218944 | B101: 855.4097281 | C101: 23.957082 | D101: -0.954690862 | E101: 12.96486162 | F101: 429.2462686 | G101: 412.5440792 | H101: 270.5754689 | I101: 245.5221848 | J101: 76.83007142 | K101: 322.3522562 | L101: 0.5121542485 | M101: 814.8092159
A102: 1781.65121 | B102: 902.3789832 | C102: 21.81892615 | D102: -2.449798725 | E102: 33.81252519 | F102: 457.884361 | G102: 440.0678489 | H102: 288.627496 | I102: 261.9027279 | J102: 81.95595566 | K102: 343.8586835 | L102: 0.5064846465 | M102: 879.2722268
A103: 1674.116963 | B103: 908.3789592 | C103: 29.64769145 | D103: 10.39864258 | E103: -11.15797726 | F103: 430.2480595 | G103: 413.5068899 | H103: 271.206948 | I103: 246.0951936 | J103: 77.0093803 | K103: 323.1045739 | L103: 0.5426018488 | M103: 765.7380038
A104: 1757.279949 | B104: 889.1417731 | C104: 23.31328435 | D104: 1.854173928 | E104: 5.206867872 | F104: 451.6209469 | G104: 434.0481474 | H104: 284.6793517 | I104: 258.3201525 | J104: 80.83487765 | K104: 339.1550302 | L104: 0.5059761671 | M104: 868.1381759
A105: 1721.376945 | B105: 917.2462444 | C105: 23.23463608 | D105: -14.02701137 | E105: -11.14982622 | F105: 442.3938749 | G105: 425.1801054 | H105: 278.8630651 | I105: 253.0424109 | J105: 79.18333947 | K105: 332.2257504 | L105: 0.5328561226 | M105: 804.1307006
A106: 1657.662517 | B106: 892.0418331 | C106: 28.84735129 | D106: -6.967648763 | E106: 5.630270407 | F106: 426.0192669 | G106: 409.4426417 | H106: 268.5413278 | I106: 243.67639 | J106: 76.25247578 | K106: 319.9288658 | L106: 0.5381323544 | M106: 765.6206839
A107: 1846.19055 | B107: 882.0160764 | C107: 21.87355511 | D107: -3.667877089 | E107: 39.03996629 | F107: 474.4709714 | G107: 456.0090659 | H107: 299.0828691 | I107: 271.3900109 | J107: 84.9247653 | K107: 356.3147762 | L107: 0.4777492098 | M107: 964.1744736
A108: 1847.150327 | B108: 951.4766498 | C108: 31.88027086 | D108: 3.164537725 | E108: 46.12889695 | F108: 474.717634 | G108: 456.2461308 | H108: 299.238353 | I108: 271.5310981 | J108: 84.96891504 | K108: 356.5000131 | L108: 0.5151051519 | M108: 895.6736772
A109: 1662.443892 | B109: 843.627239 | C109: 26.58231034 | D109: -1.36648666 | E109: -17.79821483 | F109: 427.2480802 | G109: 410.6236413 | H109: 269.3159105 | I109: 244.3792521 | J109: 76.47241903 | K109: 320.8516712 | L109: 0.5074620822 | M109: 818.816653
A110: 1805.043298 | B110: 915.170779 | C110: 26.38711276 | D110: 3.867251308 | E110: 14.78284424 | F110: 463.8961276 | G110: 445.8456946 | H110: 292.4170143 | I110: 265.3413648 | J110: 83.03199171 | K110: 348.3733565 | L110: 0.5070076602 | M110: 889.872519
A111: 1724.215272 | B111: 899.908458 | C111: 26.97149011 | D111: 3.249935124 | E111: -41.20439959 | F111: 443.1233249 | G111: 425.8811722 | H111: 279.3228741 | I111: 253.459645 | J111: 79.31390251 | K111: 332.7735475 | L111: 0.5219234933 | M111: 824.306814
A112: 1809.898321 | B112: 947.9595931 | C112: 25.38088268 | D112: -0.17501494 | E112: 7.381259383 | F112: 465.1438685 | G112: 447.0448853 | H112: 293.203528 | I112: 266.0550532 | J112: 83.25532277 | K112: 349.310376 | L112: 0.5237640049 | M112: 861.9387279
A113: 1747.081323 | B113: 933.6264537 | C113: 24.73765423 | D113: 14.04597771 | E113: -35.46323001 | F113: 448.9999 | G113: 431.5290868 | H113: 283.0271743 | I113: 256.8209545 | J113: 80.36574086 | K113: 337.1866953 | L113: 0.5343920981 | M113: 813.4548693
A114: 1745.554152 | B114: 950.886048 | C114: 23.327172 | D114: 1.899855561 | E114: -49.91435876 | F114: 448.6074171 | G114: 431.1518755 | H114: 282.7797726 | I114: 256.5964603 | J114: 80.29549099 | K114: 336.8919513 | L114: 0.5447473783 | M114: 794.668104
A115: 1661.206396 | B115: 835.8914302 | C115: 22.64144014 | D115: -4.13638407 | E115: 2.593301021 | F115: 426.9300438 | G115: 410.3179798 | H115: 269.1154362 | I115: 244.1973402 | J115: 76.41549422 | K115: 320.6128344 | L115: 0.5031833686 | M115: 825.3149658
A116: 1764.387352 | B116: 889.9095922 | C116: 24.55981304 | D116: 9.957670598 | E116: -2.578516846 | F116: 453.4475495 | G116: 435.8036759 | H116: 285.830751 | I116: 259.3649407 | J116: 81.16181819 | K116: 340.5267589 | L116: 0.5043731419 | M116: 874.4777598
A117: 1757.7087 | B117: 937.914157 | C117: 19.74249025 | D117: 2.052243772 | E117: 14.45632798 | F117: 451.7311359 | G117: 434.1540489 | H117: 284.7488094 | I117: 258.3831789 | J117: 80.8546002 | K117: 339.2377791 | L117: 0.5336004521 | M117: 819.794543
A118: 1759.579569 | B118: 917.250062 | C118: 25.01703159 | D118: 11.63020958 | E118: -16.6099553 | F118: 452.2119492 | G118: 434.6161535 | H118: 285.0518902 | I118: 258.6581966 | J118: 80.94066017 | K118: 339.5988568 | L118: 0.5212893342 | M118: 842.329507
A119: 1824.684273 | B119: 918.435848 | C119: 22.14582192 | D119: -8.602676997 | E119: 18.91236072 | F119: 468.9438582 | G119: 450.6970154 | H119: 295.5988522 | I119: 268.2285881 | J119: 83.93547656 | K119: 352.1640647 | L119: 0.5033395978 | M119: 906.248425
A120: 1659.321119 | B120: 844.621608 | C120: 25.29653444 | D120: -6.775329023 | E120: 7.469266857 | F120: 426.4455276 | G120: 409.8523164 | H120: 268.8100213 | I120: 243.9202045 | J120: 76.32877147 | K120: 320.248976 | L120: 0.5090163672 | M120: 814.699511
A121: 1911.179223 | B121: 967.3237916 | C121: 21.09031768 | D121: 0.871367769 | E121: -13.91439716 | F121: 491.1730603 | G121: 472.0612681 | H121: 309.6110341 | I121: 280.9433458 | J121: 87.91424426 | K121: 368.85759 | L121: 0.5061397591 | M121: 943.8554314
A122: 1774.133514 | B122: 946.4689972 | C122: 25.08354268 | D122: -2.33167616 | E122: -1.174744602 | F122: 455.9523131 | G122: 438.210978 | H122: 287.4096293 | I122: 260.7976266 | J122: 81.61014164 | K122: 342.4077682 | L122: 0.5334823956 | M122: 827.6645168
A123: 1781.360089 | B123: 921.9378672 | C123: 26.87888252 | D123: -15.00676048 | E123: -23.76850756 | F123: 457.8095429 | G123: 439.995942 | H123: 288.5803344 | I123: 261.8599331 | J123: 81.94256409 | K123: 343.8024972 | L123: 0.5175471668 | M123: 859.4222218
A124: 1765.436924 | B124: 909.3724921 | C124: 27.02756728 | D124: -7.090830563 | E124: -3.919697245 | F124: 453.7172895 | G124: 436.0629202 | H124: 286.0007817 | I124: 259.5192278 | J124: 81.2100985 | K124: 340.7293263 | L124: 0.5150976961 | M124: 856.0644319
A125: 1821.4868 | B125: 928.7805426 | C125: 24.85415373 | D125: -4.573812163 | E125: -41.9144235 | F125: 468.1221076 | G125: 449.9072396 | H125: 295.0808616 | I125: 267.7585596 | J125: 83.7883928 | K125: 351.5469524 | L125: 0.5099024284 | M125: 892.7062574
A126: 1721.50526 | B126: 929.9855271 | C126: 23.77672805 | D126: 4.466053248 | E126: 87.68497075 | F126: 442.4268518 | G126: 425.2117992 | H126: 278.8838521 | I126: 253.0612732 | J126: 79.18924196 | K126: 332.2505152 | L126: 0.5402164889 | M126: 791.5197329
A127: 1706.000857 | B127: 924.3254195 | C127: 26.19187721 | D127: -4.738863694 | E127: 6.336360826 | F127: 438.4422202 | G127: 421.3822117 | H127: 276.3721388 | I127: 250.782126 | J127: 78.47603942 | K127: 329.2581654 | L127: 0.5418082973 | M127: 781.6754375
A128: 1788.14116 | B128: 938.2239496 | C128: 28.74652378 | D128: 13.24172973 | E128: -2.770863907 | F128: 459.5522781 | G128: 441.6708665 | H128: 289.6788679 | I128: 262.8567505 | J128: 82.25449336 | K128: 345.1112439 | L128: 0.5246923289 | M128: 849.9172104
A129: 1775.029925 | B129: 932.3905279 | C129: 28.01888805 | D129: 5.393910781 | E129: -11.68036928 | F129: 456.1826907 | G129: 438.4323915 | H129: 287.5548479 | I129: 260.929399 | J129: 81.65137655 | K129: 342.5807755 | L129: 0.5252815824 | M129: 842.6393971
A130: 1741.527672 | B130: 915.4178008 | C130: 31.13708209 | D130: 5.329050006 | E130: -46.5675163 | F130: 447.5726117 | G130: 430.157335 | H130: 282.1274829 | I130: 256.0045678 | J130: 80.11027291 | K130: 336.1148407 | L130: 0.5256406863 | M130: 826.1098712
A131: 1674.359173 | B131: 897.7857041 | C131: 26.34699777 | D131: 8.976730894 | E131: 30.05710036 | F131: =A131*0.257 -> 430.3103075 | G131: =A131*0.247 -> 413.5667157 | H131: =A131*0.162 -> 271.246186 | I131: =A131*0.147 -> 246.1307984 | J131: =A131*0.046 -> 77.02052196 | K131: =I131+J131 -> 323.1513204 | L131: =B131/A131 -> 0.536196605 | M131: =A131-B131 -> 776.5734689
A132: 1768.338298 | B132: 922.3968818 | C132: 22.89371005 | D132: -4.698486685 | E132: 16.06487829 | F132: 454.4629426 | G132: 436.7795596 | H132: 286.4708043 | I132: 259.9457298 | J132: 81.34356171 | K132: 341.2892915 | L132: 0.5216178843 | M132: 845.9414162
A133: 1764.82422 | B133: 894.7344614 | C133: 24.21520414 | D133: -12.41904766 | E133: 36.0012799 | F133: 453.5598245 | G133: 435.9115823 | H133: 285.9015236 | I133: 259.4291603 | J133: 81.18191412 | K133: 340.6110745 | L133: 0.5069821976 | M133: 870.0897586
A134: 1731.922179 | B134: 893.1609847 | C134: 21.84641928 | D134: 15.27065715 | E134: 11.68381972 | F134: 445.104 | G134: 427.7847782 | H134: 280.571393 | I134: 254.5925603 | J134: 79.66842023 | K134: 334.2609805 | L134: 0.5157050331 | M134: 838.7611943
A135: 1740.052802 | B135: 908.2245467 | C135: 23.40189366 | D135: 14.63361494 | E135: -2.736979327 | F135: 447.1935701 | G135: 429.7930421 | H135: 281.8885539 | I135: 255.7877619 | J135: 80.04242889 | K135: 335.8301908 | L135: 0.5219522911 | M135: 831.8282553
A136: 1868.733258 | B136: 1004.591127 | C136: 23.29745361 | D136: -19.51460822 | E136: 21.97458317 | F136: 480.2644473 | G136: 461.5771147 | H136: 302.7347878 | I136: 274.7037889 | J136: 85.96172987 | K136: 360.6655188 | L136: 0.5375786634 | M136: 864.142131
A137: 1742.857503 | B137: 887.4981158 | C137: 23.70521784 | D137: -1.835103045 | E137: -65.70118792 | F137: 447.9143783 | G137: 430.4858032 | H137: 282.3429155 | I137: 256.2000529 | J137: 80.17144514 | K137: 336.3714981 | L137: 0.5092201252 | M137: 855.3593872
A138: 1710.904994 | B138: 883.1801082 | C138: 30.9619459 | D138: 1.076127041 | E138: 4.481278533 | F138: 439.7025835 | G138: 422.5935335 | H138: 277.166609 | I138: 251.5030341 | J138: 78.70162972 | K138: 330.2046638 | L138: 0.5162064003 | M138: 827.7248858
A139: 1838.585136 | B139: 897.4954391 | C139: 22.17890232 | D139: -7.209110739 | E139: -10.24513431 | F139: 472.51638 | G139: 454.1305286 | H139: 297.850792 | I139: 270.272015 | J139: 84.57491626 | K139: 354.8469312 | L139: 0.4881446181 | M139: 941.0896969
A140: 1799.155797 | B140: 969.6989572 | C140: 25.97095055 | D140: 3.562147081 | E140: -24.91909836 | F140: 462.3830398 | G140: 444.3914819 | H140: 291.4632391 | I140: 264.4759022 | J140: 82.76116666 | K140: 347.2370688 | L140: 0.5389744228 | M140: 829.4568398
A141: 1724.164823 | B141: 863.1615989 | C141: 25.22169309 | D141: 2.040704441 | E141: -9.073951635 | F141: 443.1103595 | G141: 425.8687113 | H141: 279.3147013 | I141: 253.452229 | J141: 79.31158186 | K141: 332.7638108 | L141: 0.5006259189 | M141: 861.0032241
A142: 1648.675755 | B142: 854.0691182 | C142: 25.40640611 | D142: -4.383102792 | E142: -10.68745298 | F142: 423.709669 | G142: 407.2229115 | H142: 267.0854723 | I142: 242.355336 | J142: 75.83908473 | K142: 318.1944207 | L142: 0.5180334069 | M142: 794.6066368
A143: 1799.924291 | B143: 910.5201909 | C143: 26.48759188 | D143: -5.511321306 | E143: 4.79051494 | F143: 462.5805428 | G143: 444.5812999 | H143: 291.5877351 | I143: 264.5888708 | J143: 82.79651739 | K143: 347.3853882 | L143: 0.5058658275 | M143: 889.4041001
A144: 1757.184686 | B144: 927.3352405 | C144: 28.19151042 | D144: 6.765701947 | E144: -25.54278367 | F144: 451.5964643 | G144: 434.0246174 | H144: 284.6639191 | I144: 258.3061488 | J144: 80.83049556 | K144: 339.1366444 | L144: 0.5277392 | M144: 829.8494455
A145: 1719.42747 | B145: 908.0307287 | C145: 23.56196086 | D145: 7.12933938 | E145: -0.840957625 | F145: 441.8928598 | G145: 424.6985851 | H145: 278.5472501 | I145: 252.7558381 | J145: 79.09366362 | K145: 331.8495017 | L145: 0.5281006292 | M145: 811.3967413
A146: 1769.289185 | B146: 943.3437423 | C146: 29.36489604 | D146: -1.786192811 | E146: 1.807583496 | F146: 454.7073205 | G146: 437.0144287 | H146: 286.624848 | I146: 260.0855102 | J146: 81.38730251 | K146: 341.4728127 | L146: 0.5331766849 | M146: 825.9454427
A147: 1658.582307 | B147: 872.254654 | C147: 24.76949126 | D147: 13.78321516 | E147: -17.16532733 | F147: 426.2556529 | G147: 409.6698298 | H147: 268.6903337 | I147: 243.8115991 | J147: 76.29478612 | K147: 320.1063853 | L147: 0.5259037494 | M147: 786.327653
A148: 1882.934212 | B148: 948.2934896 | C148: 27.82013217 | D148: 0.3108474 | E148: 28.84003949 | F148: 483.9140925 | G148: 465.0847504 | H148: 305.0353423 | I148: 276.7913292 | J148: 86.61497375 | K148: 363.4063029 | L148: 0.5036253968 | M148: 934.6407224
A149: 1813.877612 | B149: 950.6796629 | C149: 24.84932879 | D149: 4.173090596 | E149: -15.57499312 | F149: 466.1665463 | G149: 448.0277702 | H149: 293.8481731 | I149: 266.640009 | J149: 83.43837015 | K149: 350.0783791 | L149: 0.524114558 | M149: 863.1979491
A150: 1787.819177 | B150: 910.695437 | C150: 21.12014766 | D150: -1.404988547 | E150: -10.26506777 | F150: 459.4695285 | G150: 441.5913367 | H150: 289.6267067 | I150: 262.809419 | J150: 82.23968214 | K150: 345.0491012 | L150: 0.509389008 | M150: 877.12374
A151: 1728.629735 | B151: 907.0406892 | C151: 26.69194795 | D151: -16.85561906 | E151: 14.15970697 | F151: 444.2578419 | G151: 426.9715445 | H151: 280.0380171 | I151: 254.108571 | J151: 79.51696781 | K151: 333.6255389 | L151: 0.5247165838 | M151: 821.5890458
A152: 1774.042155 | B152: 956.6905779 | C152: 28.12718601 | D152: 0.159088607 | E152: -10.00736282 | F152: 455.9288338 | G152: 438.1884123 | H152: 287.3948291 | I152: 260.7841968 | J152: 81.60593913 | K152: 342.3901359 | L152: 0.5392716149 | M152: 817.3515771
A153: 1752.031302 | B153: 907.3813406 | C153: 22.98646577 | D153: 8.105454097 | E153: -27.34380821 | F153: 450.2720446 | G153: 432.7517316 | H153: 283.8290709 | I153: 257.5486014 | J153: 80.59343989 | K153: 338.1420413 | L153: 0.517902471 | M153: 844.6499614
A154: 1758.379087 | B154: 901.051634 | C154: 21.34397067 | D154: 5.260201299 | E154: 21.94239638 | F154: 451.9034254 | G154: 434.3196345 | H154: 284.8574121 | I154: 258.4817258 | J154: 80.885438 | K154: 339.3671638 | L154: 0.5124330929 | M154: 857.327453
A155: 1700.976821 | B155: 858.561049 | C155: 27.04051609 | D155: 1.260315519 | E155: 5.820208045 | F155: 437.151043 | G155: 420.1412748 | H155: 275.558245 | I155: 250.0435927 | J155: 78.24493377 | K155: 328.2885265 | L155: 0.5047458839 | M155: 842.415772
A156: 1785.955683 | B156: 901.860476 | C156: 25.43979105 | D156: 0.314043564 | E156: -23.63159181 | F156: 458.9906105 | G156: 441.1310537 | H156: 289.3248206 | I156: 262.5354854 | J156: 82.15396142 | K156: 344.6894468 | L156: 0.504973603 | M156: 884.095207
A157: 1710.900252 | B157: 912.0369212 | C157: 24.68764651 | D157: -4.813059269 | E157: -1.936240756 | F157: 439.7013648 | G157: 422.5923622 | H157: 277.1658408 | I157: 251.502337 | J157: 78.70141159 | K157: 330.2037486 | L157: 0.5330742807 | M157: 798.8633308
A158: 1812.610649 | B158: 966.1322106 | C158: 25.77484766 | D158: -2.67468693 | E158: 22.66827968 | F158: 465.8409368 | G158: 447.7148303 | H158: 293.6429251 | I158: 266.4537654 | J158: 83.38008985 | K158: 349.8338553 | L158: 0.5330059222 | M158: 846.4784384
A159: 1663.546547 | B159: 888.5791908 | C159: 26.10335554 | D159: 3.835669114 | E159: 20.53574734 | F159: 427.5314626 | G159: 410.8959971 | H159: 269.4945406 | I159: 244.5413424 | J159: 76.52314116 | K159: 321.0644836 | L159: 0.5341474769 | M159: 774.9673562
A160: 1726.549286 | B160: 876.3285569 | C160: 25.20186359 | D160: 6.382435504 | E160: 23.40986864 | F160: 443.7231665 | G160: 426.4576736 | H160: 279.7009843 | I160: 253.802745 | J160: 79.42126716 | K160: 333.2240122 | L160: 0.5075606958 | M160: 850.2207291
A161: 1868.068279 | B161: 964.0378347 | C161: 23.63681363 | D161: 4.643686463 | E161: -22.71166357 | F161: 480.0935477 | G161: 461.4128649 | H161: 302.6270612 | I161: 274.606037 | J161: 85.93114083 | K161: 360.5371778 | L161: 0.5160613483 | M161: 904.0304443
A162: 1771.680645 | B162: 939.9531952 | C162: 26.83040256 | D162: -6.454468148 | E162: 4.277607272 | F162: 455.3219258 | G162: 437.6051193 | H162: 287.0122645 | I162: 260.4370548 | J162: 81.49730967 | K162: 341.9343645 | L162: 0.5305432431 | M162: 831.7274498
A163: 1833.938461 | B163: 893.7250735 | C163: 26.41799723 | D163: 3.615960772 | E163: 20.42524441 | F163: 471.3221845 | G163: 452.9827999 | H163: 297.0980307 | I163: 269.5889538 | J163: 84.36116921 | K163: 353.950123 | L163: 0.4873255524 | M163: 940.2133875
A164: 1731.843316 | B164: 887.6317609 | C164: 21.34856302 | D164: -4.623771478 | E164: -8.139727709 | F164: 445.0837322 | G164: 427.7652991 | H164: 280.5586172 | I164: 254.5809675 | J164: 79.66479254 | K164: 334.24576 | L164: 0.5125358355 | M164: 844.2115551
A165: 1769.872847 | B165: 952.062731 | C165: 28.61015367 | D165: 7.427805095 | E165: -20.40074079 | F165: 454.8573217 | G165: 437.1585932 | H165: 286.7194012 | I165: 260.1713085 | J165: 81.41415096 | K165: 341.5854595 | L165: 0.5379271921 | M165: 817.810116
A166: 1723.904045 | B166: 898.607713 | C166: 20.18642505 | D166: -4.502880192 | E166: -16.46128275 | F166: 443.0433396 | G166: 425.8042991 | H166: 279.2724553 | I166: 253.4138946 | J166: 79.29958607 | K166: 332.7134807 | L166: 0.5212631849 | M166: 825.296332
A167: 1693.957599 | B167: 887.5304779 | C167: 24.54952729 | D167: 2.709013355 | E167: 2.756720437 | F167: 435.3471029 | G167: 418.407527 | H167: 274.421131 | I167: 249.0117671 | J167: 77.92204955 | K167: 326.9338166 | L167: 0.5239390162 | M167: 806.4271211
A168: 1748.884336 | B168: 917.8382061 | C168: 26.00550709 | D168: 11.23556829 | E168: 17.0234634 | F168: 449.4632744 | G168: 431.974431 | H168: 283.3192624 | I168: 257.0859974 | J168: 80.44867946 | K168: 337.5346768 | L168: 0.5248135553 | M168: 831.0461299
A169: 1726.400967 | B169: 903.7477596 | C169: 22.77036763 | D169: 12.2666308 | E169: -7.00782962 | F169: 443.6850485 | G169: 426.4210388 | H169: 279.6769567 | I169: 253.7809421 | J169: 79.41444448 | K169: 333.1953866 | L169: 0.5234865926 | M169: 822.6532074
A170: 1797.640478 | B170: 888.3213067 | C170: 26.9508339 | D170: 4.326456075 | E170: 33.05348635 | F170: 461.9936028 | G170: 444.0171981 | H170: 291.2177574 | I170: 264.2531503 | J170: 82.69146199 | K170: 346.9446123 | L170: 0.494159604 | M170: 909.3191713
A171: 1715.344132 | B171: 890.1828664 | C171: 30.73644389 | D171: 6.67884367 | E171: 22.4914179 | F171: 440.8434419 | G171: 423.6900006 | H171: 277.8857494 | I171: 252.1555874 | J171: 78.90583007 | K171: 331.0614175 | L171: 0.5189529318 | M171: 825.1612656
A172: 1785.196647 | B172: 928.2755094 | C172: 21.38681812 | D172: 0.124782792 | E172: 30.1908917 | F172: 458.7955383 | G172: 440.9435718 | H172: 289.2018568 | I172: 262.4239071 | J172: 82.11904576 | K172: 344.5429529 | L172: 0.5199850173 | M172: 856.9211376
A173: 1647.189182 | B173: 864.4331758 | C173: 27.85548252 | D173: -5.450993168 | E173: 22.14317013 | F173: 423.3276198 | G173: 406.855728 | H173: 266.8446475 | I173: 242.1368098 | J173: 75.77070237 | K173: 317.9075121 | L173: 0.5247928928 | M173: 782.7560062
A174: 1776.324522 | B174: 958.4338944 | C174: 27.55528638 | D174: 5.881304418 | E174: 23.10766848 | F174: 456.5154022 | G174: 438.7521569 | H174: 287.7645726 | I174: 261.1197047 | J174: 81.71092801 | K174: 342.8306327 | L174: 0.5395601325 | M174: 817.8906276
A175: 1750.278886 | B175: 879.1978843 | C175: 20.37123095 | D175: -10.01664928 | E175: -9.809204379 | F175: 449.8216737 | G175: 432.3188848 | H175: 283.5451795 | I175: 257.2909962 | J175: 80.51282876 | K175: 337.803825 | L175: 0.5023187398 | M175: 871.0810017
A176: 1862.9903 | B176: 939.9299394 | C176: 24.88702977 | D176: 0.528858757 | E176: -43.94186576 | F176: 478.7885071 | G176: 460.1586041 | H176: 301.8044286 | I176: 273.8595741 | J176: 85.6975538 | K176: 359.5571279 | L176: 0.5045275541 | M176: 923.0603606
A177: 1701.736309 | B177: 916.7165636 | C177: 24.49223934 | D177: 4.868440146 | E177: 1.232861294 | F177: 437.3462314 | G177: 420.3288683 | H177: 275.6812821 | I177: 250.1552374 | J177: 78.27987021 | K177: 328.4351076 | L177: 0.538694837 | M177: 785.0197454
A178: 1725.286991 | B178: 926.5101096 | C178: 24.79174948 | D178: 8.202223756 | E178: -1.277323777 | F178: 443.3987567 | G178: 426.1458868 | H178: 279.4964925 | I178: 253.6171877 | J178: 79.36320159 | K178: 332.9803893 | L178: 0.5370179654 | M178: 798.7768814
A179: 1782.705453 | B179: 887.2665848 | C179: 25.09456424 | D179: 10.111603 | E179: 24.31677138 | F179: 458.1553014 | G179: 440.3282469 | H179: 288.7982834 | I179: 262.0577016 | J179: 82.00445084 | K179: 344.0621524 | L179: 0.4977078986 | M179: 895.4388682
A180: 1742.315127 | B180: 906.2484002 | C180: 24.57893235 | D180: 3.676602983 | E180: -32.49216272 | F180: 447.7749876 | G180: 430.3518364 | H180: 282.2550506 | I180: 256.1203237 | J180: 80.14649584 | K180: 336.2668195 | L180: 0.5201403501 | M180: 836.0667268
A181: 1790.046998 | B181: 905.7018469 | C181: 25.84568873 | D181: 4.72590756 | E181: -10.30900219 | F181: 460.0420785 | G181: 442.1416085 | H181: 289.9876137 | I181: 263.1369087 | J181: 82.34216191 | K181: 345.4790706 | L181: 0.5059654009 | M181: 884.3451511
A182: 1831.50687 | B182: 922.9499448 | C182: 32.50135449 | D182: -7.375581084 | E182: -33.32598009 | F182: 470.6972656 | G182: 452.3821969 | H182: 296.7041129 | I182: 269.2315099 | J182: 84.24931602 | K182: 353.4808259 | L182: 0.5039292835 | M182: 908.5569252
A183: 1731.086166 | B183: 902.024868 | C183: 22.00884027 | D183: 3.760027247 | E183: -7.398981023 | F183: 444.8891447 | G183: 427.578283 | H183: 280.4359589 | I183: 254.4696664 | J183: 79.62996364 | K183: 334.09963 | L183: 0.5210745055 | M183: 829.061298
A184: 1772.486919 | B184: 952.2908606 | C184: 27.25965832 | D184: -1.701258055 | E184: 24.70943145 | F184: 455.5291382 | G184: 437.804269 | H184: 287.1428809 | I184: 260.5555771 | J184: 81.53439827 | K184: 342.0899754 | L184: 0.5372625605 | M184: 820.1960584
A185: 1632.866809 | B185: 885.8230362 | C185: 27.29214523 | D185: 2.521561256 | E185: 11.9806865 | F185: 419.6467699 | G185: 403.3181018 | H185: 264.5244231 | I185: 240.0314209 | J185: 75.11187321 | K185: 315.1432941 | L185: 0.5424955859 | M185: 747.0437728
A186: 1838.354083 | B186: 910.7303199 | C186: 23.3309632 | D186: 4.348737854 | E186: -4.949588084 | F186: 472.4569993 | G186: 454.0734585 | H186: 297.8133614 | I186: 270.2380502 | J186: 84.56428782 | K186: 354.802338 | L186: 0.4954052804 | M186: 927.6237631
A187: 1825.508924 | B187: 945.9081193 | C187: 28.04673913 | D187: -6.583896242 | E187: -30.6513235 | F187: 469.1557935 | G187: 450.9007042 | H187: 295.7324457 | I187: 268.3498118 | J187: 83.9734105 | K187: 352.3232223 | L187: 0.5181613231 | M187: 879.6008047
A188: 1835.020266 | B188: 976.4397809 | C188: 27.20888905 | D188: 11.33151557 | E188: -2.654492355 | F188: 471.6002084 | G188: 453.2500057 | H188: 297.2732831 | I188: 269.7479791 | J188: 84.41093224 | K188: 354.1589113 | L188: 0.5321138949 | M188: 858.5804851
A189: 1668.254839 | B189: 857.9187056 | C189: 20.56601809 | D189: -10.3740345 | E189: -41.63735047 | F189: 428.7414936 | G189: 412.0589452 | H189: 270.2572839 | I189: 245.2334613 | J189: 76.73972259 | K189: 321.9731839 | L189: 0.5142611821 | M189: 810.3361334
A190: 1732.353214 | B190: 913.1624899 | C190: 23.62733675 | D190: -10.32370216 | E190: 61.20717193 | F190: 445.214776 | G190: 427.8912439 | H190: 280.6412207 | I190: 254.6559225 | J190: 79.68824784 | K190: 334.3441703 | L190: 0.5271225767 | M190: 819.1907241
A191: 1803.015924 | B191: 926.3517579 | C191: 23.00623744 | D191: 0.824938033 | E191: -15.25653722 | F191: 463.3750925 | G191: 445.3449332 | H191: 292.0885797 | I191: 265.0433408 | J191: 82.9387325 | K191: 347.9820733 | L191: 0.5137790219 | M191: 876.6641661
A192: 1814.092934 | B192: 949.0580468 | C192: 24.71031219 | D192: -10.75818573 | E192: -13.03803597 | F192: 466.221884 | G192: 448.0809547 | H192: 293.8830553 | I192: 266.6716613 | J192: 83.44827496 | K192: 350.1199363 | L192: 0.5231584496 | M192: 865.0348872
A193: 1921.848028 | B193: 1001.128057 | C193: 27.60780696 | D193: -3.830051953 | E193: 15.73176056 | F193: 493.9149432 | G193: 474.6964629 | H193: 311.3393805 | I193: 282.5116601 | J193: 88.40500929 | K193: 370.9166694 | L193: 0.5209194704 | M193: 920.719971
A194: 1793.310634 | B194: 921.6885522 | C194: 25.82950196 | D194: -6.21223408 | E194: -25.29646985 | F194: 460.8808329 | G194: 442.9477266 | H194: 290.5163227 | I194: 263.6166632 | J194: 82.49228916 | K194: 346.1089524 | L194: 0.5139592298 | M194: 871.6220818
A195: 1721.228619 | B195: 923.8269137 | C195: 23.84963651 | D195: -13.35676311 | E195: 40.50956989 | F195: =A195*0.257 -> 442.3557551 | G195: =A195*0.247 -> 425.1434689 | H195: =A195*0.162 -> 278.8390363 | I195: =A195*0.147 -> 253.020607 | J195: =A195*0.046 -> 79.17651647 | K195: =I195+J195 -> 332.1971235 | L195: =B195/A195 -> 0.5367252807 | M195: =A195-B195 -> 797.4017053
A196: 1814.707626 | B196: 930.7373787 | C196: 24.84452656 | D196: -15.50304875 | E196: 2.31030473 | F196: 466.3798599 | G196: 448.2327836 | H196: 293.9826354 | I196: 266.762021 | J196: 83.4765508 | K196: 350.2385718 | L196: 0.512885583 | M196: 883.9702473
A197: 1786.499971 | B197: 926.6504503 | C197: 26.6833773 | D197: -6.467993952 | E197: -68.55952105 | F197: 459.1304925 | G197: 441.2654928 | H197: 289.4129953 | I197: 262.6154957 | J197: 82.17899867 | K197: 344.7944944 | L197: 0.5186960343 | M197: 859.8495207
A198: 1848.51621 | B198: 933.6085615 | C198: 26.55685598 | D198: 0.4952311 | E198: 40.2140301 | F198: 475.068666 | G198: 456.5835039 | H198: 299.459626 | I198: 271.7318829 | J198: 85.03174566 | K198: 356.7636285 | L198: 0.5050583579 | M198: 914.9076485
A199: 1829.741888 | B199: 914.6855003 | C199: 23.72426414 | D199: 8.533447231 | E199: -46.7939354 | F199: 470.2436652 | G199: 451.9462463 | H199: 296.4181859 | I199: 268.9720575 | J199: 84.16812685 | K199: 353.1401844 | L199: 0.4998986503 | M199: 915.0563877
A200: 1835.804606 | B200: 935.4830455 | C200: 24.4162998 | D200: -5.852628883 | E200: -23.76526057 | F200: 471.8017837 | G200: 453.4437377 | H200: 297.4003462 | I200: 269.8632771 | J200: 84.44701188 | K200: 354.310289 | L200: 0.509576587 | M200: 900.3215605
... 301 more rows

Sheet Female Population (hidden)
A1: Stature | B1: ErectSittingHeight | C1: BMI | D1: SteeringWheelAngleRandom | E1: SteeringWheelPrefHeightRandom | F1: UpperLeg | G1: LowerLeg | H1: UpperArm | I1: ForeArm | J1: HandLength | K1: LowerArm | L1: ErrectSitting/Stature | M1: Stature-ErectSitting
A2: 1607.072552 | B2: 851.1149738 | C2: 21.53591797 | D2: -11.44961112 | E2: 22.95688328 | F2: =A2*0.257 -> 413.0176459 | G2: =A2*0.247 -> 396.9469203 | H2: =A2*0.162 -> 260.3457534 | I2: =A2*0.147 -> 236.2396651 | J2: =A2*0.046 -> 73.92533739 | K2: =I2+J2 -> 310.1650025 | L2: =B2/A2 -> 0.5296058182 | M2: =A2-B2 -> 755.9575782
A3: 1564.257203 | B3: 804.425211 | C3: 23.76362848 | D3: -6.831736915 | E3: 40.95964467 | F3: =A3*0.257 -> 402.0141012 | G3: =A3*0.247 -> 386.3715291 | H3: =A3*0.162 -> 253.4096669 | I3: =A3*0.147 -> 229.9458088 | J3: =A3*0.046 -> 71.95583134 | K3: =I3+J3 -> 301.9016402 | L3: =B3/A3 -> 0.5142538001 | M3: =A3-B3 -> 759.831992
A4: 1719.289142 | B4: 901.6601993 | C4: 19.69836367 | D4: -0.851615158 | E4: -11.4560518 | F4: 441.8573095 | G4: 424.6644181 | H4: 278.524841 | I4: 252.7355039 | J4: 79.08730053 | K4: 331.8228044 | L4: 0.5244377908 | M4: 817.6289427
A5: 1713.923279 | B5: 857.6539218 | C5: 21.15319396 | D5: -5.240404403 | E5: -1.900227967 | F5: 440.4782827 | G5: 423.3390499 | H5: 277.6555712 | I5: 251.946722 | J5: 78.84047083 | K5: 330.7871928 | L5: 0.5004039167 | M5: 856.2693572
A6: 1704.263316 | B6: 891.3232637 | C6: 23.10752123 | D6: 0.887372165 | E6: 0.300935093 | F6: 437.9956722 | G6: 420.9530391 | H6: 276.0906572 | I6: 250.5267075 | J6: 78.39611254 | K6: 328.92282 | L6: 0.522996215 | M6: 812.9400523
A7: 1585.607884 | B7: 844.6279946 | C7: 19.63641007 | D7: 5.831432007 | E7: -54.98854523 | F7: 407.5012262 | G7: 391.6451473 | H7: 256.8684772 | I7: 233.0843589 | J7: 72.93796266 | K7: 306.0223216 | L7: 0.5326840281 | M7: 740.9798894
A8: 1667.245445 | B8: 870.7520538 | C8: 25.83361704 | D8: 7.546493656 | E8: -13.26194647 | F8: 428.4820794 | G8: 411.8096249 | H8: 270.0937621 | I8: 245.0850804 | J8: 76.69329047 | K8: 321.7783709 | L8: 0.5222698652 | M8: 796.4933912
A9: 1557.579208 | B9: 837.1022416 | C9: 25.81188623 | D9: -0.57847263 | E9: -6.549853185 | F9: 400.2978565 | G9: 384.7220644 | H9: 252.3278317 | I9: 228.9641436 | J9: 71.64864357 | K9: 300.6127871 | L9: 0.5374379918 | M9: 720.4769664
A10: 1545.018253 | B10: 853.7556907 | C10: 19.64299348 | D10: -2.534778599 | E10: -31.79501669 | F10: 397.069691 | G10: 381.6195085 | H10: 250.292957 | I10: 227.1176832 | J10: 71.07083964 | K10: 298.1885228 | L10: 0.5525861517 | M10: 691.2625623
A11: 1606.474724 | B11: 843.572745 | C11: 26.5948852 | D11: -13.41701911 | E11: -50.67395916 | F11: 412.8640041 | G11: 396.7992568 | H11: 260.2489053 | I11: 236.1517844 | J11: 73.8978373 | K11: 310.0496217 | L11: 0.5251080097 | M11: 762.901979
A12: 1557.352553 | B12: 833.3064865 | C12: 24.44377461 | D12: -11.21179735 | E12: 5.655838584 | F12: 400.2396061 | G12: 384.6660806 | H12: 252.2911136 | I12: 228.9308253 | J12: 71.63821744 | K12: 300.5690427 | L12: 0.5350788971 | M12: 724.0460665
A13: 1675.1545 | B13: 874.3837576 | C13: 23.7317562 | D13: 11.3324701 | E13: -14.80143223 | F13: 430.5147065 | G13: 413.7631615 | H13: 271.375029 | I13: 246.2477115 | J13: 77.057107 | K13: 323.3048185 | L13: 0.5219720077 | M13: 800.7707424
A14: 1652.712789 | B14: 861.7058137 | C14: 22.8594752 | D14: -11.10907945 | E14: 11.25360985 | F14: 424.7471868 | G14: 408.2200589 | H14: 267.7394718 | I14: 242.94878 | J14: 76.02478829 | K14: 318.9735683 | L14: 0.5213887249 | M14: 791.0069753
A15: 1563.462011 | B15: 811.7909869 | C15: 25.43953893 | D15: -20.68828236 | E15: -5.531629608 | F15: 401.8097368 | G15: 386.1751167 | H15: 253.2808458 | I15: 229.8289156 | J15: 71.91925251 | K15: 301.7481681 | L15: 0.5192265506 | M15: 751.6710241
A16: 1645.20305 | B16: 889.8616728 | C16: 22.54057073 | D16: -13.24426101 | E16: -8.354489096 | F16: 422.8171839 | G16: 406.3651534 | H16: 266.5228941 | I16: 241.8448484 | J16: 75.6793403 | K16: 317.5241887 | L16: 0.5408825815 | M16: 755.3413772
A17: 1623.063428 | B17: 820.4939465 | C17: 21.58105909 | D17: 0.604830776 | E17: 0.898469566 | F17: 417.127301 | G17: 400.8966667 | H17: 262.9362753 | I17: 238.5903239 | J17: 74.66091769 | K17: 313.2512416 | L17: 0.5055218005 | M17: 802.5694815
A18: 1624.119023 | B18: 855.1020925 | C18: 24.2779722 | D18: 1.146541319 | E18: -2.81410224 | F18: 417.3985889 | G18: 401.1573987 | H18: 263.1072817 | I18: 238.7454964 | J18: 74.70947506 | K18: =I18+J18 -> 313.4549714 | L18: 0.52650211 | M18: 769.0169305
A19: 1613.761847 | B19: 885.6309614 | C19: 21.91521252 | D19: 14.11955864 | E19: 24.59912966 | F19: 414.7367947 | G19: 398.5991762 | H19: 261.4294192 | I19: 237.2229915 | J19: 74.23304496 | K19: 311.4560365 | L19: 0.5487990456 | M19: 728.1308856
A20: 1613.747295 | B20: 881.832803 | C20: 22.30613798 | D20: -3.431440096 | E20: 29.00193668 | F20: 414.7330548 | G20: 398.5955819 | H20: 261.4270618 | I20: 237.2208524 | J20: 74.23237557 | K20: 311.4532279 | L20: 0.5464503679 | M20: 731.914492
A21: 1613.3737 | B21: 830.3604148 | C21: 23.54223496 | D21: 18.1871197 | E21: 17.18923701 | F21: 414.6370409 | G21: 398.5033039 | H21: 261.3665394 | I21: 237.1659339 | J21: 74.2151902 | K21: 311.3811241 | L21: 0.5146733301 | M21: 783.0132852
A22: 1543.644308 | B22: 821.8955841 | C22: 23.27959682 | D22: 5.921263429 | E22: -21.35823682 | F22: 396.7165872 | G22: 381.2801441 | H22: 250.0703779 | I22: 226.9157133 | J22: 71.00763817 | K22: 297.9233514 | L22: 0.5324384509 | M22: 721.7487239
A23: 1627.056252 | B23: 843.9797386 | C23: 24.25644403 | D23: -0.198905416 | E23: 16.39713778 | F23: 418.1534568 | G23: 401.8828942 | H23: 263.5831128 | I23: 239.177269 | J23: 74.84458759 | K23: 314.0218566 | L23: 0.5187157712 | M23: 783.0765134
A24: 1616.981968 | B24: 848.9842426 | C24: 24.75281323 | D24: -3.662267759 | E24: 42.10159172 | F24: 415.5643658 | G24: 399.3945461 | H24: 261.9510788 | I24: 237.6963493 | J24: 74.38117053 | K24: 312.0775198 | L24: 0.5250424924 | M24: 767.9977254
A25: 1653.718867 | B25: 876.3316909 | C25: 22.06006788 | D25: -18.34715147 | E25: 26.13185485 | F25: 425.0057488 | G25: 408.4685601 | H25: 267.9024565 | I25: 243.0966734 | J25: 76.07106788 | K25: 319.1677413 | L25: 0.5299157604 | M25: 777.3871761
A26: 1686.568639 | B26: 857.9311642 | C26: 25.95551425 | D26: -0.1997184 | E26: 12.24529435 | F26: 433.4481402 | G26: 416.5824538 | H26: 273.2241195 | I26: 247.9255899 | J26: 77.58215739 | K26: 325.5077473 | L26: 0.5086844048 | M26: 828.6374748
A27: 1647.496313 | B27: 877.4139327 | C27: 22.04460376 | D27: -2.802665291 | E27: -17.23666978 | F27: 423.4065524 | G27: 406.9315893 | H27: 266.8944027 | I27: 242.181958 | J27: 75.7848304 | K27: 317.9667884 | L27: 0.5325741404 | M27: 770.0823803
A28: 1610.838927 | B28: 810.2579157 | C28: 24.47528248 | D28: -1.187431813 | E28: -13.9190885 | F28: 413.9856042 | G28: 397.877215 | H28: 260.9559062 | I28: 236.7933223 | J28: 74.09859064 | K28: 310.8919129 | L28: 0.5030036847 | M28: 800.5810113
A29: 1719.203151 | B29: 886.3881371 | C29: 22.22985173 | D29: 9.305269202 | E29: 13.94652649 | F29: 441.8352098 | G29: 424.6431783 | H29: 278.5109105 | I29: 252.7228632 | J29: 79.08334495 | K29: 331.8062081 | L29: 0.5155808007 | M29: 832.8150139
A30: 1545.880105 | B30: 807.1587924 | C30: 19.11810851 | D30: 0.268867891 | E30: -1.746485062 | F30: 397.291187 | G30: 381.8323859 | H30: 250.432577 | I30: 227.2443754 | J30: 71.11048483 | K30: 298.3548603 | L30: 0.5221354423 | M30: 738.7213126
A31: 1580.121938 | B31: 845.7640033 | C31: 24.68411751 | D31: 10.38525267 | E31: -35.79076377 | F31: 406.0913381 | G31: 390.2901187 | H31: 255.979754 | I31: 232.2779249 | J31: 72.68560915 | K31: 304.963534 | L31: 0.5352523644 | M31: 734.3579347
A32: 1500.257933 | B32: 796.7755097 | C32: 24.40275081 | D32: -8.833917166 | E32: -21.26917055 | F32: 385.5662888 | G32: 370.5637095 | H32: 243.0417851 | I32: 220.5379162 | J32: 69.01186492 | K32: 289.5497811 | L32: 0.531092349 | M32: 703.4824233
A33: 1596.409428 | B33: 866.2974674 | C33: 22.29216987 | D33: -7.312840187 | E33: -1.927568882 | F33: 410.277223 | G33: 394.3131287 | H33: 258.6183273 | I33: 234.6721859 | J33: 73.43483369 | K33: 308.1070196 | L33: 0.5426536903 | M33: 730.1119606
A34: 1516.682829 | B34: 778.5421466 | C34: 21.17632084 | D34: 20.42116932 | E34: 4.549105332 | F34: 389.7874871 | G34: 374.6206588 | H34: 245.7026183 | I34: 222.9523759 | J34: 69.76741013 | K34: 292.719786 | L34: 0.5133190221 | M34: 738.1406824
A35: 1590.834942 | B35: 825.0901289 | C35: 26.45916777 | D35: -0.915907512 | E35: -12.63538585 | F35: 408.8445801 | G35: 392.9362307 | H35: 257.7152606 | I35: 233.8527365 | J35: 73.17840733 | K35: 307.0311438 | L35: 0.5186522543 | M35: 765.7448131
A36: 1714.720394 | B36: 898.6078784 | C36: 20.81595002 | D36: 21.50156831 | E36: -2.199739103 | F36: 440.6831413 | G36: 423.5359373 | H36: 277.7847038 | I36: 252.0638979 | J36: 78.87713812 | K36: 330.941036 | L36: 0.524055048 | M36: 816.1125156
A37: 1603.196494 | B37: 826.253178 | C37: 20.70146804 | D37: -10.98138445 | E37: -22.37842702 | F37: 412.021499 | G37: 395.989534 | H37: 259.717832 | I37: 235.6698846 | J37: 73.74703872 | K37: 309.4169233 | L37: 0.5153786084 | M37: 776.943316
A38: 1664.145215 | B38: 885.3284763 | C38: 20.48306914 | D38: 3.047778542 | E38: -42.07110301 | F38: 427.6853203 | G38: 411.0438681 | H38: 269.5915248 | I38: 244.6293466 | J38: 76.55067989 | K38: 321.1800265 | L38: 0.5320019361 | M38: 778.8167387
A39: 1692.003266 | B39: 843.4426411 | C39: 24.8550505 | D39: -2.96828147 | E39: -5.424365017 | F39: 434.8448394 | G39: 417.9248067 | H39: 274.1045291 | I39: 248.7244801 | J39: 77.83215024 | K39: 326.5566303 | L39: 0.4984875964 | M39: 848.5606249
A40: 1630.215187 | B40: 902.8314722 | C40: 21.83783854 | D40: 8.261150992 | E40: -7.861250623 | F40: 418.9653031 | G40: 402.6631512 | H40: 264.0948603 | I40: 239.6416325 | J40: 74.9898986 | K40: 314.6315311 | L40: 0.5538112265 | M40: 727.3837148
A41: 1570.157374 | B41: 801.8843376 | C41: 19.79432991 | D41: -6.157199642 | E41: 22.97769535 | F41: 403.5304451 | G41: 387.8288714 | H41: 254.3654946 | I41: 230.813134 | J41: 72.2272392 | K41: 303.0403732 | L41: 0.5107031632 | M41: 768.2730364
A42: 1620.405815 | B42: 846.5964582 | C42: 23.54641875 | D42: 2.144082291 | E42: -36.69001418 | F42: 416.4442945 | G42: 400.2402363 | H42: 262.505742 | I42: 238.1996548 | J42: 74.53866749 | K42: 312.7383223 | L42: 0.5224595286 | M42: 773.8093568
A43: 1723.441052 | B43: 873.4143779 | C43: 22.18248388 | D43: -1.140445975 | E43: -16.45695353 | F43: 442.9243504 | G43: 425.6899398 | H43: 279.1974504 | I43: 253.3458346 | J43: 79.27828839 | K43: 332.624123 | L43: 0.5067851766 | M43: 850.0266741
A44: 1635.797002 | B44: 833.0662716 | C44: 27.7513174 | D44: -1.687463611 | E44: 14.18664997 | F44: 420.3998295 | G44: 404.0418595 | H44: 264.9991143 | I44: 240.4621593 | J44: 75.24666209 | K44: 315.7088214 | L44: 0.509272404 | M44: 802.7307304
A45: 1701.921403 | B45: 868.9959319 | C45: 23.20335403 | D45: 2.641647495 | E45: -5.567974389 | F45: 437.3938006 | G45: 420.3745865 | H45: 275.7112673 | I45: 250.1824462 | J45: 78.28838454 | K45: 328.4708308 | L45: 0.510596982 | M45: 832.9254711
A46: 1588.200983 | B46: 805.3483478 | C46: 20.15744759 | D46: 3.46020654 | E46: -11.56345296 | F46: 408.1676526 | G46: 392.2856428 | H46: 257.2885592 | I46: 233.4655445 | J46: 73.05724522 | K46: 306.5227897 | L46: 0.5070821366 | M46: 782.8526352
A47: 1838.331421 | B47: 956.3839777 | C47: 23.24643676 | D47: -11.63834437 | E47: -15.02848974 | F47: 472.4511752 | G47: 454.067861 | H47: 297.8096902 | I47: 270.2347189 | J47: 84.56324537 | K47: 354.7979643 | L47: 0.5202456786 | M47: 881.9474433
A48: 1454.120366 | B48: 799.489279 | C48: 22.72001862 | D48: 10.55557338 | E48: -25.78255771 | F48: 373.7089341 | G48: 359.1677304 | H48: 235.5674993 | I48: 213.7556938 | J48: 66.88953684 | K48: 280.6452306 | L48: 0.5498095603 | M48: 654.631087
A49: 1583.662366 | B49: 830.351188 | C49: 25.5614732 | D49: -6.164179071 | E49: 38.48428857 | F49: 407.0012281 | G49: 391.1646044 | H49: 256.5533033 | I49: 232.7983678 | J49: 72.84846884 | K49: 305.6468366 | L49: 0.5243233696 | M49: 753.311178
A50: 1636.817217 | B50: 809.7014392 | C50: 24.77515244 | D50: -3.881280145 | E50: 32.28002248 | F50: 420.6620248 | G50: 404.2938526 | H50: 265.1643892 | I50: 240.6121309 | J50: 75.29359198 | K50: 315.9057229 | L50: 0.4946804266 | M50: 827.1157778
A51: 1656.186515 | B51: 846.5272089 | C51: 26.58676856 | D51: 10.34018928 | E51: -3.906348595 | F51: 425.6399344 | G51: 409.0780692 | H51: 268.3022154 | I51: 243.4594177 | J51: 76.18457969 | K51: 319.6439974 | L51: 0.5111303596 | M51: 809.6593061
A52: 1679.887729 | B52: 900.7968769 | C52: 19.71094505 | D52: -2.397078455 | E52: 9.147456466 | F52: 431.7311464 | G52: 414.9322691 | H52: 272.1418121 | I52: 246.9434962 | J52: 77.27483553 | K52: 324.2183317 | L52: 0.536224452 | M52: 779.0908521
A53: 1696.413599 | B53: 902.8455237 | C53: 23.80175321 | D53: 12.75950865 | E53: 5.997891972 | F53: 435.9782949 | G53: 419.014159 | H53: 274.819003 | I53: 249.3727991 | J53: 78.03502555 | K53: 327.4078246 | L53: 0.5322083743 | M53: 793.5680753
A54: 1583.045206 | B54: 803.1584396 | C54: 24.59299867 | D54: 3.211494891 | E54: 29.83815139 | F54: 406.8426179 | G54: 391.0121659 | H54: 256.4533234 | I54: 232.7076453 | J54: 72.82007948 | K54: 305.5277248 | L54: 0.507350287 | M54: 779.8867664
A55: 1672.057871 | B55: 888.9935019 | C55: 23.04704188 | D55: -6.339583672 | E55: -32.26430105 | F55: 429.7188728 | G55: 412.9982941 | H55: 270.8733751 | I55: 245.792507 | J55: 76.91466207 | K55: 322.7071691 | L55: 0.5316762759 | M55: 783.0643691
A56: 1567.511344 | B56: 846.7815068 | C56: 21.13754402 | D56: 11.65827669 | E56: 5.345503768 | F56: 402.8504154 | G56: 387.175302 | H56: 253.9368377 | I56: 230.4241676 | J56: 72.10552182 | K56: 302.5296894 | L56: 0.5402075781 | M56: 720.7298372
A57: 1580.274855 | B57: 826.3781713 | C57: 19.17193858 | D57: 0.802955582 | E57: 4.847124413 | F57: 406.1306377 | G57: 390.3278892 | H57: 256.0045265 | I57: 232.3004037 | J57: 72.69264333 | K57: 304.993047 | L57: 0.5229331902 | M57: 753.8966837
A58: 1560.223909 | B58: 843.7738493 | C58: 23.60175698 | D58: -5.565968299 | E58: 43.64918478 | F58: 400.9775446 | G58: 385.3753055 | H58: 252.7562733 | I58: 229.3529146 | J58: 71.77029981 | K58: 301.1232144 | L58: 0.5408030504 | M58: 716.4500597
A59: 1607.722893 | B59: 903.0309497 | C59: 25.81778248 | D59: 8.964372446 | E59: 20.29801354 | F59: 413.1847835 | G59: 397.1075546 | H59: 260.4511087 | I59: 236.3352653 | J59: 73.95525308 | K59: 310.2905183 | L59: 0.5616832065 | M59: 704.6919433
A60: 1585.800074 | B60: 822.6805967 | C60: 32.48167802 | D60: -3.493478315 | E60: -6.710465486 | F60: 407.550619 | G60: 391.6926183 | H60: 256.899612 | I60: 233.1126109 | J60: 72.9468034 | K60: 306.0594143 | L60: 0.5187795172 | M60: 763.1194773
A61: 1507.209106 | B61: 813.043146 | C61: 20.20437652 | D61: 1.558711382 | E61: 0.199443276 | F61: 387.3527402 | G61: 372.2806492 | H61: 244.1678752 | I61: 221.5597386 | J61: 69.33161888 | K61: 290.8913575 | L61: 0.5394361955 | M61: 694.16596
A62: 1674.856149 | B62: 879.6882623 | C62: 23.18337823 | D62: -1.6662975 | E62: -6.572256932 | F62: 430.4380303 | G62: 413.6894688 | H62: 271.3266961 | I62: 246.2038539 | J62: 77.04338285 | K62: 323.2472368 | L62: 0.5252321298 | M62: 795.1678867
A63: 1621.343751 | B63: 848.3138275 | C63: 23.44513377 | D63: 3.135817344 | E63: -22.95515834 | F63: 416.685344 | G63: 400.4719065 | H63: 262.6576877 | I63: 238.3375314 | J63: 74.58181255 | K63: 312.9193439 | L63: 0.5232165153 | M63: 773.0299235
A64: 1669.314479 | B64: 885.9255078 | C64: 26.70641574 | D64: -7.875508092 | E64: -9.653030365 | F64: 429.0138211 | G64: 412.3206763 | H64: 270.4289456 | I64: 245.3892284 | J64: 76.78846603 | K64: 322.1776944 | L64: 0.5307121689 | M64: 783.3889712
A65: 1673.56268 | B65: 853.0437771 | C65: 23.19512893 | D65: -5.604440426 | E65: -26.38560359 | F65: 430.1056088 | G65: 413.369982 | H65: 271.1171542 | I65: 246.013714 | J65: 76.98388328 | K65: 322.9975972 | L65: 0.5097172561 | M65: 820.5189029
A66: 1625.536448 | B66: 861.8394638 | C66: 24.42617814 | D66: -5.74419453 | E66: 17.27449503 | F66: 417.7628671 | G66: 401.5075027 | H66: 263.3369046 | I66: 238.9538579 | J66: 74.77467661 | K66: 313.7285345 | L66: 0.5301877204 | M66: 763.6969842
A67: 1646.578572 | B67: 842.8441748 | C67: 24.53942107 | D67: 1.465625482 | E67: -27.59159076 | F67: =A67*0.257 -> 423.170693 | G67: =A67*0.247 -> 406.7049073 | H67: =A67*0.162 -> 266.7457287 | I67: =A67*0.147 -> 242.0470501 | J67: =A67*0.046 -> 75.74261431 | K67: =I67+J67 -> 317.7896644 | L67: =B67/A67 -> 0.5118760739 | M67: =A67-B67 -> 803.7343972
A68: 1608.84807 | B68: 782.2475451 | C68: 27.16336549 | D68: 5.040116261 | E68: 12.86319027 | F68: 413.473954 | G68: 397.3854733 | H68: 260.6333873 | I68: 236.5006663 | J68: 74.00701122 | K68: 310.5076775 | L68: 0.4862159204 | M68: 826.6005249
A69: 1678.284654 | B69: 929.376905 | C69: 27.59655261 | D69: -16.00882037 | E69: 0.512432012 | F69: 431.3191561 | G69: 414.5363095 | H69: 271.8821139 | I69: 246.7078441 | J69: 77.20109408 | K69: 323.9089382 | L69: 0.5537659555 | M69: 748.907749
A70: 1706.526458 | B70: 895.858602 | C70: 22.70169158 | D70: -9.734276061 | E70: 27.22536594 | F70: 438.5772997 | G70: 421.5120351 | H70: 276.4572862 | I70: 250.8593893 | J70: 78.50021707 | K70: 329.3596064 | L70: 0.5249602769 | M70: 810.667856
A71: 1642.074594 | B71: 870.4828985 | C71: 19.21171499 | D71: 8.439482701 | E71: 3.987159043 | F71: 422.0131707 | G71: 405.5924247 | H71: 266.0160842 | I71: 241.3849653 | J71: 75.53543132 | K71: 316.9203966 | L71: 0.5301116659 | M71: 771.5916955
A72: 1647.766553 | B72: 856.4703553 | C72: 22.0873853 | D72: -8.722952725 | E72: 22.80694904 | F72: 423.4760041 | G72: 406.9983386 | H72: 266.9381816 | I72: 242.2216833 | J72: 75.79726144 | K72: 318.0189447 | L72: 0.5197765143 | M72: 791.2961977
A73: 1712.128639 | B73: 914.199329 | C73: 17.6838575 | D73: -7.705881628 | E73: 12.50526994 | F73: 440.0170602 | G73: 422.8957738 | H73: 277.3648395 | I73: 251.6829099 | J73: 78.75791739 | K73: 330.4408273 | L73: 0.533954814 | M73: 797.92931
A74: 1539.020433 | B74: 842.2581434 | C74: 22.43767954 | D74: 3.977034849 | E74: 2.97776483 | F74: 395.5282513 | G74: 380.138047 | H74: 249.3213101 | I74: 226.2360037 | J74: 70.79493992 | K74: 297.0309436 | L74: 0.5472689805 | M74: 696.7622896
A75: 1678.102867 | B75: 913.7249266 | C75: 21.65616612 | D75: -3.764690607 | E75: 30.54296889 | F75: 431.2724368 | G75: 414.4914081 | H75: 271.8526645 | I75: 246.6811214 | J75: 77.19273188 | K75: 323.8738533 | L75: 0.5444987578 | M75: 764.3779404
A76: 1665.453575 | B76: 879.8005507 | C76: 23.32829991 | D76: -1.572635614 | E76: -7.346466576 | F76: 428.0215688 | G76: 411.367033 | H76: 269.8034791 | I76: 244.8216755 | J76: 76.61086445 | K76: 321.43254 | L76: 0.5282648306 | M76: 785.6530243
A77: 1655.801131 | B77: 858.3779391 | C77: 22.09033216 | D77: -0.500075359 | E77: 23.2893355 | F77: 425.5408907 | G77: 408.9828794 | H77: 268.2397832 | I77: 243.4027663 | J77: 76.16685203 | K77: 319.5696183 | L77: 0.5184064215 | M77: 797.4231919
A78: 1649.734867 | B78: 860.5891837 | C78: 30.01815046 | D78: 9.429389011 | E78: 9.427198935 | F78: 423.9818608 | G78: 407.4845121 | H78: 267.2570485 | I78: 242.5110254 | J78: 75.88780388 | K78: 318.3988293 | L78: 0.5216530249 | M78: 789.1456833
A79: 1664.814354 | B79: 854.8749502 | C79: 16.09153644 | D79: 4.667141158 | E79: 25.21962005 | F79: 427.857289 | G79: 411.2091454 | H79: 269.6999253 | I79: 244.72771 | J79: 76.58146028 | K79: 321.3091703 | L79: 0.5134956628 | M79: 809.9394038
A80: 1561.226154 | B80: 824.9720021 | C80: 26.3460777 | D80: 9.255999151 | E80: 21.64777156 | F80: 401.2351216 | G80: 385.62286 | H80: 252.9186369 | I80: 229.5002446 | J80: 71.81640308 | K80: 301.3166477 | L80: 0.528412876 | M80: 736.2541519
A81: 1599.549981 | B81: 867.935926 | C81: 20.65036996 | D81: -9.388813211 | E81: 10.12112705 | F81: 411.0843451 | G81: 395.0888453 | H81: 259.1270969 | I81: 235.1338472 | J81: 73.57929913 | K81: 308.7131463 | L81: 0.54261257 | M81: 731.614055
A82: 1650.625 | B82: 878.8983016 | C82: 24.64811917 | D82: -4.231843307 | E82: 27.46245124 | F82: 424.210625 | G82: 407.704375 | H82: 267.40125 | I82: 242.641875 | J82: 75.92875 | K82: 318.570625 | L82: 0.5324639464 | M82: 771.7266984
A83: 1626.998153 | B83: 866.5052796 | C83: 20.84114036 | D83: 1.23421661 | E83: -22.79390522 | F83: 418.1385253 | G83: 401.8685438 | H83: 263.5737008 | I83: 239.1687285 | J83: 74.84191504 | K83: 314.0106435 | L83: 0.5325791415 | M83: 760.4928734
A84: 1627.280979 | B84: 864.3089737 | C84: 20.597496 | D84: -6.274288568 | E84: 1.806269413 | F84: 418.2112116 | G84: 401.9384018 | H84: 263.6195186 | I84: 239.2103039 | J84: 74.85492503 | K84: 314.0652289 | L84: 0.5311368994 | M84: 762.9720053
A85: 1532.678087 | B85: 845.9944409 | C85: 26.32171971 | D85: 7.179946546 | E85: -30.46447573 | F85: 393.8982684 | G85: 378.5714875 | H85: 248.2938501 | I85: 225.3036788 | J85: 70.503192 | K85: 295.8068708 | L85: 0.5519713814 | M85: 686.6836461
A86: 1681.581289 | B86: 856.8222346 | C86: 23.78149937 | D86: -0.980269983 | E86: -32.67722309 | F86: 432.1663913 | G86: 415.3505784 | H86: 272.4161688 | I86: 247.1924495 | J86: 77.35273929 | K86: 324.5451888 | L86: 0.5095336397 | M86: 824.7590544
A87: 1512.355017 | B87: 781.8434791 | C87: 26.18704263 | D87: 5.089998345 | E87: -23.06011656 | F87: 388.6752394 | G87: 373.5516892 | H87: 245.0015128 | I87: 222.3161875 | J87: 69.56833078 | K87: 291.8845183 | L87: 0.5169708635 | M87: 730.5115379
A88: 1564.323772 | B88: 844.0897405 | C88: 22.21925864 | D88: 4.962688729 | E88: -17.29121325 | F88: 402.0312094 | G88: 386.3879717 | H88: 253.4204511 | I88: 229.9555945 | J88: 71.95889351 | K88: 301.914488 | L88: 0.5395876197 | M88: 720.2340315
A89: 1670.037005 | B89: 885.5321284 | C89: 26.77903786 | D89: -8.270923565 | E89: -1.003515257 | F89: 429.1995103 | G89: 412.4991402 | H89: 270.5459948 | I89: 245.4954397 | J89: 76.82170223 | K89: 322.317142 | L89: 0.5302470099 | M89: 784.5048766
A90: 1661.358191 | B90: 853.9771641 | C90: 21.02057648 | D90: -3.538153102 | E90: -11.2811035 | F90: 426.9690551 | G90: 410.3554732 | H90: 269.1400269 | I90: 244.2196541 | J90: 76.42247679 | K90: 320.6421309 | L90: 0.5140235072 | M90: 807.3810269
A91: 1572.033434 | B91: 828.4276087 | C91: 22.78147884 | D91: 1.59736339 | E91: 11.28244251 | F91: 404.0125925 | G91: 388.2922582 | H91: 254.6694163 | I91: 231.0889148 | J91: 72.31353796 | K91: 303.4024528 | L91: 0.526978365 | M91: 743.6058253
A92: 1533.205081 | B92: 781.4947019 | C92: 21.44853672 | D92: -20.64301088 | E92: 40.39103091 | F92: 394.0337058 | G92: 378.701655 | H92: 248.3792231 | I92: 225.3811469 | J92: 70.52743373 | K92: 295.9085806 | L92: 0.5097130916 | M92: 751.7103791
A93: 1812.571011 | B93: 944.9380186 | C93: 19.7144162 | D93: -3.716880403 | E93: 32.30446075 | F93: 465.8307498 | G93: 447.7050397 | H93: 293.6365038 | I93: 266.4479386 | J93: 83.37826651 | K93: 349.8262051 | L93: 0.521324689 | M93: 867.6329924
A94: 1589.916057 | B94: 816.8683539 | C94: 24.87729404 | D94: 2.182950811 | E94: -30.48683561 | F94: 408.6084266 | G94: 392.7092661 | H94: 257.5664012 | I94: 233.7176604 | J94: 73.13613862 | K94: 306.853799 | L94: 0.5137808064 | M94: 773.0477031
A95: 1611.423197 | B95: 844.1426744 | C95: 23.06155568 | D95: 11.64393744 | E95: -41.55043234 | F95: 414.1357616 | G95: 398.0215297 | H95: 261.0505579 | I95: 236.87921 | J95: 74.12546706 | K95: 311.004677 | L95: 0.5238491515 | M95: 767.2805226
A96: 1553.59031 | B96: 788.801172 | C96: 30.60761542 | D96: -6.510156177 | E96: -31.82771632 | F96: 399.2727097 | G96: 383.7368066 | H96: 251.6816302 | I96: 228.3777756 | J96: 71.46515426 | K96: 299.8429298 | L96: 0.507727917 | M96: 764.789138
A97: 1676.174085 | B97: 891.6070372 | C97: 17.2242021 | D97: 2.686699178 | E97: -32.15663605 | F97: 430.7767398 | G97: 414.014999 | H97: 271.5402018 | I97: 246.3975905 | J97: 77.10400791 | K97: 323.5015984 | L97: 0.5319298545 | M97: 784.5670478
A98: 1542.235615 | B98: 811.6725188 | C98: 24.48556974 | D98: 0.779037671 | E98: -23.98505303 | F98: 396.3545531 | G98: 380.9321969 | H98: 249.8421696 | I98: 226.7086354 | J98: 70.94283829 | K98: 297.6514737 | L98: 0.5262960542 | M98: 730.5630962
A99: 1540.514235 | B99: 818.8730736 | C99: 19.98114871 | D99: -4.226528377 | E99: 0.717182537 | F99: 395.9121584 | G99: 380.507016 | H99: 249.5633061 | I99: 226.4555925 | J99: 70.86365481 | K99: 297.3192474 | L99: 0.5315582648 | M99: 721.6411614
A100: 1651.135601 | B100: 847.5148601 | C100: 23.70627854 | D100: -2.097331009 | E100: 31.74782266 | F100: 424.3418495 | G100: 407.8304934 | H100: 267.4839674 | I100: 242.7169333 | J100: 75.95223765 | K100: 318.669171 | L100: 0.5132921 | M100: 803.6207409
A101: 1612.30794 | B101: 857.9228633 | C101: 24.97861285 | D101: -0.688065756 | E101: -8.90342277 | F101: 414.3631406 | G101: 398.2400612 | H101: 261.1938863 | I101: 237.0092672 | J101: 74.16616524 | K101: 311.1754324 | L101: 0.5321085644 | M101: 754.3850767
A102: 1603.914342 | B102: 821.9045709 | C102: 24.61710168 | D102: 1.210555449 | E102: 18.29478239 | F102: 412.2059859 | G102: 396.1668425 | H102: 259.8341234 | I102: 235.7754083 | J102: 73.78005973 | K102: 309.555468 | L102: 0.512436699 | M102: 782.0097711
A103: 1503.205908 | B103: 787.2163333 | C103: 22.218351 | D103: -2.83793807 | E103: 29.28284831 | F103: 386.3239184 | G103: 371.2918593 | H103: 243.5193571 | I103: 220.9712685 | J103: 69.14747177 | K103: 290.1187402 | L103: 0.5236916174 | M103: 715.9895747
A104: 1678.560018 | B104: 874.9334995 | C104: 25.07831823 | D104: -11.44755651 | E104: -0.035544344 | F104: 431.3899246 | G104: 414.6043244 | H104: 271.9267229 | I104: 246.7483226 | J104: 77.21376083 | K104: 323.9620835 | L104: 0.5212405217 | M104: 803.6265185
A105: 1540.631394 | B105: 807.4501276 | C105: 19.45473105 | D105: 14.68319032 | E105: 36.84202814 | F105: 395.9422683 | G105: 380.5359543 | H105: 249.5822858 | I105: 226.4728149 | J105: 70.86904412 | K105: 297.341859 | L105: 0.5241033843 | M105: 733.1812664
A106: 1610.180994 | B106: 820.9532195 | C106: 22.87132917 | D106: 7.752221401 | E106: -14.3028017 | F106: 413.8165155 | G106: 397.7147055 | H106: 260.849321 | I106: 236.6966061 | J106: 74.06832572 | K106: 310.7649318 | L106: 0.5098515152 | M106: 789.2277745
A107: 1592.399513 | B107: 848.393974 | C107: 21.30463444 | D107: -3.604317692 | E107: 21.20601659 | F107: 409.2466748 | G107: 393.3226797 | H107: 257.9687211 | I107: 234.0827284 | J107: 73.2503776 | K107: 307.333106 | L107: 0.5327770871 | M107: 744.005539
A108: 1590.413928 | B108: 789.7006938 | C108: 23.60942694 | D108: 1.219745559 | E108: 19.94395255 | F108: 408.7363795 | G108: 392.8322402 | H108: 257.6470563 | I108: 233.7908474 | J108: 73.15904069 | K108: 306.9498881 | L108: 0.4965378383 | M108: 800.7132342
A109: 1634.741333 | B109: 857.6453239 | C109: 20.79276254 | D109: 1.854444426 | E109: 16.37024814 | F109: 420.1285226 | G109: 403.7811093 | H109: 264.8280959 | I109: 240.306976 | J109: 75.19810132 | K109: 315.5050773 | L109: 0.5246367157 | M109: 777.0960091
A110: 1696.846763 | B110: 909.2463087 | C110: 23.03624085 | D110: 2.530573254 | E110: -16.45054387 | F110: 436.0896181 | G110: 419.1211505 | H110: 274.8891756 | I110: 249.4364742 | J110: 78.0549511 | K110: 327.4914253 | L110: 0.5358446788 | M110: 787.6004543
A111: 1604.528146 | B111: 835.4536527 | C111: 23.1299993 | D111: 1.43616519 | E111: -28.56813905 | F111: 412.3637335 | G111: 396.3184521 | H111: 259.9335597 | I111: 235.8656375 | J111: 73.80829472 | K111: 309.6739322 | L111: 0.520684947 | M111: 769.0744933
A112: 1704.754241 | B112: 862.3157595 | C112: 29.89959874 | D112: 6.586484377 | E112: -4.817402725 | F112: 438.1218399 | G112: 421.0742975 | H112: 276.170187 | I112: 250.5988734 | J112: 78.41869509 | K112: 329.0175685 | L112: 0.5058299541 | M112: 842.4384815
A113: 1562.322225 | B113: 822.8720337 | C113: 22.73136844 | D113: -2.969976873 | E113: 9.490405594 | F113: 401.5168118 | G113: 385.8935896 | H113: 253.0962004 | I113: 229.6613671 | J113: 71.86682235 | K113: 301.5281894 | L113: 0.5266980272 | M113: 739.4501913
A114: 1656.098846 | B114: 836.8104677 | C114: 20.60367682 | D114: 6.946411717 | E114: 36.90857888 | F114: 425.6174034 | G114: 409.056415 | H114: 268.2880131 | I114: 243.4465304 | J114: 76.18054692 | K114: 319.6270773 | L114: 0.5052901702 | M114: 819.2883783
A115: 1582.341861 | B115: 810.7493363 | C115: 27.62366484 | D115: 11.63735207 | E115: 5.23311184 | F115: 406.6618583 | G115: 390.8384397 | H115: 256.3393815 | I115: 232.6042536 | J115: 72.78772561 | K115: 305.3919792 | L115: 0.5123730568 | M115: 771.5925247
A116: 1520.259088 | B116: 805.2199963 | C116: 24.87311508 | D116: -2.730952239 | E116: -5.093303389 | F116: 390.7065856 | G116: 375.5039947 | H116: 246.2819723 | I116: 223.4780859 | J116: 69.93191805 | K116: 293.410004 | L116: 0.5296597157 | M116: 715.0390917
A117: 1707.063197 | B117: 865.7461819 | C117: 23.86281423 | D117: 11.76469892 | E117: -21.17041905 | F117: 438.7152416 | G117: 421.6446097 | H117: 276.5442379 | I117: 250.93829 | J117: 78.52490706 | K117: 329.463197 | L117: 0.50715532 | M117: 841.3170151
A118: 1810.796038 | B118: 932.1388869 | C118: 24.08750627 | D118: -2.923627336 | E118: 29.13844097 | F118: 465.3745818 | G118: 447.2666214 | H118: 293.3489582 | I118: 266.1870176 | J118: 83.29661775 | K118: 349.4836353 | L118: 0.5147674654 | M118: 878.6571511
A119: 1547.554295 | B119: 817.9246134 | C119: 23.64741991 | D119: 4.10322743 | E119: 23.65037066 | F119: 397.7214538 | G119: 382.2459109 | H119: 250.7037958 | I119: 227.4904814 | J119: 71.18749757 | K119: 298.6779789 | L119: 0.5285272485 | M119: 729.6296816
A120: 1623.880005 | B120: 844.7122522 | C120: 23.9084595 | D120: -17.85310133 | E120: -12.67290182 | F120: 417.3371613 | G120: 401.0983612 | H120: 263.0685608 | I120: 238.7103607 | J120: 74.69848023 | K120: 313.408841 | L120: 0.5201814479 | M120: 779.1677528
A121: 1701.455673 | B121: 890.407306 | C121: 27.44461564 | D121: 4.544232508 | E121: 14.00267874 | F121: 437.274108 | G121: 420.2595512 | H121: 275.635819 | I121: 250.1139839 | J121: 78.26696096 | K121: 328.3809449 | L121: 0.5233208952 | M121: 811.048367
A122: 1527.946283 | B122: 800.1671643 | C122: 24.80579275 | D122: 5.290600551 | E122: 7.598030566 | F122: 392.6821947 | G122: 377.4027319 | H122: 247.5272978 | I122: 224.6081036 | J122: 70.28552902 | K122: 294.8936326 | L122: 0.5236880205 | M122: 727.7791187
A123: 1611.818685 | B123: 837.8093921 | C123: 25.75823991 | D123: 11.89220789 | E123: 6.221961574 | F123: 414.237402 | G123: 398.1192152 | H123: 261.114627 | I123: 236.9373467 | J123: 74.14365951 | K123: 311.0810062 | L123: 0.5197913388 | M123: 774.0092929
A124: 1608.531145 | B124: 836.2446884 | C124: 24.38228967 | D124: -5.162589698 | E124: 4.643110916 | F124: 413.3925043 | G124: 397.3071928 | H124: 260.5820455 | I124: 236.4540783 | J124: 73.99243267 | K124: 310.446511 | L124: 0.5198809429 | M124: 772.2864566
A125: 1685.816716 | B125: 895.2940721 | C125: 28.24388905 | D125: 11.91157515 | E125: -15.60055914 | F125: 433.254896 | G125: 416.3967289 | H125: 273.102308 | I125: 247.8150573 | J125: 77.54756894 | K125: 325.3626262 | L125: 0.5310743829 | M125: 790.5226439
A126: 1560.989214 | B126: 835.9366098 | C126: 24.90203335 | D126: 4.035675113 | E126: 4.272878498 | F126: 401.174228 | G126: 385.5643359 | H126: 252.8802527 | I126: 229.4654145 | J126: 71.80550384 | K126: 301.2709183 | L126: 0.5355172235 | M126: 725.0526042
A127: 1467.477543 | B127: 841.5279762 | C127: 25.22592527 | D127: 3.907602311 | E127: 18.95403495 | F127: 377.1417286 | G127: 362.4669531 | H127: 237.731362 | I127: 215.7191988 | J127: 67.50396698 | K127: 283.2231658 | L127: 0.5734520301 | M127: 625.9495668
A128: 1653.803146 | B128: 847.134019 | C128: 20.34432178 | D128: -5.977859914 | E128: 3.248797186 | F128: 425.0274085 | G128: 408.4893771 | H128: 267.9161097 | I128: 243.1090625 | J128: 76.07494472 | K128: 319.1840072 | L128: 0.5122338901 | M128: 806.669127
A129: 1641.409139 | B129: 870.6034617 | C129: 21.14079627 | D129: 6.073573774 | E129: -60.45410138 | F129: 421.8421487 | G129: 405.4280573 | H129: 265.9082805 | I129: 241.2871434 | J129: 75.50482039 | K129: 316.7919638 | L129: 0.5304000331 | M129: 770.8056773
A130: 1606.229985 | B130: 838.3892034 | C130: 22.51376533 | D130: 13.88240448 | E130: -35.67701658 | F130: 412.8011061 | G130: 396.7388063 | H130: 260.2092576 | I130: 236.1158078 | J130: 73.88657931 | K130: 310.0023871 | L130: 0.5219608719 | M130: 767.8407816
A131: 1553.219465 | B131: 828.9336512 | C131: 21.31128323 | D131: -0.403905331 | E131: -34.30169415 | F131: =A131*0.257 -> 399.1774025 | G131: =A131*0.247 -> 383.6452079 | H131: =A131*0.162 -> 251.6215533 | I131: =A131*0.147 -> 228.3232614 | J131: =A131*0.046 -> 71.44809539 | K131: =I131+J131 -> 299.7713567 | L131: =B131/A131 -> 0.5336873957 | M131: =A131-B131 -> 724.2858138
A132: 1644.614701 | B132: 859.3958306 | C132: 22.37770171 | D132: 1.661166712 | E132: 5.728819344 | F132: 422.6659782 | G132: 406.2198311 | H132: 266.4275816 | I132: 241.758361 | J132: 75.65227625 | K132: 317.4106373 | L132: 0.5225514706 | M132: 785.2188704
A133: 1619.302619 | B133: 843.2614751 | C133: 25.1289159 | D133: -4.309560155 | E133: -20.38074884 | F133: 416.1607731 | G133: 399.9677469 | H133: 262.3270243 | I133: 238.037485 | J133: 74.48792047 | K133: 312.5254055 | L133: 0.5207559509 | M133: 776.0411439
A134: 1672.099737 | B134: 833.4022251 | C134: 25.36464074 | D134: -8.946728552 | E134: -41.22128206 | F134: 429.7296324 | G134: 413.008635 | H134: 270.8801574 | I134: 245.7986613 | J134: 76.9165879 | K134: 322.7152492 | L134: 0.4984165757 | M134: 838.6975119
A135: 1564.219329 | B135: 804.6262363 | C135: 20.70086299 | D135: 10.70537088 | E135: -10.17740186 | F135: 402.0043676 | G135: 386.3621743 | H135: 253.4035313 | I135: 229.9402414 | J135: 71.95408913 | K135: 301.8943305 | L135: 0.5143947664 | M135: 759.5930927
A136: 1704.117842 | B136: 890.0540076 | C136: 23.79991929 | D136: 7.809623043 | E136: -25.26672727 | F136: 437.9582854 | G136: 420.917107 | H136: 276.0670904 | I136: 250.5053228 | J136: 78.38942073 | K136: 328.8947435 | L136: 0.5222960441 | M136: 814.0638344
A137: 1472.179436 | B137: 752.6013719 | C137: 22.44283453 | D137: -6.954993185 | E137: 12.11212627 | F137: 378.3501151 | G137: 363.6283207 | H137: 238.4930686 | I137: 216.4103771 | J137: 67.72025406 | K137: 284.1306311 | L137: 0.511215789 | M137: 719.5780641
A138: 1482.649692 | B138: 770.0437662 | C138: 20.6671331 | D138: -14.36288082 | E138: -30.91457454 | F138: 381.0409708 | G138: 366.2144739 | H138: 240.1892501 | I138: 217.9495047 | J138: 68.20188583 | K138: 286.1513906 | L138: 0.5193699971 | M138: 712.6059258
A139: 1751.407523 | B139: 875.7489737 | C139: 24.37328759 | D139: -10.20610493 | E139: 1.19165471 | F139: 450.1117334 | G139: 432.5976582 | H139: 283.7280187 | I139: 257.4569059 | J139: 80.56474606 | K139: 338.0216519 | L139: 0.5000258148 | M139: 875.6585493
A140: 1657.989774 | B140: 871.4422091 | C140: 22.30057393 | D140: -8.457245337 | E140: 18.11036046 | F140: 426.1033719 | G140: 409.5234742 | H140: 268.5943434 | I140: 243.7244968 | J140: 76.2675296 | K140: 319.9920264 | L140: 0.5256016791 | M140: 786.5475649
A141: 1549.828866 | B141: 822.1387972 | C141: 27.09035948 | D141: -6.552112249 | E141: 2.974094873 | F141: 398.3060186 | G141: 382.8077299 | H141: 251.0722763 | I141: 227.8248433 | J141: 71.29212784 | K141: 299.1169711 | L141: 0.530470696 | M141: 727.6900688
A142: 1617.45051 | B142: 848.7490221 | C142: 24.03755505 | D142: -9.541874447 | E142: -9.690004137 | F142: 415.6847811 | G142: 399.510276 | H142: 262.0269826 | I142: 237.765225 | J142: 74.40272346 | K142: 312.1679484 | L142: 0.5247449717 | M142: 768.7014879
A143: 1639.376843 | B143: 851.5797333 | C143: 26.91527217 | D143: 18.79922061 | E143: -21.77407883 | F143: 421.3198487 | G143: 404.9260802 | H143: 265.5790486 | I143: 240.9883959 | J143: 75.41133478 | K143: 316.3997307 | L143: 0.5194533136 | M143: 787.7971097
A144: 1621.715011 | B144: 857.943568 | C144: 22.95973876 | D144: 4.382280002 | E144: 32.16010141 | F144: 416.7807578 | G144: 400.5636077 | H144: 262.7178318 | I144: 238.3921066 | J144: 74.59889051 | K144: 312.9909971 | L144: 0.5290347331 | M144: 763.771443
A145: 1601.347294 | B145: 849.5595918 | C145: 22.26423582 | D145: 10.45890569 | E145: 31.0010533 | F145: 411.5462546 | G145: 395.5327816 | H145: 259.4182616 | I145: 235.3980522 | J145: 73.66197552 | K145: 309.0600277 | L145: 0.5305280091 | M145: 751.7877022
A146: 1626.779063 | B146: 854.7337521 | C146: 30.41331571 | D146: 1.918627596 | E146: 17.049226 | F146: 418.0822192 | G146: 401.8144286 | H146: 263.5382082 | I146: 239.1365223 | J146: 74.8318369 | K146: 313.9683592 | L146: 0.525414773 | M146: 772.0453109
A147: 1651.448858 | B147: 836.8097604 | C147: 24.24245297 | D147: 0.914326715 | E147: -30.78522892 | F147: 424.4223565 | G147: 407.9078679 | H147: 267.534715 | I147: 242.7629821 | J147: 75.96664747 | K147: 318.7296296 | L147: 0.5067124885 | M147: 814.6390976
A148: 1585.561268 | B148: 853.6184006 | C148: 20.17541781 | D148: -19.45761402 | E148: 0.390404373 | F148: 407.4892459 | G148: 391.6336332 | H148: 256.8609254 | I148: 233.0775064 | J148: 72.93581833 | K148: 306.0133247 | L148: 0.5383698617 | M148: 731.9428674
A149: 1562.850904 | B149: 824.5030183 | C149: 22.93748173 | D149: 15.18179477 | E149: 11.69526186 | F149: 401.6526823 | G149: 386.0241733 | H149: 253.1818464 | I149: 229.7390829 | J149: 71.89114158 | K149: 301.6302245 | L149: 0.5275634523 | M149: 738.3478857
A150: 1645.011711 | B150: 878.592705 | C150: 22.08964308 | D150: -5.791648037 | E150: 18.76607111 | F150: 422.7680097 | G150: 406.3178926 | H150: 266.4918972 | I150: 241.8167215 | J150: 75.67053871 | K150: 317.4872602 | L150: 0.5340951065 | M150: 766.419006
A151: 1646.610316 | B151: 846.3725607 | C151: 23.66034438 | D151: 4.741919434 | E151: -10.10775074 | F151: 423.1788512 | G151: 406.7127481 | H151: 266.7508712 | I151: 242.0517165 | J151: 75.74407454 | K151: 317.795791 | L151: 0.5140090236 | M151: 800.2377553
A152: 1591.741121 | B152: 833.2732849 | C152: 24.10603803 | D152: -2.329774123 | E152: -67.61227163 | F152: 409.0774681 | G152: 393.1600569 | H152: 257.8620616 | I152: 233.9859448 | J152: 73.22009157 | K152: 307.2060364 | L152: 0.5234979947 | M152: 758.4678361
A153: 1621.350985 | B153: 813.6334093 | C153: 25.20718099 | D153: 0.191237815 | E153: 7.436025791 | F153: 416.6872031 | G153: 400.4736933 | H153: 262.6588596 | I153: 238.3385948 | J153: 74.58214531 | K153: 312.9207401 | L153: 0.5018243532 | M153: 807.7175757
A154: 1594.185801 | B154: 849.2488983 | C154: 18.67860527 | D154: -6.602706221 | E154: -12.24971733 | F154: 409.7057509 | G154: 393.7638928 | H154: 258.2580998 | I154: 234.3453127 | J154: 73.33254685 | K154: 307.6778596 | L154: 0.5327163859 | M154: 744.9369027
A155: 1715.786084 | B155: 858.65407 | C155: 24.36301959 | D155: 3.67922378 | E155: -33.95002104 | F155: 440.9570236 | G155: 423.7991627 | H155: 277.9573456 | I155: 252.2205543 | J155: 78.92615986 | K155: 331.1467142 | L155: 0.5004435448 | M155: 857.132014
A156: 1595.434933 | B156: 814.5004334 | C156: 20.37807063 | D156: -12.31386841 | E156: -7.54350959 | F156: 410.0267778 | G156: 394.0724285 | H156: 258.4604591 | I156: 234.5289352 | J156: 73.39000692 | K156: 307.9189421 | L156: 0.5105193678 | M156: 780.9344996
A157: 1661.760207 | B157: 849.8204831 | C157: 19.92342406 | D157: 2.341543942 | E157: -34.14777997 | F157: 427.0723732 | G157: 410.4547711 | H157: 269.2051535 | I157: 244.2787504 | J157: 76.44096952 | K157: 320.71972 | L157: 0.5113977814 | M157: 811.9397239
A158: 1615.193308 | B158: 857.9686109 | C158: 20.3660378 | D158: 1.063611544 | E158: 9.521969621 | F158: 415.1046802 | G158: 398.9527471 | H158: 261.6613159 | I158: 237.4334163 | J158: 74.29889217 | K158: 311.7323084 | L158: 0.5311863333 | M158: 757.2246971
A159: 1567.597768 | B159: 815.0638398 | C159: 20.75371026 | D159: -13.93006213 | E159: -2.150168713 | F159: 402.8726264 | G159: 387.1966487 | H159: 253.9508384 | I159: 230.4368719 | J159: 72.10949733 | K159: 302.5463692 | L159: 0.5199445013 | M159: 752.5339282
A160: 1643.296158 | B160: 872.4330921 | C160: 25.81912699 | D160: 14.48057908 | E160: -0.367810921 | F160: 422.3271126 | G160: 405.894151 | H160: 266.2139776 | I160: 241.5645352 | J160: 75.59162327 | K160: 317.1561585 | L160: 0.5309043582 | M160: 770.8630659
A161: 1604.185205 | B161: 862.0637509 | C161: 25.14228366 | D161: -6.384478304 | E161: -7.912192198 | F161: 412.2755977 | G161: 396.2337456 | H161: 259.8780032 | I161: 235.8152251 | J161: 73.79251943 | K161: 309.6077446 | L161: 0.53738418 | M161: 742.1214541
A162: 1544.979244 | B162: 780.1423733 | C162: 20.44946323 | D162: -1.471218619 | E162: 8.734454888 | F162: 397.0596657 | G162: 381.6098733 | H162: 250.2866375 | I162: 227.1119489 | J162: 71.06904522 | K162: 298.1809941 | L162: 0.5049533036 | M162: 764.8368707
A163: 1649.211684 | B163: 831.2114125 | C163: 23.73944135 | D163: -6.69945282 | E163: 0.744334228 | F163: 423.8474028 | G163: 407.3552859 | H163: 267.1722928 | I163: 242.4341175 | J163: 75.86373746 | K163: 318.297855 | L163: 0.5040052897 | M163: 818.0002715
A164: 1561.841498 | B164: 828.0015259 | C164: 20.54184776 | D164: 4.403388929 | E164: 18.24089718 | F164: 401.393265 | G164: 385.77485 | H164: 253.0183227 | I164: 229.5907002 | J164: 71.84470891 | K164: 301.4354091 | L164: 0.5301444013 | M164: 733.8399721
A165: 1781.763683 | B165: 874.6467116 | C165: 22.74709616 | D165: -7.494204826 | E165: 3.994296943 | F165: 457.9132665 | G165: 440.0956297 | H165: 288.6457166 | I165: 261.9192614 | J165: 81.96112942 | K165: 343.8803908 | L165: 0.4908881688 | M165: 907.1169714
A166: 1596.371591 | B166: 800.063414 | C166: 18.81503916 | D166: 18.22377406 | E166: 22.52345364 | F166: 410.2674989 | G166: 394.303783 | H166: 258.6121977 | I166: 234.6666239 | J166: 73.43309319 | K166: 308.0997171 | L166: 0.5011761788 | M166: 796.308177
A167: 1579.453925 | B167: 846.7799938 | C167: 20.22244986 | D167: -9.592310437 | E167: -2.867342679 | F167: 405.9196587 | G167: 390.1251195 | H167: 255.8715359 | I167: 232.179727 | J167: 72.65488055 | K167: 304.8346075 | L167: 0.5361219979 | M167: 732.6739312
A168: 1627.029996 | B168: 823.3734645 | C168: 23.26945767 | D168: -6.455989469 | E168: -4.339744298 | F168: 418.146709 | G168: 401.876409 | H168: 263.5788594 | I168: 239.1734094 | J168: 74.84337982 | K168: 314.0167892 | L168: 0.5060591793 | M168: 803.6565315
A169: 1776.385643 | B169: 898.4232648 | C169: 21.21661916 | D169: -9.103532585 | E169: -10.91564489 | F169: 456.5311103 | G169: 438.7672538 | H169: 287.7744742 | I169: 261.1286895 | J169: 81.71373958 | K169: 342.8424291 | L169: 0.5057591342 | M169: 877.9623782
A170: 1553.603655 | B170: 823.8132893 | C170: 25.21972231 | D170: 12.82036227 | E170: 9.716541245 | F170: 399.2761393 | G170: 383.7401028 | H170: 251.6837921 | I170: 228.3797373 | J170: 71.46576813 | K170: 299.8455054 | L170: 0.5302596236 | M170: 729.7903657
A171: 1562.247942 | B171: 810.4372489 | C171: 25.97424692 | D171: -1.735010493 | E171: 0.05362425 | F171: 401.4977211 | G171: 385.8752417 | H171: 253.0841666 | I171: 229.6504475 | J171: 71.86340533 | K171: 301.5138528 | L171: 0.5187635247 | M171: 751.8106931
A172: 1704.846203 | B172: 858.0417906 | C172: 19.14630167 | D172: -13.05462713 | E172: -16.03172884 | F172: 438.1454742 | G172: 421.0970121 | H172: 276.1850849 | I172: 250.6123918 | J172: 78.42292534 | K172: 329.0353172 | L172: 0.5032957161 | M172: 846.8044124
A173: 1572.67063 | B173: 829.4597791 | C173: 24.14921459 | D173: 11.41696839 | E173: 6.657276973 | F173: 404.1763519 | G173: 388.4496456 | H173: 254.7726421 | I173: 231.1825826 | J173: 72.34284898 | K173: 303.5254316 | L173: 0.5274211671 | M173: 743.2108509
A174: 1627.373581 | B174: 810.1422718 | C174: 22.95831943 | D174: 9.639356254 | E174: -41.81754603 | F174: 418.2350103 | G174: 401.9612745 | H174: 263.6345201 | I174: 239.2239164 | J174: 74.85918473 | K174: 314.0831011 | L174: 0.4978219391 | M174: 817.2313092
A175: 1660.756624 | B175: 821.442401 | C175: 22.07101929 | D175: 5.846201202 | E175: 8.386173497 | F175: 426.8144524 | G175: 410.2068861 | H175: 269.0425731 | I175: 244.1312237 | J175: 76.3948047 | K175: 320.5260284 | L175: 0.4946193736 | M175: 839.314223
A176: 1607.815395 | B176: 862.9883601 | C176: 20.43315973 | D176: 1.81450675 | E176: 27.82538119 | F176: 413.2085565 | G176: 397.1304026 | H176: 260.466094 | I176: 236.3488631 | J176: 73.95950817 | K176: 310.3083712 | L176: 0.5367459242 | M176: 744.8270349
A177: 1610.35612 | B177: 801.8703815 | C177: 22.07446194 | D177: -4.596051882 | E177: -9.339864652 | F177: 413.8615228 | G177: 397.7579616 | H177: 260.8776914 | I177: 236.7223496 | J177: 74.07638152 | K177: 310.7987312 | L177: 0.4979459956 | M177: 808.4857385
A178: 1644.731212 | B178: 850.1179313 | C178: 25.38154281 | D178: 2.874798199 | E178: 12.61795642 | F178: 422.6959215 | G178: 406.2486094 | H178: 266.4464563 | I178: 241.7754882 | J178: 75.65763575 | K178: 317.4331239 | L178: 0.5168734715 | M178: 794.6132807
A179: 1564.685501 | B179: 856.9153834 | C179: 25.64722128 | D179: -8.085433673 | E179: 36.58412956 | F179: 402.1241738 | G179: 386.4773187 | H179: 253.4790512 | I179: 230.0087686 | J179: 71.97553305 | K179: 301.9843017 | L179: 0.5476598223 | M179: 707.7701176
A180: 1496.809936 | B180: 761.3278847 | C180: 23.46937225 | D180: -12.92479662 | E180: -37.61406702 | F180: 384.6801536 | G180: 369.7120542 | H180: 242.4832096 | I180: 220.0310606 | J180: 68.85325706 | K180: 288.8843176 | L180: 0.508633639 | M180: 735.4820513
A181: 1640.617325 | B181: 846.6787473 | C181: 23.10411046 | D181: -7.844083679 | E181: 2.745695592 | F181: 421.6386525 | G181: 405.2324793 | H181: 265.7800067 | I181: 241.1707468 | J181: 75.46839695 | K181: 316.6391437 | L181: 0.5160732697 | M181: 793.9385777
A182: 1521.608483 | B182: 806.6007593 | C182: 25.42501959 | D182: -11.43917297 | E182: -34.67808922 | F182: 391.0533801 | G182: 375.8372953 | H182: 246.5005742 | I182: 223.676447 | J182: 69.99399022 | K182: 293.6704372 | L182: 0.5300974385 | M182: 715.0077237
A183: 1655.37591 | B183: 810.7855911 | C183: 21.26851171 | D183: 6.669103759 | E183: -17.03233113 | F183: 425.4316089 | G183: 408.8778498 | H183: 268.1708974 | I183: 243.3402588 | J183: 76.14729186 | K183: 319.4875506 | L183: 0.4897894105 | M183: 844.5903189
A184: 1740.2244 | B184: 880.5768435 | C184: 22.37540858 | D184: -3.371938137 | E184: -2.521292937 | F184: 447.2376708 | G184: 429.8354268 | H184: 281.9163528 | I184: 255.8129868 | J184: 80.0503224 | K184: 335.8633092 | L184: 0.5060133874 | M184: 859.6475565
A185: 1608.074552 | B185: 838.961529 | C185: 21.92631641 | D185: -19.16364071 | E185: 0.809142589 | F185: 413.2751599 | G185: 397.1944143 | H185: 260.5080774 | I185: 236.3869591 | J185: 73.97142939 | K185: 310.3583885 | L185: 0.5217180559 | M185: 769.113023
A186: 1658.511887 | B186: 862.9410193 | C186: 19.6930447 | D186: 10.4079793 | E186: -1.325144961 | F186: 426.237555 | G186: 409.6524361 | H186: 268.6789257 | I186: 243.8012474 | J186: 76.2915468 | K186: 320.0927942 | L186: 0.5203104217 | M186: 795.5708677
A187: 1730.416702 | B187: 958.9504757 | C187: 22.66874862 | D187: -4.44529081 | E187: -23.5599586 | F187: 444.7170924 | G187: 427.4129254 | H187: 280.3275057 | I187: 254.3712552 | J187: 79.59916829 | K187: 333.9704235 | L187: 0.5541731507 | M187: 771.4662263
A188: 1605.249933 | B188: 827.7446118 | C188: 18.98897701 | D188: -24.17065819 | E188: 19.95060582 | F188: 412.5492328 | G188: 396.4967335 | H188: 260.0504891 | I188: 235.9717402 | J188: 73.84149692 | K188: 309.8132371 | L188: 0.5156484325 | M188: 777.5053212
A189: 1669.849886 | B189: 856.1721722 | C189: 24.96423713 | D189: 10.65379708 | E189: 14.03533137 | F189: 429.1514207 | G189: 412.4529218 | H189: 270.5156815 | I189: 245.4679332 | J189: 76.81309476 | K189: 322.281028 | L189: 0.5127240355 | M189: 813.6777138
A190: 1696.934821 | B190: 872.5349629 | C190: 23.43722649 | D190: 5.333563515 | E190: -7.176252204 | F190: 436.112249 | G190: 419.1429008 | H190: 274.903441 | I190: 249.4494187 | J190: 78.05900177 | K190: 327.5084205 | L190: 0.5141829563 | M190: 824.3998581
A191: 1585.840298 | B191: 851.0176704 | C191: 21.27894179 | D191: -2.241119655 | E191: 37.87685704 | F191: 407.5609566 | G191: 391.7025536 | H191: 256.9061283 | I191: 233.1185238 | J191: 72.94865371 | K191: 306.0671775 | L191: 0.5366351653 | M191: 734.8226276
A192: 1588.818248 | B192: 847.6960558 | C192: 27.40405402 | D192: 1.300516305 | E192: 23.89678688 | F192: 408.3262897 | G192: 392.4381073 | H192: 257.3885562 | I192: 233.5562825 | J192: 73.08563941 | K192: 306.6419219 | L192: 0.5335387209 | M192: 741.1221922
A193: 1639.35254 | B193: 875.1296889 | C193: 22.78164036 | D193: 5.920958545 | E193: 14.19461957 | F193: 421.3136028 | G193: 404.9200774 | H193: 265.5751115 | I193: 240.9848234 | J193: 75.41021684 | K193: 316.3950402 | L193: 0.5338264147 | M193: 764.2228511
A194: 1607.594372 | B194: 840.4062758 | C194: 22.53449866 | D194: 4.672292641 | E194: 24.77575552 | F194: 413.1517536 | G194: 397.0758099 | H194: 260.4302883 | I194: 236.3163727 | J194: 73.94934111 | K194: 310.2657138 | L194: 0.5227725914 | M194: 767.1880962
A195: 1576.129625 | B195: 796.5578982 | C195: 23.42104744 | D195: 0.603132034 | E195: -29.92199927 | F195: =A195*0.257 -> 405.0653136 | G195: =A195*0.247 -> 389.3040174 | H195: =A195*0.162 -> 255.3329993 | I195: =A195*0.147 -> 231.6910549 | J195: =A195*0.046 -> 72.50196275 | K195: =I195+J195 -> 304.1930176 | L195: =B195/A195 -> 0.5053885706 | M195: =A195-B195 -> 779.5717268
A196: 1617.770812 | B196: 828.7291009 | C196: 19.18535473 | D196: -4.608183631 | E196: 2.103893515 | F196: 415.7670987 | G196: 399.5893906 | H196: 262.0788715 | I196: 237.8123094 | J196: 74.41745735 | K196: 312.2297667 | L196: 0.512266073 | M196: 789.0417111
A197: 1550.737963 | B197: 859.473669 | C197: 26.12326782 | D197: 21.85357231 | E197: -6.607478437 | F197: 398.5396565 | G197: 383.0322769 | H197: 251.21955 | I197: 227.9584806 | J197: 71.3339463 | K197: 299.2924269 | L197: 0.554235267 | M197: 691.264294
A198: 1713.079966 | B198: 879.1415378 | C198: 27.9347728 | D198: 4.429145623 | E198: -24.54648804 | F198: 440.2615513 | G198: 423.1307516 | H198: 277.5189545 | I198: 251.822755 | J198: 78.80167844 | K198: 330.6244334 | L198: 0.51319352 | M198: 833.9384282
A199: 1626.034256 | B199: 831.143075 | C199: 25.4878743 | D199: 0.731200168 | E199: -9.0768226 | F199: 417.8908038 | G199: 401.6304612 | H199: 263.4175495 | I199: 239.0270356 | J199: 74.79757578 | K199: 313.8246114 | L199: 0.511147334 | M199: 794.891181
A200: 1647.398069 | B200: 875.5332235 | C200: 24.68419848 | D200: -13.04395881 | E200: 10.346819 | F200: 423.3813037 | G200: 406.907323 | H200: 266.8784872 | I200: 242.1675161 | J200: 75.78031117 | K200: 317.9478273 | L200: 0.5314642769 | M200: 771.8648455
... 301 more rows

Sheet Male Posturing (hidden)
A1: SW_pref_X | B1: SW_pref_Z | C1: SW_X | D1: SW_Z | E1: Grip_X | F1: Grip_Z | G1: H_pref_X | H1: H_pref_Z | I1: H_X | J1: H_Z | K1: Hip_X | L1: Hip_Z | M1: Eye_X | N1: Eye_Z | O1: Shoulder_X | P1: Shoulder_Z | Q1: Elbow_X | R1: Elbow_Z | S1: Elbow_Angle | T1: Knee_X | U1: Knee_Z | V1: Knee_Angle | W1: Arm_Angle
A2: =SW_pref_X('Input & Output'!C$24,'Input & Output'!C$25,'Input & Output'!C$29,'Input & Output'!C$30,'Male Population'!A2,'Male Population'!D2,'Male Population'!E2) ->  | B2: =SW_pref_Z('Input & Output'!C$24,'Input & Output'!C$25,'Input & Output'!C$29,'Input & Output'!C$30,'Male Population'!A2,'Male Population'!D2,'Male Population'!E2) ->  | C2: =SW_adjust_X('Input & Output'!C$24,'Input & Output'!C$25,'Input & Output'!C$27,'Input & Output'!C$28,'Input & Output'!C$29,'Input & Output'!C$30,'Male Posturing'!A2,'Male Posturing'!B2) ->  | D2: =SW_adjust_Z('Input & Output'!C$24,'Input & Output'!C$25,'Input & Output'!C$27,'Input & Output'!C$28,'Input & Output'!C$29,'Input & Output'!C$30,'Male Posturing'!A2,'Male Posturing'!B2) ->  | E2: =Grip_X(C2) ->  | F2: =Grip_Z('Input & Output'!C$26,'Input & Output'!C$29,'Input & Output'!C$30,'Male Population'!D2,'Male Posturing'!D2) ->  | G2: =H_pref_X('Male Population'!M2,'Male Population'!C2,'Male Posturing'!C2,'Male Posturing'!D2) ->  | H2: =H_pref_Z('Male Population'!M2,'Male Population'!C2,'Male Posturing'!D2) ->  | I2: =H_adjust_X('Input & Output'!C$20,'Input & Output'!C$21,'Male Posturing'!G2) ->  | J2: =H_adjust_Z('Input & Output'!C$22,'Input & Output'!C$23,'Male Posturing'!H2) ->  | K2: =Hip_X('Male Population'!C2,'Male Posturing'!I2) ->  | L2: =Hip_Z('Male Population'!C2,'Male Population'!B2,'Male Posturing'!J2) ->  | M2: =Eye_X('Male Population'!B2,'Male Population'!C2,'Male Population'!L2,'Male Posturing'!K2,'Male Posturing'!L2) ->  | N2: =Eye_Z('Male Population'!B2,'Male Population'!C2,'Male Population'!L2,'Male Posturing'!K2,'Male Posturing'!L2) ->  | O2: =Shoulder_X('Male Population'!B2,'Male Population'!C2,'Male Population'!L2,'Male Posturing'!K2,'Male Posturing'!L2) ->  | P2: =Shoulder_Z('Male Population'!B2,'Male Population'!C2,'Male Population'!L2,'Male Posturing'!K2,'Male Posturing'!L2) ->  | Q2: =Elbow_X('Male Population'!H2,'Male Population'!K2,'Male Posturing'!E2,'Male Posturing'!F2,'Male Posturing'!O2,'Male Posturing'!P2) ->  | R2: =Elbow_Z('Male Population'!H2,'Male Population'!K2,'Male Posturing'!E2,'Male Posturing'!F2,'Male Posturing'!O2,'Male Posturing'!P2) ->  | S2: =Elbow_Angle('Male Population'!H2,'Male Population'!K2,'Male Posturing'!E2,'Male Posturing'!F2,'Male Posturing'!O2,'Male Posturing'!P2) ->  | T2: =Knee_X('Male Population'!F2,'Male Population'!G2,'Male Posturing'!K2,'Male Posturing'!L2) ->  | U2: =Knee_Z('Male Population'!F2,'Male Population'!G2,'Male Posturing'!K2,'Male Posturing'!L2) ->  | V2: =Knee_Angle('Male Population'!F2,'Male Population'!G2,'Male Posturing'!K2,'Male Posturing'!L2) ->  | W2: =ArmAngle(O2,P2,Q2,R2) -> 
A3: =SW_pref_X('Input & Output'!C$24,'Input & Output'!C$25,'Input & Output'!C$29,'Input & Output'!C$30,'Male Population'!A3,'Male Population'!D3,'Male Population'!E3) ->  | B3: =SW_pref_Z('Input & Output'!C$24,'Input & Output'!C$25,'Input & Output'!C$29,'Input & Output'!C$30,'Male Population'!A3,'Male Population'!D3,'Male Population'!E3) ->  | C3: =SW_adjust_X('Input & Output'!C$24,'Input & Output'!C$25,'Input & Output'!C$27,'Input & Output'!C$28,'Input & Output'!C$29,'Input & Output'!C$30,'Male Posturing'!A3,'Male Posturing'!B3) ->  | D3: =SW_adjust_Z('Input & Output'!C$24,'Input & Output'!C$25,'Input & Output'!C$27,'Input & Output'!C$28,'Input & Output'!C$29,'Input & Output'!C$30,'Male Posturing'!A3,'Male Posturing'!B3) ->  | E3: =Grip_X(C3) ->  | F3: =Grip_Z('Input & Output'!C$26,'Input & Output'!C$29,'Input & Output'!C$30,'Male Population'!D3,'Male Posturing'!D3) ->  | G3: =H_pref_X('Male Population'!M3,'Male Population'!C3,'Male Posturing'!C3,'Male Posturing'!D3) ->  | H3: =H_pref_Z('Male Population'!M3,'Male Population'!C3,'Male Posturing'!D3) ->  | I3: =H_adjust_X('Input & Output'!C$20,'Input & Output'!C$21,'Male Posturing'!G3) ->  | J3: =H_adjust_Z('Input & Output'!C$22,'Input & Output'!C$23,'Male Posturing'!H3) ->  | K3: =Hip_X('Male Population'!C3,'Male Posturing'!I3) ->  | L3: =Hip_Z('Male Population'!C3,'Male Population'!B3,'Male Posturing'!J3) ->  | M3: =Eye_X('Male Population'!B3,'Male Population'!C3,'Male Population'!L3,'Male Posturing'!K3,'Male Posturing'!L3) ->  | N3: =Eye_Z('Male Population'!B3,'Male Population'!C3,'Male Population'!L3,'Male Posturing'!K3,'Male Posturing'!L3) ->  | O3: =Shoulder_X('Male Population'!B3,'Male Population'!C3,'Male Population'!L3,'Male Posturing'!K3,'Male Posturing'!L3) ->  | P3: =Shoulder_Z('Male Population'!B3,'Male Population'!C3,'Male Population'!L3,'Male Posturing'!K3,'Male Posturing'!L3) ->  | Q3: =Elbow_X('Male Population'!H3,'Male Population'!K3,'Male Posturing'!E3,'Male Posturing'!F3,'Male Posturing'!O3,'Male Posturing'!P3) ->  | R3: =Elbow_Z('Male Population'!H3,'Male Population'!K3,'Male Posturing'!E3,'Male Posturing'!F3,'Male Posturing'!O3,'Male Posturing'!P3) ->  | S3: =Elbow_Angle('Male Population'!H3,'Male Population'!K3,'Male Posturing'!E3,'Male Posturing'!F3,'Male Posturing'!O3,'Male Posturing'!P3) ->  | T3: =Knee_X('Male Population'!F3,'Male Population'!G3,'Male Posturing'!K3,'Male Posturing'!L3) ->  | U3: =Knee_Z('Male Population'!F3,'Male Population'!G3,'Male Posturing'!K3,'Male Posturing'!L3) ->  | V3: =Knee_Angle('Male Population'!F3,'Male Population'!G3,'Male Posturing'!K3,'Male Posturing'!L3) ->  | W3: =ArmAngle(O3,P3,Q3,R3) -> 
A4: =SW_pref_X('Input & Output'!C$24,'Input & Output'!C$25,'Input & Output'!C$29,'Input & Output'!C$30,'Male Population'!A4,'Male Population'!D4,'Male Population'!E4) ->  | B4: =SW_pref_Z('Input & Output'!C$24,'Input & Output'!C$25,'Input & Output'!C$29,'Input & Output'!C$30,'Male Population'!A4,'Male Population'!D4,'Male Population'!E4) ->  | C4: =SW_adjust_X('Input & Output'!C$24,'Input & Output'!C$25,'Input & Output'!C$27,'Input & Output'!C$28,'Input & Output'!C$29,'Input & Output'!C$30,'Male Posturing'!A4,'Male Posturing'!B4) ->  | D4: =SW_adjust_Z('Input & Output'!C$24,'Input & Output'!C$25,'Input & Output'!C$27,'Input & Output'!C$28,'Input & Output'!C$29,'Input & Output'!C$30,'Male Posturing'!A4,'Male Posturing'!B4) ->  | F4: =Grip_Z('Input & Output'!C$26,'Input & Output'!C$29,'Input & Output'!C$30,'Male Population'!D4,'Male Posturing'!D4) ->  | G4: =H_pref_X('Male Population'!M4,'Male Population'!C4,'Male Posturing'!C4,'Male Posturing'!D4) ->  | H4: =H_pref_Z('Male Population'!M4,'Male Population'!C4,'Male Posturing'!D4) ->  | I4: =H_adjust_X('Input & Output'!C$20,'Input & Output'!C$21,'Male Posturing'!G4) ->  | J4: =H_adjust_Z('Input & Output'!C$22,'Input & Output'!C$23,'Male Posturing'!H4) ->  | K4: =Hip_X('Male Population'!C4,'Male Posturing'!I4) ->  | L4: =Hip_Z('Male Population'!C4,'Male Population'!B4,'Male Posturing'!J4) ->  | M4: =Eye_X('Male Population'!B4,'Male Population'!C4,'Male Population'!L4,'Male Posturing'!K4,'Male Posturing'!L4) ->  | N4: =Eye_Z('Male Population'!B4,'Male Population'!C4,'Male Population'!L4,'Male Posturing'!K4,'Male Posturing'!L4) ->  | O4: =Shoulder_X('Male Population'!B4,'Male Population'!C4,'Male Population'!L4,'Male Posturing'!K4,'Male Posturing'!L4) ->  | P4: =Shoulder_Z('Male Population'!B4,'Male Population'!C4,'Male Population'!L4,'Male Posturing'!K4,'Male Posturing'!L4) ->  | Q4: =Elbow_X('Male Population'!H4,'Male Population'!K4,'Male Posturing'!E4,'Male Posturing'!F4,'Male Posturing'!O4,'Male Posturing'!P4) ->  | R4: =Elbow_Z('Male Population'!H4,'Male Population'!K4,'Male Posturing'!E4,'Male Posturing'!F4,'Male Posturing'!O4,'Male Posturing'!P4) ->  | S4: =Elbow_Angle('Male Population'!H4,'Male Population'!K4,'Male Posturing'!E4,'Male Posturing'!F4,'Male Posturing'!O4,'Male Posturing'!P4) ->  | T4: =Knee_X('Male Population'!F4,'Male Population'!G4,'Male Posturing'!K4,'Male Posturing'!L4) ->  | U4: =Knee_Z('Male Population'!F4,'Male Population'!G4,'Male Posturing'!K4,'Male Posturing'!L4) ->  | V4: =Knee_Angle('Male Population'!F4,'Male Population'!G4,'Male Posturing'!K4,'Male Posturing'!L4) -> 
A5: =SW_pref_X('Input & Output'!C$24,'Input & Output'!C$25,'Input & Output'!C$29,'Input & Output'!C$30,'Male Population'!A5,'Male Population'!D5,'Male Population'!E5) ->  | B5: =SW_pref_Z('Input & Output'!C$24,'Input & Output'!C$25,'Input & Output'!C$29,'Input & Output'!C$30,'Male Population'!A5,'Male Population'!D5,'Male Population'!E5) ->  | C5: =SW_adjust_X('Input & Output'!C$24,'Input & Output'!C$25,'Input & Output'!C$27,'Input & Output'!C$28,'Input & Output'!C$29,'Input & Output'!C$30,'Male Posturing'!A5,'Male Posturing'!B5) ->  | D5: =SW_adjust_Z('Input & Output'!C$24,'Input & Output'!C$25,'Input & Output'!C$27,'Input & Output'!C$28,'Input & Output'!C$29,'Input & Output'!C$30,'Male Posturing'!A5,'Male Posturing'!B5) ->  | F5: =Grip_Z('Input & Output'!C$26,'Input & Output'!C$29,'Input & Output'!C$30,'Male Population'!D5,'Male Posturing'!D5) ->  | G5: =H_pref_X('Male Population'!M5,'Male Population'!C5,'Male Posturing'!C5,'Male Posturing'!D5) ->  | H5: =H_pref_Z('Male Population'!M5,'Male Population'!C5,'Male Posturing'!D5) ->  | I5: =H_adjust_X('Input & Output'!C$20,'Input & Output'!C$21,'Male Posturing'!G5) ->  | J5: =H_adjust_Z('Input & Output'!C$22,'Input & Output'!C$23,'Male Posturing'!H5) ->  | K5: =Hip_X('Male Population'!C5,'Male Posturing'!I5) ->  | L5: =Hip_Z('Male Population'!C5,'Male Population'!B5,'Male Posturing'!J5) ->  | M5: =Eye_X('Male Population'!B5,'Male Population'!C5,'Male Population'!L5,'Male Posturing'!K5,'Male Posturing'!L5) ->  | N5: =Eye_Z('Male Population'!B5,'Male Population'!C5,'Male Population'!L5,'Male Posturing'!K5,'Male Posturing'!L5) ->  | O5: =Shoulder_X('Male Population'!B5,'Male Population'!C5,'Male Population'!L5,'Male Posturing'!K5,'Male Posturing'!L5) ->  | P5: =Shoulder_Z('Male Population'!B5,'Male Population'!C5,'Male Population'!L5,'Male Posturing'!K5,'Male Posturing'!L5) ->  | Q5: =Elbow_X('Male Population'!H5,'Male Population'!K5,'Male Posturing'!E5,'Male Posturing'!F5,'Male Posturing'!O5,'Male Posturing'!P5) ->  | R5: =Elbow_Z('Male Population'!H5,'Male Population'!K5,'Male Posturing'!E5,'Male Posturing'!F5,'Male Posturing'!O5,'Male Posturing'!P5) ->  | S5: =Elbow_Angle('Male Population'!H5,'Male Population'!K5,'Male Posturing'!E5,'Male Posturing'!F5,'Male Posturing'!O5,'Male Posturing'!P5) ->  | T5: =Knee_X('Male Population'!F5,'Male Population'!G5,'Male Posturing'!K5,'Male Posturing'!L5) ->  | U5: =Knee_Z('Male Population'!F5,'Male Population'!G5,'Male Posturing'!K5,'Male Posturing'!L5) ->  | V5: =Knee_Angle('Male Population'!F5,'Male Population'!G5,'Male Posturing'!K5,'Male Posturing'!L5) -> 
A6: =SW_pref_X('Input & Output'!C$24,'Input & Output'!C$25,'Input & Output'!C$29,'Input & Output'!C$30,'Male Population'!A6,'Male Population'!D6,'Male Population'!E6) ->  | B6: =SW_pref_Z('Input & Output'!C$24,'Input & Output'!C$25,'Input & Output'!C$29,'Input & Output'!C$30,'Male Population'!A6,'Male Population'!D6,'Male Population'!E6) ->  | C6: =SW_adjust_X('Input & Output'!C$24,'Input & Output'!C$25,'Input & Output'!C$27,'Input & Output'!C$28,'Input & Output'!C$29,'Input & Output'!C$30,'Male Posturing'!A6,'Male Posturing'!B6) ->  | D6: =SW_adjust_Z('Input & Output'!C$24,'Input & Output'!C$25,'Input & Output'!C$27,'Input & Output'!C$28,'Input & Output'!C$29,'Input & Output'!C$30,'Male Posturing'!A6,'Male Posturing'!B6) ->  | F6: =Grip_Z('Input & Output'!C$26,'Input & Output'!C$29,'Input & Output'!C$30,'Male Population'!D6,'Male Posturing'!D6) ->  | G6: =H_pref_X('Male Population'!M6,'Male Population'!C6,'Male Posturing'!C6,'Male Posturing'!D6) ->  | H6: =H_pref_Z('Male Population'!M6,'Male Population'!C6,'Male Posturing'!D6) ->  | I6: =H_adjust_X('Input & Output'!C$20,'Input & Output'!C$21,'Male Posturing'!G6) ->  | J6: =H_adjust_Z('Input & Output'!C$22,'Input & Output'!C$23,'Male Posturing'!H6) ->  | K6: =Hip_X('Male Population'!C6,'Male Posturing'!I6) ->  | L6: =Hip_Z('Male Population'!C6,'Male Population'!B6,'Male Posturing'!J6) ->  | M6: =Eye_X('Male Population'!B6,'Male Population'!C6,'Male Population'!L6,'Male Posturing'!K6,'Male Posturing'!L6) ->  | N6: =Eye_Z('Male Population'!B6,'Male Population'!C6,'Male Population'!L6,'Male Posturing'!K6,'Male Posturing'!L6) ->  | O6: =Shoulder_X('Male Population'!B6,'Male Population'!C6,'Male Population'!L6,'Male Posturing'!K6,'Male Posturing'!L6) ->  | P6: =Shoulder_Z('Male Population'!B6,'Male Population'!C6,'Male Population'!L6,'Male Posturing'!K6,'Male Posturing'!L6) ->  | Q6: =Elbow_X('Male Population'!H6,'Male Population'!K6,'Male Posturing'!E6,'Male Posturing'!F6,'Male Posturing'!O6,'Male Posturing'!P6) ->  | R6: =Elbow_Z('Male Population'!H6,'Male Population'!K6,'Male Posturing'!E6,'Male Posturing'!F6,'Male Posturing'!O6,'Male Posturing'!P6) ->  | S6: =Elbow_Angle('Male Population'!H6,'Male Population'!K6,'Male Posturing'!E6,'Male Posturing'!F6,'Male Posturing'!O6,'Male Posturing'!P6) ->  | T6: =Knee_X('Male Population'!F6,'Male Population'!G6,'Male Posturing'!K6,'Male Posturing'!L6) ->  | U6: =Knee_Z('Male Population'!F6,'Male Population'!G6,'Male Posturing'!K6,'Male Posturing'!L6) ->  | V6: =Knee_Angle('Male Population'!F6,'Male Population'!G6,'Male Posturing'!K6,'Male Posturing'!L6) -> 
A7: =SW_pref_X('Input & Output'!C$24,'Input & Output'!C$25,'Input & Output'!C$29,'Input & Output'!C$30,'Male Population'!A7,'Male Population'!D7,'Male Population'!E7) ->  | B7: =SW_pref_Z('Input & Output'!C$24,'Input & Output'!C$25,'Input & Output'!C$29,'Input & Output'!C$30,'Male Population'!A7,'Male Population'!D7,'Male Population'!E7) ->  | C7: =SW_adjust_X('Input & Output'!C$24,'Input & Output'!C$25,'Input & Output'!C$27,'Input & Output'!C$28,'Input & Output'!C$29,'Input & Output'!C$30,'Male Posturing'!A7,'Male Posturing'!B7) ->  | D7: =SW_adjust_Z('Input & Output'!C$24,'Input & Output'!C$25,'Input & Output'!C$27,'Input & Output'!C$28,'Input & Output'!C$29,'Input & Output'!C$30,'Male Posturing'!A7,'Male Posturing'!B7) ->  | F7: =Grip_Z('Input & Output'!C$26,'Input & Output'!C$29,'Input & Output'!C$30,'Male Population'!D7,'Male Posturing'!D7) ->  | G7: =H_pref_X('Male Population'!M7,'Male Population'!C7,'Male Posturing'!C7,'Male Posturing'!D7) ->  | H7: =H_pref_Z('Male Population'!M7,'Male Population'!C7,'Male Posturing'!D7) ->  | I7: =H_adjust_X('Input & Output'!C$20,'Input & Output'!C$21,'Male Posturing'!G7) ->  | J7: =H_adjust_Z('Input & Output'!C$22,'Input & Output'!C$23,'Male Posturing'!H7) ->  | K7: =Hip_X('Male Population'!C7,'Male Posturing'!I7) ->  | L7: =Hip_Z('Male Population'!C7,'Male Population'!B7,'Male Posturing'!J7) ->  | M7: =Eye_X('Male Population'!B7,'Male Population'!C7,'Male Population'!L7,'Male Posturing'!K7,'Male Posturing'!L7) ->  | N7: =Eye_Z('Male Population'!B7,'Male Population'!C7,'Male Population'!L7,'Male Posturing'!K7,'Male Posturing'!L7) ->  | O7: =Shoulder_X('Male Population'!B7,'Male Population'!C7,'Male Population'!L7,'Male Posturing'!K7,'Male Posturing'!L7) ->  | P7: =Shoulder_Z('Male Population'!B7,'Male Population'!C7,'Male Population'!L7,'Male Posturing'!K7,'Male Posturing'!L7) ->  | Q7: =Elbow_X('Male Population'!H7,'Male Population'!K7,'Male Posturing'!E7,'Male Posturing'!F7,'Male Posturing'!O7,'Male Posturing'!P7) ->  | R7: =Elbow_Z('Male Population'!H7,'Male Population'!K7,'Male Posturing'!E7,'Male Posturing'!F7,'Male Posturing'!O7,'Male Posturing'!P7) ->  | S7: =Elbow_Angle('Male Population'!H7,'Male Population'!K7,'Male Posturing'!E7,'Male Posturing'!F7,'Male Posturing'!O7,'Male Posturing'!P7) ->  | T7: =Knee_X('Male Population'!F7,'Male Population'!G7,'Male Posturing'!K7,'Male Posturing'!L7) ->  | U7: =Knee_Z('Male Population'!F7,'Male Population'!G7,'Male Posturing'!K7,'Male Posturing'!L7) ->  | V7: =Knee_Angle('Male Population'!F7,'Male Population'!G7,'Male Posturing'!K7,'Male Posturing'!L7) -> 
A8: =SW_pref_X('Input & Output'!C$24,'Input & Output'!C$25,'Input & Output'!C$29,'Input & Output'!C$30,'Male Population'!A8,'Male Population'!D8,'Male Population'!E8) ->  | B8: =SW_pref_Z('Input & Output'!C$24,'Input & Output'!C$25,'Input & Output'!C$29,'Input & Output'!C$30,'Male Population'!A8,'Male Population'!D8,'Male Population'!E8) ->  | C8: =SW_adjust_X('Input & Output'!C$24,'Input & Output'!C$25,'Input & Output'!C$27,'Input & Output'!C$28,'Input & Output'!C$29,'Input & Output'!C$30,'Male Posturing'!A8,'Male Posturing'!B8) ->  | D8: =SW_adjust_Z('Input & Output'!C$24,'Input & Output'!C$25,'Input & Output'!C$27,'Input & Output'!C$28,'Input & Output'!C$29,'Input & Output'!C$30,'Male Posturing'!A8,'Male Posturing'!B8) ->  | F8: =Grip_Z('Input & Output'!C$26,'Input & Output'!C$29,'Input & Output'!C$30,'Male Population'!D8,'Male Posturing'!D8) ->  | G8: =H_pref_X('Male Population'!M8,'Male Population'!C8,'Male Posturing'!C8,'Male Posturing'!D8) ->  | H8: =H_pref_Z('Male Population'!M8,'Male Population'!C8,'Male Posturing'!D8) ->  | I8: =H_adjust_X('Input & Output'!C$20,'Input & Output'!C$21,'Male Posturing'!G8) ->  | J8: =H_adjust_Z('Input & Output'!C$22,'Input & Output'!C$23,'Male Posturing'!H8) ->  | K8: =Hip_X('Male Population'!C8,'Male Posturing'!I8) ->  | L8: =Hip_Z('Male Population'!C8,'Male Population'!B8,'Male Posturing'!J8) ->  | M8: =Eye_X('Male Population'!B8,'Male Population'!C8,'Male Population'!L8,'Male Posturing'!K8,'Male Posturing'!L8) ->  | N8: =Eye_Z('Male Population'!B8,'Male Population'!C8,'Male Population'!L8,'Male Posturing'!K8,'Male Posturing'!L8) ->  | O8: =Shoulder_X('Male Population'!B8,'Male Population'!C8,'Male Population'!L8,'Male Posturing'!K8,'Male Posturing'!L8) ->  | P8: =Shoulder_Z('Male Population'!B8,'Male Population'!C8,'Male Population'!L8,'Male Posturing'!K8,'Male Posturing'!L8) ->  | Q8: =Elbow_X('Male Population'!H8,'Male Population'!K8,'Male Posturing'!E8,'Male Posturing'!F8,'Male Posturing'!O8,'Male Posturing'!P8) ->  | R8: =Elbow_Z('Male Population'!H8,'Male Population'!K8,'Male Posturing'!E8,'Male Posturing'!F8,'Male Posturing'!O8,'Male Posturing'!P8) ->  | S8: =Elbow_Angle('Male Population'!H8,'Male Population'!K8,'Male Posturing'!E8,'Male Posturing'!F8,'Male Posturing'!O8,'Male Posturing'!P8) ->  | T8: =Knee_X('Male Population'!F8,'Male Population'!G8,'Male Posturing'!K8,'Male Posturing'!L8) ->  | U8: =Knee_Z('Male Population'!F8,'Male Population'!G8,'Male Posturing'!K8,'Male Posturing'!L8) ->  | V8: =Knee_Angle('Male Population'!F8,'Male Population'!G8,'Male Posturing'!K8,'Male Posturing'!L8) -> 
A9: =SW_pref_X('Input & Output'!C$24,'Input & Output'!C$25,'Input & Output'!C$29,'Input & Output'!C$30,'Male Population'!A9,'Male Population'!D9,'Male Population'!E9) ->  | B9: =SW_pref_Z('Input & Output'!C$24,'Input & Output'!C$25,'Input & Output'!C$29,'Input & Output'!C$30,'Male Population'!A9,'Male Population'!D9,'Male Population'!E9) ->  | C9: =SW_adjust_X('Input & Output'!C$24,'Input & Output'!C$25,'Input & Output'!C$27,'Input & Output'!C$28,'Input & Output'!C$29,'Input & Output'!C$30,'Male Posturing'!A9,'Male Posturing'!B9) ->  | D9: =SW_adjust_Z('Input & Output'!C$24,'Input & Output'!C$25,'Input & Output'!C$27,'Input & Output'!C$28,'Input & Output'!C$29,'Input & Output'!C$30,'Male Posturing'!A9,'Male Posturing'!B9) ->  | F9: =Grip_Z('Input & Output'!C$26,'Input & Output'!C$29,'Input & Output'!C$30,'Male Population'!D9,'Male Posturing'!D9) ->  | G9: =H_pref_X('Male Population'!M9,'Male Population'!C9,'Male Posturing'!C9,'Male Posturing'!D9) ->  | H9: =H_pref_Z('Male Population'!M9,'Male Population'!C9,'Male Posturing'!D9) ->  | I9: =H_adjust_X('Input & Output'!C$20,'Input & Output'!C$21,'Male Posturing'!G9) ->  | J9: =H_adjust_Z('Input & Output'!C$22,'Input & Output'!C$23,'Male Posturing'!H9) ->  | K9: =Hip_X('Male Population'!C9,'Male Posturing'!I9) ->  | L9: =Hip_Z('Male Population'!C9,'Male Population'!B9,'Male Posturing'!J9) ->  | M9: =Eye_X('Male Population'!B9,'Male Population'!C9,'Male Population'!L9,'Male Posturing'!K9,'Male Posturing'!L9) ->  | N9: =Eye_Z('Male Population'!B9,'Male Population'!C9,'Male Population'!L9,'Male Posturing'!K9,'Male Posturing'!L9) ->  | O9: =Shoulder_X('Male Population'!B9,'Male Population'!C9,'Male Population'!L9,'Male Posturing'!K9,'Male Posturing'!L9) ->  | P9: =Shoulder_Z('Male Population'!B9,'Male Population'!C9,'Male Population'!L9,'Male Posturing'!K9,'Male Posturing'!L9) ->  | Q9: =Elbow_X('Male Population'!H9,'Male Population'!K9,'Male Posturing'!E9,'Male Posturing'!F9,'Male Posturing'!O9,'Male Posturing'!P9) ->  | R9: =Elbow_Z('Male Population'!H9,'Male Population'!K9,'Male Posturing'!E9,'Male Posturing'!F9,'Male Posturing'!O9,'Male Posturing'!P9) ->  | S9: =Elbow_Angle('Male Population'!H9,'Male Population'!K9,'Male Posturing'!E9,'Male Posturing'!F9,'Male Posturing'!O9,'Male Posturing'!P9) ->  | T9: =Knee_X('Male Population'!F9,'Male Population'!G9,'Male Posturing'!K9,'Male Posturing'!L9) ->  | U9: =Knee_Z('Male Population'!F9,'Male Population'!G9,'Male Posturing'!K9,'Male Posturing'!L9) ->  | V9: =Knee_Angle('Male Population'!F9,'Male Population'!G9,'Male Posturing'!K9,'Male Posturing'!L9) -> 
A10: =SW_pref_X('Input & Output'!C$24,'Input & Output'!C$25,'Input & Output'!C$29,'Input & Output'!C$30,'Male Population'!A10,'Male Population'!D10,'Male Population'!E10) ->  | B10: =SW_pref_Z('Input & Output'!C$24,'Input & Output'!C$25,'Input & Output'!C$29,'Input & Output'!C$30,'Male Population'!A10,'Male Population'!D10,'Male Population'!E10) ->  | C10: =SW_adjust_X('Input & Output'!C$24,'Input & Output'!C$25,'Input & Output'!C$27,'Input & Output'!C$28,'Input & Output'!C$29,'Input & Output'!C$30,'Male Posturing'!A10,'Male Posturing'!B10) ->  | D10: =SW_adjust_Z('Input & Output'!C$24,'Input & Output'!C$25,'Input & Output'!C$27,'Input & Output'!C$28,'Input & Output'!C$29,'Input & Output'!C$30,'Male Posturing'!A10,'Male Posturing'!B10) ->  | F10: =Grip_Z('Input & Output'!C$26,'Input & Output'!C$29,'Input & Output'!C$30,'Male Population'!D10,'Male Posturing'!D10) ->  | G10: =H_pref_X('Male Population'!M10,'Male Population'!C10,'Male Posturing'!C10,'Male Posturing'!D10) ->  | H10: =H_pref_Z('Male Population'!M10,'Male Population'!C10,'Male Posturing'!D10) ->  | I10: =H_adjust_X('Input & Output'!C$20,'Input & Output'!C$21,'Male Posturing'!G10) ->  | J10: =H_adjust_Z('Input & Output'!C$22,'Input & Output'!C$23,'Male Posturing'!H10) ->  | K10: =Hip_X('Male Population'!C10,'Male Posturing'!I10) ->  | L10: =Hip_Z('Male Population'!C10,'Male Population'!B10,'Male Posturing'!J10) ->  | M10: =Eye_X('Male Population'!B10,'Male Population'!C10,'Male Population'!L10,'Male Posturing'!K10,'Male Posturing'!L10) ->  | N10: =Eye_Z('Male Population'!B10,'Male Population'!C10,'Male Population'!L10,'Male Posturing'!K10,'Male Posturing'!L10) ->  | O10: =Shoulder_X('Male Population'!B10,'Male Population'!C10,'Male Population'!L10,'Male Posturing'!K10,'Male Posturing'!L10) ->  | P10: =Shoulder_Z('Male Population'!B10,'Male Population'!C10,'Male Population'!L10,'Male Posturing'!K10,'Male Posturing'!L10) ->  | Q10: =Elbow_X('Male Population'!H10,'Male Population'!K10,'Male Posturing'!E10,'Male Posturing'!F10,'Male Posturing'!O10,'Male Posturing'!P10) ->  | R10: =Elbow_Z('Male Population'!H10,'Male Population'!K10,'Male Posturing'!E10,'Male Posturing'!F10,'Male Posturing'!O10,'Male Posturing'!P10) ->  | S10: =Elbow_Angle('Male Population'!H10,'Male Population'!K10,'Male Posturing'!E10,'Male Posturing'!F10,'Male Posturing'!O10,'Male Posturing'!P10) ->  | T10: =Knee_X('Male Population'!F10,'Male Population'!G10,'Male Posturing'!K10,'Male Posturing'!L10) ->  | U10: =Knee_Z('Male Population'!F10,'Male Population'!G10,'Male Posturing'!K10,'Male Posturing'!L10) ->  | V10: =Knee_Angle('Male Population'!F10,'Male Population'!G10,'Male Posturing'!K10,'Male Posturing'!L10) -> 
A11: =SW_pref_X('Input & Output'!C$24,'Input & Output'!C$25,'Input & Output'!C$29,'Input & Output'!C$30,'Male Population'!A11,'Male Population'!D11,'Male Population'!E11) ->  | B11: =SW_pref_Z('Input & Output'!C$24,'Input & Output'!C$25,'Input & Output'!C$29,'Input & Output'!C$30,'Male Population'!A11,'Male Population'!D11,'Male Population'!E11) ->  | C11: =SW_adjust_X('Input & Output'!C$24,'Input & Output'!C$25,'Input & Output'!C$27,'Input & Output'!C$28,'Input & Output'!C$29,'Input & Output'!C$30,'Male Posturing'!A11,'Male Posturing'!B11) ->  | D11: =SW_adjust_Z('Input & Output'!C$24,'Input & Output'!C$25,'Input & Output'!C$27,'Input & Output'!C$28,'Input & Output'!C$29,'Input & Output'!C$30,'Male Posturing'!A11,'Male Posturing'!B11) ->  | F11: =Grip_Z('Input & Output'!C$26,'Input & Output'!C$29,'Input & Output'!C$30,'Male Population'!D11,'Male Posturing'!D11) ->  | G11: =H_pref_X('Male Population'!M11,'Male Population'!C11,'Male Posturing'!C11,'Male Posturing'!D11) ->  | H11: =H_pref_Z('Male Population'!M11,'Male Population'!C11,'Male Posturing'!D11) ->  | I11: =H_adjust_X('Input & Output'!C$20,'Input & Output'!C$21,'Male Posturing'!G11) ->  | J11: =H_adjust_Z('Input & Output'!C$22,'Input & Output'!C$23,'Male Posturing'!H11) ->  | K11: =Hip_X('Male Population'!C11,'Male Posturing'!I11) ->  | L11: =Hip_Z('Male Population'!C11,'Male Population'!B11,'Male Posturing'!J11) ->  | M11: =Eye_X('Male Population'!B11,'Male Population'!C11,'Male Population'!L11,'Male Posturing'!K11,'Male Posturing'!L11) ->  | N11: =Eye_Z('Male Population'!B11,'Male Population'!C11,'Male Population'!L11,'Male Posturing'!K11,'Male Posturing'!L11) ->  | O11: =Shoulder_X('Male Population'!B11,'Male Population'!C11,'Male Population'!L11,'Male Posturing'!K11,'Male Posturing'!L11) ->  | P11: =Shoulder_Z('Male Population'!B11,'Male Population'!C11,'Male Population'!L11,'Male Posturing'!K11,'Male Posturing'!L11) ->  | Q11: =Elbow_X('Male Population'!H11,'Male Population'!K11,'Male Posturing'!E11,'Male Posturing'!F11,'Male Posturing'!O11,'Male Posturing'!P11) ->  | R11: =Elbow_Z('Male Population'!H11,'Male Population'!K11,'Male Posturing'!E11,'Male Posturing'!F11,'Male Posturing'!O11,'Male Posturing'!P11) ->  | S11: =Elbow_Angle('Male Population'!H11,'Male Population'!K11,'Male Posturing'!E11,'Male Posturing'!F11,'Male Posturing'!O11,'Male Posturing'!P11) ->  | T11: =Knee_X('Male Population'!F11,'Male Population'!G11,'Male Posturing'!K11,'Male Posturing'!L11) ->  | U11: =Knee_Z('Male Population'!F11,'Male Population'!G11,'Male Posturing'!K11,'Male Posturing'!L11) ->  | V11: =Knee_Angle('Male Population'!F11,'Male Population'!G11,'Male Posturing'!K11,'Male Posturing'!L11) -> 
A12: =SW_pref_X('Input & Output'!C$24,'Input & Output'!C$25,'Input & Output'!C$29,'Input & Output'!C$30,'Male Population'!A12,'Male Population'!D12,'Male Population'!E12) ->  | B12: =SW_pref_Z('Input & Output'!C$24,'Input & Output'!C$25,'Input & Output'!C$29,'Input & Output'!C$30,'Male Population'!A12,'Male Population'!D12,'Male Population'!E12) ->  | C12: =SW_adjust_X('Input & Output'!C$24,'Input & Output'!C$25,'Input & Output'!C$27,'Input & Output'!C$28,'Input & Output'!C$29,'Input & Output'!C$30,'Male Posturing'!A12,'Male Posturing'!B12) ->  | D12: =SW_adjust_Z('Input & Output'!C$24,'Input & Output'!C$25,'Input & Output'!C$27,'Input & Output'!C$28,'Input & Output'!C$29,'Input & Output'!C$30,'Male Posturing'!A12,'Male Posturing'!B12) ->  | F12: =Grip_Z('Input & Output'!C$26,'Input & Output'!C$29,'Input & Output'!C$30,'Male Population'!D12,'Male Posturing'!D12) ->  | G12: =H_pref_X('Male Population'!M12,'Male Population'!C12,'Male Posturing'!C12,'Male Posturing'!D12) ->  | H12: =H_pref_Z('Male Population'!M12,'Male Population'!C12,'Male Posturing'!D12) ->  | I12: =H_adjust_X('Input & Output'!C$20,'Input & Output'!C$21,'Male Posturing'!G12) ->  | J12: =H_adjust_Z('Input & Output'!C$22,'Input & Output'!C$23,'Male Posturing'!H12) ->  | K12: =Hip_X('Male Population'!C12,'Male Posturing'!I12) ->  | L12: =Hip_Z('Male Population'!C12,'Male Population'!B12,'Male Posturing'!J12) ->  | M12: =Eye_X('Male Population'!B12,'Male Population'!C12,'Male Population'!L12,'Male Posturing'!K12,'Male Posturing'!L12) ->  | N12: =Eye_Z('Male Population'!B12,'Male Population'!C12,'Male Population'!L12,'Male Posturing'!K12,'Male Posturing'!L12) ->  | O12: =Shoulder_X('Male Population'!B12,'Male Population'!C12,'Male Population'!L12,'Male Posturing'!K12,'Male Posturing'!L12) ->  | P12: =Shoulder_Z('Male Population'!B12,'Male Population'!C12,'Male Population'!L12,'Male Posturing'!K12,'Male Posturing'!L12) ->  | Q12: =Elbow_X('Male Population'!H12,'Male Population'!K12,'Male Posturing'!E12,'Male Posturing'!F12,'Male Posturing'!O12,'Male Posturing'!P12) ->  | R12: =Elbow_Z('Male Population'!H12,'Male Population'!K12,'Male Posturing'!E12,'Male Posturing'!F12,'Male Posturing'!O12,'Male Posturing'!P12) ->  | S12: =Elbow_Angle('Male Population'!H12,'Male Population'!K12,'Male Posturing'!E12,'Male Posturing'!F12,'Male Posturing'!O12,'Male Posturing'!P12) ->  | T12: =Knee_X('Male Population'!F12,'Male Population'!G12,'Male Posturing'!K12,'Male Posturing'!L12) ->  | U12: =Knee_Z('Male Population'!F12,'Male Population'!G12,'Male Posturing'!K12,'Male Posturing'!L12) ->  | V12: =Knee_Angle('Male Population'!F12,'Male Population'!G12,'Male Posturing'!K12,'Male Posturing'!L12) -> 
A13: =SW_pref_X('Input & Output'!C$24,'Input & Output'!C$25,'Input & Output'!C$29,'Input & Output'!C$30,'Male Population'!A13,'Male Population'!D13,'Male Population'!E13) ->  | B13: =SW_pref_Z('Input & Output'!C$24,'Input & Output'!C$25,'Input & Output'!C$29,'Input & Output'!C$30,'Male Population'!A13,'Male Population'!D13,'Male Population'!E13) ->  | C13: =SW_adjust_X('Input & Output'!C$24,'Input & Output'!C$25,'Input & Output'!C$27,'Input & Output'!C$28,'Input & Output'!C$29,'Input & Output'!C$30,'Male Posturing'!A13,'Male Posturing'!B13) ->  | D13: =SW_adjust_Z('Input & Output'!C$24,'Input & Output'!C$25,'Input & Output'!C$27,'Input & Output'!C$28,'Input & Output'!C$29,'Input & Output'!C$30,'Male Posturing'!A13,'Male Posturing'!B13) ->  | F13: =Grip_Z('Input & Output'!C$26,'Input & Output'!C$29,'Input & Output'!C$30,'Male Population'!D13,'Male Posturing'!D13) ->  | G13: =H_pref_X('Male Population'!M13,'Male Population'!C13,'Male Posturing'!C13,'Male Posturing'!D13) ->  | H13: =H_pref_Z('Male Population'!M13,'Male Population'!C13,'Male Posturing'!D13) ->  | I13: =H_adjust_X('Input & Output'!C$20,'Input & Output'!C$21,'Male Posturing'!G13) ->  | J13: =H_adjust_Z('Input & Output'!C$22,'Input & Output'!C$23,'Male Posturing'!H13) ->  | K13: =Hip_X('Male Population'!C13,'Male Posturing'!I13) ->  | L13: =Hip_Z('Male Population'!C13,'Male Population'!B13,'Male Posturing'!J13) ->  | M13: =Eye_X('Male Population'!B13,'Male Population'!C13,'Male Population'!L13,'Male Posturing'!K13,'Male Posturing'!L13) ->  | N13: =Eye_Z('Male Population'!B13,'Male Population'!C13,'Male Population'!L13,'Male Posturing'!K13,'Male Posturing'!L13) ->  | O13: =Shoulder_X('Male Population'!B13,'Male Population'!C13,'Male Population'!L13,'Male Posturing'!K13,'Male Posturing'!L13) ->  | P13: =Shoulder_Z('Male Population'!B13,'Male Population'!C13,'Male Population'!L13,'Male Posturing'!K13,'Male Posturing'!L13) ->  | Q13: =Elbow_X('Male Population'!H13,'Male Population'!K13,'Male Posturing'!E13,'Male Posturing'!F13,'Male Posturing'!O13,'Male Posturing'!P13) ->  | R13: =Elbow_Z('Male Population'!H13,'Male Population'!K13,'Male Posturing'!E13,'Male Posturing'!F13,'Male Posturing'!O13,'Male Posturing'!P13) ->  | S13: =Elbow_Angle('Male Population'!H13,'Male Population'!K13,'Male Posturing'!E13,'Male Posturing'!F13,'Male Posturing'!O13,'Male Posturing'!P13) ->  | T13: =Knee_X('Male Population'!F13,'Male Population'!G13,'Male Posturing'!K13,'Male Posturing'!L13) ->  | U13: =Knee_Z('Male Population'!F13,'Male Population'!G13,'Male Posturing'!K13,'Male Posturing'!L13) ->  | V13: =Knee_Angle('Male Population'!F13,'Male Population'!G13,'Male Posturing'!K13,'Male Posturing'!L13) -> 
A14: =SW_pref_X('Input & Output'!C$24,'Input & Output'!C$25,'Input & Output'!C$29,'Input & Output'!C$30,'Male Population'!A14,'Male Population'!D14,'Male Population'!E14) ->  | B14: =SW_pref_Z('Input & Output'!C$24,'Input & Output'!C$25,'Input & Output'!C$29,'Input & Output'!C$30,'Male Population'!A14,'Male Population'!D14,'Male Population'!E14) ->  | C14: =SW_adjust_X('Input & Output'!C$24,'Input & Output'!C$25,'Input & Output'!C$27,'Input & Output'!C$28,'Input & Output'!C$29,'Input & Output'!C$30,'Male Posturing'!A14,'Male Posturing'!B14) ->  | D14: =SW_adjust_Z('Input & Output'!C$24,'Input & Output'!C$25,'Input & Output'!C$27,'Input & Output'!C$28,'Input & Output'!C$29,'Input & Output'!C$30,'Male Posturing'!A14,'Male Posturing'!B14) ->  | F14: =Grip_Z('Input & Output'!C$26,'Input & Output'!C$29,'Input & Output'!C$30,'Male Population'!D14,'Male Posturing'!D14) ->  | G14: =H_pref_X('Male Population'!M14,'Male Population'!C14,'Male Posturing'!C14,'Male Posturing'!D14) ->  | H14: =H_pref_Z('Male Population'!M14,'Male Population'!C14,'Male Posturing'!D14) ->  | I14: =H_adjust_X('Input & Output'!C$20,'Input & Output'!C$21,'Male Posturing'!G14) ->  | J14: =H_adjust_Z('Input & Output'!C$22,'Input & Output'!C$23,'Male Posturing'!H14) ->  | K14: =Hip_X('Male Population'!C14,'Male Posturing'!I14) ->  | L14: =Hip_Z('Male Population'!C14,'Male Population'!B14,'Male Posturing'!J14) ->  | M14: =Eye_X('Male Population'!B14,'Male Population'!C14,'Male Population'!L14,'Male Posturing'!K14,'Male Posturing'!L14) ->  | N14: =Eye_Z('Male Population'!B14,'Male Population'!C14,'Male Population'!L14,'Male Posturing'!K14,'Male Posturing'!L14) ->  | O14: =Shoulder_X('Male Population'!B14,'Male Population'!C14,'Male Population'!L14,'Male Posturing'!K14,'Male Posturing'!L14) ->  | P14: =Shoulder_Z('Male Population'!B14,'Male Population'!C14,'Male Population'!L14,'Male Posturing'!K14,'Male Posturing'!L14) ->  | Q14: =Elbow_X('Male Population'!H14,'Male Population'!K14,'Male Posturing'!E14,'Male Posturing'!F14,'Male Posturing'!O14,'Male Posturing'!P14) ->  | R14: =Elbow_Z('Male Population'!H14,'Male Population'!K14,'Male Posturing'!E14,'Male Posturing'!F14,'Male Posturing'!O14,'Male Posturing'!P14) ->  | S14: =Elbow_Angle('Male Population'!H14,'Male Population'!K14,'Male Posturing'!E14,'Male Posturing'!F14,'Male Posturing'!O14,'Male Posturing'!P14) ->  | T14: =Knee_X('Male Population'!F14,'Male Population'!G14,'Male Posturing'!K14,'Male Posturing'!L14) ->  | U14: =Knee_Z('Male Population'!F14,'Male Population'!G14,'Male Posturing'!K14,'Male Posturing'!L14) ->  | V14: =Knee_Angle('Male Population'!F14,'Male Population'!G14,'Male Posturing'!K14,'Male Posturing'!L14) -> 
A15: =SW_pref_X('Input & Output'!C$24,'Input & Output'!C$25,'Input & Output'!C$29,'Input & Output'!C$30,'Male Population'!A15,'Male Population'!D15,'Male Population'!E15) ->  | B15: =SW_pref_Z('Input & Output'!C$24,'Input & Output'!C$25,'Input & Output'!C$29,'Input & Output'!C$30,'Male Population'!A15,'Male Population'!D15,'Male Population'!E15) ->  | C15: =SW_adjust_X('Input & Output'!C$24,'Input & Output'!C$25,'Input & Output'!C$27,'Input & Output'!C$28,'Input & Output'!C$29,'Input & Output'!C$30,'Male Posturing'!A15,'Male Posturing'!B15) ->  | D15: =SW_adjust_Z('Input & Output'!C$24,'Input & Output'!C$25,'Input & Output'!C$27,'Input & Output'!C$28,'Input & Output'!C$29,'Input & Output'!C$30,'Male Posturing'!A15,'Male Posturing'!B15) ->  | F15: =Grip_Z('Input & Output'!C$26,'Input & Output'!C$29,'Input & Output'!C$30,'Male Population'!D15,'Male Posturing'!D15) ->  | G15: =H_pref_X('Male Population'!M15,'Male Population'!C15,'Male Posturing'!C15,'Male Posturing'!D15) ->  | H15: =H_pref_Z('Male Population'!M15,'Male Population'!C15,'Male Posturing'!D15) ->  | I15: =H_adjust_X('Input & Output'!C$20,'Input & Output'!C$21,'Male Posturing'!G15) ->  | J15: =H_adjust_Z('Input & Output'!C$22,'Input & Output'!C$23,'Male Posturing'!H15) ->  | K15: =Hip_X('Male Population'!C15,'Male Posturing'!I15) ->  | L15: =Hip_Z('Male Population'!C15,'Male Population'!B15,'Male Posturing'!J15) ->  | M15: =Eye_X('Male Population'!B15,'Male Population'!C15,'Male Population'!L15,'Male Posturing'!K15,'Male Posturing'!L15) ->  | N15: =Eye_Z('Male Population'!B15,'Male Population'!C15,'Male Population'!L15,'Male Posturing'!K15,'Male Posturing'!L15) ->  | O15: =Shoulder_X('Male Population'!B15,'Male Population'!C15,'Male Population'!L15,'Male Posturing'!K15,'Male Posturing'!L15) ->  | P15: =Shoulder_Z('Male Population'!B15,'Male Population'!C15,'Male Population'!L15,'Male Posturing'!K15,'Male Posturing'!L15) ->  | Q15: =Elbow_X('Male Population'!H15,'Male Population'!K15,'Male Posturing'!E15,'Male Posturing'!F15,'Male Posturing'!O15,'Male Posturing'!P15) ->  | R15: =Elbow_Z('Male Population'!H15,'Male Population'!K15,'Male Posturing'!E15,'Male Posturing'!F15,'Male Posturing'!O15,'Male Posturing'!P15) ->  | S15: =Elbow_Angle('Male Population'!H15,'Male Population'!K15,'Male Posturing'!E15,'Male Posturing'!F15,'Male Posturing'!O15,'Male Posturing'!P15) ->  | T15: =Knee_X('Male Population'!F15,'Male Population'!G15,'Male Posturing'!K15,'Male Posturing'!L15) ->  | U15: =Knee_Z('Male Population'!F15,'Male Population'!G15,'Male Posturing'!K15,'Male Posturing'!L15) ->  | V15: =Knee_Angle('Male Population'!F15,'Male Population'!G15,'Male Posturing'!K15,'Male Posturing'!L15) -> 
A16: =SW_pref_X('Input & Output'!C$24,'Input & Output'!C$25,'Input & Output'!C$29,'Input & Output'!C$30,'Male Population'!A16,'Male Population'!D16,'Male Population'!E16) ->  | B16: =SW_pref_Z('Input & Output'!C$24,'Input & Output'!C$25,'Input & Output'!C$29,'Input & Output'!C$30,'Male Population'!A16,'Male Population'!D16,'Male Population'!E16) ->  | C16: =SW_adjust_X('Input & Output'!C$24,'Input & Output'!C$25,'Input & Output'!C$27,'Input & Output'!C$28,'Input & Output'!C$29,'Input & Output'!C$30,'Male Posturing'!A16,'Male Posturing'!B16) ->  | D16: =SW_adjust_Z('Input & Output'!C$24,'Input & Output'!C$25,'Input & Output'!C$27,'Input & Output'!C$28,'Input & Output'!C$29,'Input & Output'!C$30,'Male Posturing'!A16,'Male Posturing'!B16) ->  | F16: =Grip_Z('Input & Output'!C$26,'Input & Output'!C$29,'Input & Output'!C$30,'Male Population'!D16,'Male Posturing'!D16) ->  | G16: =H_pref_X('Male Population'!M16,'Male Population'!C16,'Male Posturing'!C16,'Male Posturing'!D16) ->  | H16: =H_pref_Z('Male Population'!M16,'Male Population'!C16,'Male Posturing'!D16) ->  | I16: =H_adjust_X('Input & Output'!C$20,'Input & Output'!C$21,'Male Posturing'!G16) ->  | J16: =H_adjust_Z('Input & Output'!C$22,'Input & Output'!C$23,'Male Posturing'!H16) ->  | K16: =Hip_X('Male Population'!C16,'Male Posturing'!I16) ->  | L16: =Hip_Z('Male Population'!C16,'Male Population'!B16,'Male Posturing'!J16) ->  | M16: =Eye_X('Male Population'!B16,'Male Population'!C16,'Male Population'!L16,'Male Posturing'!K16,'Male Posturing'!L16) ->  | N16: =Eye_Z('Male Population'!B16,'Male Population'!C16,'Male Population'!L16,'Male Posturing'!K16,'Male Posturing'!L16) ->  | O16: =Shoulder_X('Male Population'!B16,'Male Population'!C16,'Male Population'!L16,'Male Posturing'!K16,'Male Posturing'!L16) ->  | P16: =Shoulder_Z('Male Population'!B16,'Male Population'!C16,'Male Population'!L16,'Male Posturing'!K16,'Male Posturing'!L16) ->  | Q16: =Elbow_X('Male Population'!H16,'Male Population'!K16,'Male Posturing'!E16,'Male Posturing'!F16,'Male Posturing'!O16,'Male Posturing'!P16) ->  | R16: =Elbow_Z('Male Population'!H16,'Male Population'!K16,'Male Posturing'!E16,'Male Posturing'!F16,'Male Posturing'!O16,'Male Posturing'!P16) ->  | S16: =Elbow_Angle('Male Population'!H16,'Male Population'!K16,'Male Posturing'!E16,'Male Posturing'!F16,'Male Posturing'!O16,'Male Posturing'!P16) ->  | T16: =Knee_X('Male Population'!F16,'Male Population'!G16,'Male Posturing'!K16,'Male Posturing'!L16) ->  | U16: =Knee_Z('Male Population'!F16,'Male Population'!G16,'Male Posturing'!K16,'Male Posturing'!L16) ->  | V16: =Knee_Angle('Male Population'!F16,'Male Population'!G16,'Male Posturing'!K16,'Male Posturing'!L16) -> 
A17: =SW_pref_X('Input & Output'!C$24,'Input & Output'!C$25,'Input & Output'!C$29,'Input & Output'!C$30,'Male Population'!A17,'Male Population'!D17,'Male Population'!E17) ->  | B17: =SW_pref_Z('Input & Output'!C$24,'Input & Output'!C$25,'Input & Output'!C$29,'Input & Output'!C$30,'Male Population'!A17,'Male Population'!D17,'Male Population'!E17) ->  | C17: =SW_adjust_X('Input & Output'!C$24,'Input & Output'!C$25,'Input & Output'!C$27,'Input & Output'!C$28,'Input & Output'!C$29,'Input & Output'!C$30,'Male Posturing'!A17,'Male Posturing'!B17) ->  | D17: =SW_adjust_Z('Input & Output'!C$24,'Input & Output'!C$25,'Input & Output'!C$27,'Input & Output'!C$28,'Input & Output'!C$29,'Input & Output'!C$30,'Male Posturing'!A17,'Male Posturing'!B17) ->  | F17: =Grip_Z('Input & Output'!C$26,'Input & Output'!C$29,'Input & Output'!C$30,'Male Population'!D17,'Male Posturing'!D17) ->  | G17: =H_pref_X('Male Population'!M17,'Male Population'!C17,'Male Posturing'!C17,'Male Posturing'!D17) ->  | H17: =H_pref_Z('Male Population'!M17,'Male Population'!C17,'Male Posturing'!D17) ->  | I17: =H_adjust_X('Input & Output'!C$20,'Input & Output'!C$21,'Male Posturing'!G17) ->  | J17: =H_adjust_Z('Input & Output'!C$22,'Input & Output'!C$23,'Male Posturing'!H17) ->  | K17: =Hip_X('Male Population'!C17,'Male Posturing'!I17) ->  | L17: =Hip_Z('Male Population'!C17,'Male Population'!B17,'Male Posturing'!J17) ->  | M17: =Eye_X('Male Population'!B17,'Male Population'!C17,'Male Population'!L17,'Male Posturing'!K17,'Male Posturing'!L17) ->  | N17: =Eye_Z('Male Population'!B17,'Male Population'!C17,'Male Population'!L17,'Male Posturing'!K17,'Male Posturing'!L17) ->  | O17: =Shoulder_X('Male Population'!B17,'Male Population'!C17,'Male Population'!L17,'Male Posturing'!K17,'Male Posturing'!L17) ->  | P17: =Shoulder_Z('Male Population'!B17,'Male Population'!C17,'Male Population'!L17,'Male Posturing'!K17,'Male Posturing'!L17) ->  | Q17: =Elbow_X('Male Population'!H17,'Male Population'!K17,'Male Posturing'!E17,'Male Posturing'!F17,'Male Posturing'!O17,'Male Posturing'!P17) ->  | R17: =Elbow_Z('Male Population'!H17,'Male Population'!K17,'Male Posturing'!E17,'Male Posturing'!F17,'Male Posturing'!O17,'Male Posturing'!P17) ->  | S17: =Elbow_Angle('Male Population'!H17,'Male Population'!K17,'Male Posturing'!E17,'Male Posturing'!F17,'Male Posturing'!O17,'Male Posturing'!P17) ->  | T17: =Knee_X('Male Population'!F17,'Male Population'!G17,'Male Posturing'!K17,'Male Posturing'!L17) ->  | U17: =Knee_Z('Male Population'!F17,'Male Population'!G17,'Male Posturing'!K17,'Male Posturing'!L17) ->  | V17: =Knee_Angle('Male Population'!F17,'Male Population'!G17,'Male Posturing'!K17,'Male Posturing'!L17) -> 
A18: =SW_pref_X('Input & Output'!C$24,'Input & Output'!C$25,'Input & Output'!C$29,'Input & Output'!C$30,'Male Population'!A18,'Male Population'!D18,'Male Population'!E18) ->  | B18: =SW_pref_Z('Input & Output'!C$24,'Input & Output'!C$25,'Input & Output'!C$29,'Input & Output'!C$30,'Male Population'!A18,'Male Population'!D18,'Male Population'!E18) ->  | C18: =SW_adjust_X('Input & Output'!C$24,'Input & Output'!C$25,'Input & Output'!C$27,'Input & Output'!C$28,'Input & Output'!C$29,'Input & Output'!C$30,'Male Posturing'!A18,'Male Posturing'!B18) ->  | D18: =SW_adjust_Z('Input & Output'!C$24,'Input & Output'!C$25,'Input & Output'!C$27,'Input & Output'!C$28,'Input & Output'!C$29,'Input & Output'!C$30,'Male Posturing'!A18,'Male Posturing'!B18) ->  | F18: =Grip_Z('Input & Output'!C$26,'Input & Output'!C$29,'Input & Output'!C$30,'Male Population'!D18,'Male Posturing'!D18) ->  | G18: =H_pref_X('Male Population'!M18,'Male Population'!C18,'Male Posturing'!C18,'Male Posturing'!D18) ->  | H18: =H_pref_Z('Male Population'!M18,'Male Population'!C18,'Male Posturing'!D18) ->  | I18: =H_adjust_X('Input & Output'!C$20,'Input & Output'!C$21,'Male Posturing'!G18) ->  | J18: =H_adjust_Z('Input & Output'!C$22,'Input & Output'!C$23,'Male Posturing'!H18) ->  | K18: =Hip_X('Male Population'!C18,'Male Posturing'!I18) ->  | L18: =Hip_Z('Male Population'!C18,'Male Population'!B18,'Male Posturing'!J18) ->  | M18: =Eye_X('Male Population'!B18,'Male Population'!C18,'Male Population'!L18,'Male Posturing'!K18,'Male Posturing'!L18) ->  | N18: =Eye_Z('Male Population'!B18,'Male Population'!C18,'Male Population'!L18,'Male Posturing'!K18,'Male Posturing'!L18) ->  | O18: =Shoulder_X('Male Population'!B18,'Male Population'!C18,'Male Population'!L18,'Male Posturing'!K18,'Male Posturing'!L18) ->  | P18: =Shoulder_Z('Male Population'!B18,'Male Population'!C18,'Male Population'!L18,'Male Posturing'!K18,'Male Posturing'!L18) ->  | Q18: =Elbow_X('Male Population'!H18,'Male Population'!K18,'Male Posturing'!E18,'Male Posturing'!F18,'Male Posturing'!O18,'Male Posturing'!P18) ->  | R18: =Elbow_Z('Male Population'!H18,'Male Population'!K18,'Male Posturing'!E18,'Male Posturing'!F18,'Male Posturing'!O18,'Male Posturing'!P18) ->  | S18: =Elbow_Angle('Male Population'!H18,'Male Population'!K18,'Male Posturing'!E18,'Male Posturing'!F18,'Male Posturing'!O18,'Male Posturing'!P18) ->  | T18: =Knee_X('Male Population'!F18,'Male Population'!G18,'Male Posturing'!K18,'Male Posturing'!L18) ->  | U18: =Knee_Z('Male Population'!F18,'Male Population'!G18,'Male Posturing'!K18,'Male Posturing'!L18) ->  | V18: =Knee_Angle('Male Population'!F18,'Male Population'!G18,'Male Posturing'!K18,'Male Posturing'!L18) -> 
A19: =SW_pref_X('Input & Output'!C$24,'Input & Output'!C$25,'Input & Output'!C$29,'Input & Output'!C$30,'Male Population'!A19,'Male Population'!D19,'Male Population'!E19) ->  | B19: =SW_pref_Z('Input & Output'!C$24,'Input & Output'!C$25,'Input & Output'!C$29,'Input & Output'!C$30,'Male Population'!A19,'Male Population'!D19,'Male Population'!E19) ->  | C19: =SW_adjust_X('Input & Output'!C$24,'Input & Output'!C$25,'Input & Output'!C$27,'Input & Output'!C$28,'Input & Output'!C$29,'Input & Output'!C$30,'Male Posturing'!A19,'Male Posturing'!B19) ->  | D19: =SW_adjust_Z('Input & Output'!C$24,'Input & Output'!C$25,'Input & Output'!C$27,'Input & Output'!C$28,'Input & Output'!C$29,'Input & Output'!C$30,'Male Posturing'!A19,'Male Posturing'!B19) ->  | F19: =Grip_Z('Input & Output'!C$26,'Input & Output'!C$29,'Input & Output'!C$30,'Male Population'!D19,'Male Posturing'!D19) ->  | G19: =H_pref_X('Male Population'!M19,'Male Population'!C19,'Male Posturing'!C19,'Male Posturing'!D19) ->  | H19: =H_pref_Z('Male Population'!M19,'Male Population'!C19,'Male Posturing'!D19) ->  | I19: =H_adjust_X('Input & Output'!C$20,'Input & Output'!C$21,'Male Posturing'!G19) ->  | J19: =H_adjust_Z('Input & Output'!C$22,'Input & Output'!C$23,'Male Posturing'!H19) ->  | K19: =Hip_X('Male Population'!C19,'Male Posturing'!I19) ->  | L19: =Hip_Z('Male Population'!C19,'Male Population'!B19,'Male Posturing'!J19) ->  | M19: =Eye_X('Male Population'!B19,'Male Population'!C19,'Male Population'!L19,'Male Posturing'!K19,'Male Posturing'!L19) ->  | N19: =Eye_Z('Male Population'!B19,'Male Population'!C19,'Male Population'!L19,'Male Posturing'!K19,'Male Posturing'!L19) ->  | O19: =Shoulder_X('Male Population'!B19,'Male Population'!C19,'Male Population'!L19,'Male Posturing'!K19,'Male Posturing'!L19) ->  | P19: =Shoulder_Z('Male Population'!B19,'Male Population'!C19,'Male Population'!L19,'Male Posturing'!K19,'Male Posturing'!L19) ->  | Q19: =Elbow_X('Male Population'!H19,'Male Population'!K19,'Male Posturing'!E19,'Male Posturing'!F19,'Male Posturing'!O19,'Male Posturing'!P19) ->  | R19: =Elbow_Z('Male Population'!H19,'Male Population'!K19,'Male Posturing'!E19,'Male Posturing'!F19,'Male Posturing'!O19,'Male Posturing'!P19) ->  | S19: =Elbow_Angle('Male Population'!H19,'Male Population'!K19,'Male Posturing'!E19,'Male Posturing'!F19,'Male Posturing'!O19,'Male Posturing'!P19) ->  | T19: =Knee_X('Male Population'!F19,'Male Population'!G19,'Male Posturing'!K19,'Male Posturing'!L19) ->  | U19: =Knee_Z('Male Population'!F19,'Male Population'!G19,'Male Posturing'!K19,'Male Posturing'!L19) ->  | V19: =Knee_Angle('Male Population'!F19,'Male Population'!G19,'Male Posturing'!K19,'Male Posturing'!L19) -> 
A20: =SW_pref_X('Input & Output'!C$24,'Input & Output'!C$25,'Input & Output'!C$29,'Input & Output'!C$30,'Male Population'!A20,'Male Population'!D20,'Male Population'!E20) ->  | B20: =SW_pref_Z('Input & Output'!C$24,'Input & Output'!C$25,'Input & Output'!C$29,'Input & Output'!C$30,'Male Population'!A20,'Male Population'!D20,'Male Population'!E20) ->  | C20: =SW_adjust_X('Input & Output'!C$24,'Input & Output'!C$25,'Input & Output'!C$27,'Input & Output'!C$28,'Input & Output'!C$29,'Input & Output'!C$30,'Male Posturing'!A20,'Male Posturing'!B20) ->  | D20: =SW_adjust_Z('Input & Output'!C$24,'Input & Output'!C$25,'Input & Output'!C$27,'Input & Output'!C$28,'Input & Output'!C$29,'Input & Output'!C$30,'Male Posturing'!A20,'Male Posturing'!B20) ->  | F20: =Grip_Z('Input & Output'!C$26,'Input & Output'!C$29,'Input & Output'!C$30,'Male Population'!D20,'Male Posturing'!D20) ->  | G20: =H_pref_X('Male Population'!M20,'Male Population'!C20,'Male Posturing'!C20,'Male Posturing'!D20) ->  | H20: =H_pref_Z('Male Population'!M20,'Male Population'!C20,'Male Posturing'!D20) ->  | I20: =H_adjust_X('Input & Output'!C$20,'Input & Output'!C$21,'Male Posturing'!G20) ->  | J20: =H_adjust_Z('Input & Output'!C$22,'Input & Output'!C$23,'Male Posturing'!H20) ->  | K20: =Hip_X('Male Population'!C20,'Male Posturing'!I20) ->  | L20: =Hip_Z('Male Population'!C20,'Male Population'!B20,'Male Posturing'!J20) ->  | M20: =Eye_X('Male Population'!B20,'Male Population'!C20,'Male Population'!L20,'Male Posturing'!K20,'Male Posturing'!L20) ->  | N20: =Eye_Z('Male Population'!B20,'Male Population'!C20,'Male Population'!L20,'Male Posturing'!K20,'Male Posturing'!L20) ->  | O20: =Shoulder_X('Male Population'!B20,'Male Population'!C20,'Male Population'!L20,'Male Posturing'!K20,'Male Posturing'!L20) ->  | P20: =Shoulder_Z('Male Population'!B20,'Male Population'!C20,'Male Population'!L20,'Male Posturing'!K20,'Male Posturing'!L20) ->  | Q20: =Elbow_X('Male Population'!H20,'Male Population'!K20,'Male Posturing'!E20,'Male Posturing'!F20,'Male Posturing'!O20,'Male Posturing'!P20) ->  | R20: =Elbow_Z('Male Population'!H20,'Male Population'!K20,'Male Posturing'!E20,'Male Posturing'!F20,'Male Posturing'!O20,'Male Posturing'!P20) ->  | S20: =Elbow_Angle('Male Population'!H20,'Male Population'!K20,'Male Posturing'!E20,'Male Posturing'!F20,'Male Posturing'!O20,'Male Posturing'!P20) ->  | T20: =Knee_X('Male Population'!F20,'Male Population'!G20,'Male Posturing'!K20,'Male Posturing'!L20) ->  | U20: =Knee_Z('Male Population'!F20,'Male Population'!G20,'Male Posturing'!K20,'Male Posturing'!L20) ->  | V20: =Knee_Angle('Male Population'!F20,'Male Population'!G20,'Male Posturing'!K20,'Male Posturing'!L20) -> 
A21: =SW_pref_X('Input & Output'!C$24,'Input & Output'!C$25,'Input & Output'!C$29,'Input & Output'!C$30,'Male Population'!A21,'Male Population'!D21,'Male Population'!E21) ->  | B21: =SW_pref_Z('Input & Output'!C$24,'Input & Output'!C$25,'Input & Output'!C$29,'Input & Output'!C$30,'Male Population'!A21,'Male Population'!D21,'Male Population'!E21) ->  | C21: =SW_adjust_X('Input & Output'!C$24,'Input & Output'!C$25,'Input & Output'!C$27,'Input & Output'!C$28,'Input & Output'!C$29,'Input & Output'!C$30,'Male Posturing'!A21,'Male Posturing'!B21) ->  | D21: =SW_adjust_Z('Input & Output'!C$24,'Input & Output'!C$25,'Input & Output'!C$27,'Input & Output'!C$28,'Input & Output'!C$29,'Input & Output'!C$30,'Male Posturing'!A21,'Male Posturing'!B21) ->  | F21: =Grip_Z('Input & Output'!C$26,'Input & Output'!C$29,'Input & Output'!C$30,'Male Population'!D21,'Male Posturing'!D21) ->  | G21: =H_pref_X('Male Population'!M21,'Male Population'!C21,'Male Posturing'!C21,'Male Posturing'!D21) ->  | H21: =H_pref_Z('Male Population'!M21,'Male Population'!C21,'Male Posturing'!D21) ->  | I21: =H_adjust_X('Input & Output'!C$20,'Input & Output'!C$21,'Male Posturing'!G21) ->  | J21: =H_adjust_Z('Input & Output'!C$22,'Input & Output'!C$23,'Male Posturing'!H21) ->  | K21: =Hip_X('Male Population'!C21,'Male Posturing'!I21) ->  | L21: =Hip_Z('Male Population'!C21,'Male Population'!B21,'Male Posturing'!J21) ->  | M21: =Eye_X('Male Population'!B21,'Male Population'!C21,'Male Population'!L21,'Male Posturing'!K21,'Male Posturing'!L21) ->  | N21: =Eye_Z('Male Population'!B21,'Male Population'!C21,'Male Population'!L21,'Male Posturing'!K21,'Male Posturing'!L21) ->  | O21: =Shoulder_X('Male Population'!B21,'Male Population'!C21,'Male Population'!L21,'Male Posturing'!K21,'Male Posturing'!L21) ->  | P21: =Shoulder_Z('Male Population'!B21,'Male Population'!C21,'Male Population'!L21,'Male Posturing'!K21,'Male Posturing'!L21) ->  | Q21: =Elbow_X('Male Population'!H21,'Male Population'!K21,'Male Posturing'!E21,'Male Posturing'!F21,'Male Posturing'!O21,'Male Posturing'!P21) ->  | R21: =Elbow_Z('Male Population'!H21,'Male Population'!K21,'Male Posturing'!E21,'Male Posturing'!F21,'Male Posturing'!O21,'Male Posturing'!P21) ->  | S21: =Elbow_Angle('Male Population'!H21,'Male Population'!K21,'Male Posturing'!E21,'Male Posturing'!F21,'Male Posturing'!O21,'Male Posturing'!P21) ->  | T21: =Knee_X('Male Population'!F21,'Male Population'!G21,'Male Posturing'!K21,'Male Posturing'!L21) ->  | U21: =Knee_Z('Male Population'!F21,'Male Population'!G21,'Male Posturing'!K21,'Male Posturing'!L21) ->  | V21: =Knee_Angle('Male Population'!F21,'Male Population'!G21,'Male Posturing'!K21,'Male Posturing'!L21) -> 
A22: =SW_pref_X('Input & Output'!C$24,'Input & Output'!C$25,'Input & Output'!C$29,'Input & Output'!C$30,'Male Population'!A22,'Male Population'!D22,'Male Population'!E22) ->  | B22: =SW_pref_Z('Input & Output'!C$24,'Input & Output'!C$25,'Input & Output'!C$29,'Input & Output'!C$30,'Male Population'!A22,'Male Population'!D22,'Male Population'!E22) ->  | C22: =SW_adjust_X('Input & Output'!C$24,'Input & Output'!C$25,'Input & Output'!C$27,'Input & Output'!C$28,'Input & Output'!C$29,'Input & Output'!C$30,'Male Posturing'!A22,'Male Posturing'!B22) ->  | D22: =SW_adjust_Z('Input & Output'!C$24,'Input & Output'!C$25,'Input & Output'!C$27,'Input & Output'!C$28,'Input & Output'!C$29,'Input & Output'!C$30,'Male Posturing'!A22,'Male Posturing'!B22) ->  | F22: =Grip_Z('Input & Output'!C$26,'Input & Output'!C$29,'Input & Output'!C$30,'Male Population'!D22,'Male Posturing'!D22) ->  | G22: =H_pref_X('Male Population'!M22,'Male Population'!C22,'Male Posturing'!C22,'Male Posturing'!D22) ->  | H22: =H_pref_Z('Male Population'!M22,'Male Population'!C22,'Male Posturing'!D22) ->  | I22: =H_adjust_X('Input & Output'!C$20,'Input & Output'!C$21,'Male Posturing'!G22) ->  | J22: =H_adjust_Z('Input & Output'!C$22,'Input & Output'!C$23,'Male Posturing'!H22) ->  | K22: =Hip_X('Male Population'!C22,'Male Posturing'!I22) ->  | L22: =Hip_Z('Male Population'!C22,'Male Population'!B22,'Male Posturing'!J22) ->  | M22: =Eye_X('Male Population'!B22,'Male Population'!C22,'Male Population'!L22,'Male Posturing'!K22,'Male Posturing'!L22) ->  | N22: =Eye_Z('Male Population'!B22,'Male Population'!C22,'Male Population'!L22,'Male Posturing'!K22,'Male Posturing'!L22) ->  | O22: =Shoulder_X('Male Population'!B22,'Male Population'!C22,'Male Population'!L22,'Male Posturing'!K22,'Male Posturing'!L22) ->  | P22: =Shoulder_Z('Male Population'!B22,'Male Population'!C22,'Male Population'!L22,'Male Posturing'!K22,'Male Posturing'!L22) ->  | Q22: =Elbow_X('Male Population'!H22,'Male Population'!K22,'Male Posturing'!E22,'Male Posturing'!F22,'Male Posturing'!O22,'Male Posturing'!P22) ->  | R22: =Elbow_Z('Male Population'!H22,'Male Population'!K22,'Male Posturing'!E22,'Male Posturing'!F22,'Male Posturing'!O22,'Male Posturing'!P22) ->  | S22: =Elbow_Angle('Male Population'!H22,'Male Population'!K22,'Male Posturing'!E22,'Male Posturing'!F22,'Male Posturing'!O22,'Male Posturing'!P22) ->  | T22: =Knee_X('Male Population'!F22,'Male Population'!G22,'Male Posturing'!K22,'Male Posturing'!L22) ->  | U22: =Knee_Z('Male Population'!F22,'Male Population'!G22,'Male Posturing'!K22,'Male Posturing'!L22) ->  | V22: =Knee_Angle('Male Population'!F22,'Male Population'!G22,'Male Posturing'!K22,'Male Posturing'!L22) -> 
A23: =SW_pref_X('Input & Output'!C$24,'Input & Output'!C$25,'Input & Output'!C$29,'Input & Output'!C$30,'Male Population'!A23,'Male Population'!D23,'Male Population'!E23) ->  | B23: =SW_pref_Z('Input & Output'!C$24,'Input & Output'!C$25,'Input & Output'!C$29,'Input & Output'!C$30,'Male Population'!A23,'Male Population'!D23,'Male Population'!E23) ->  | C23: =SW_adjust_X('Input & Output'!C$24,'Input & Output'!C$25,'Input & Output'!C$27,'Input & Output'!C$28,'Input & Output'!C$29,'Input & Output'!C$30,'Male Posturing'!A23,'Male Posturing'!B23) ->  | D23: =SW_adjust_Z('Input & Output'!C$24,'Input & Output'!C$25,'Input & Output'!C$27,'Input & Output'!C$28,'Input & Output'!C$29,'Input & Output'!C$30,'Male Posturing'!A23,'Male Posturing'!B23) ->  | F23: =Grip_Z('Input & Output'!C$26,'Input & Output'!C$29,'Input & Output'!C$30,'Male Population'!D23,'Male Posturing'!D23) ->  | G23: =H_pref_X('Male Population'!M23,'Male Population'!C23,'Male Posturing'!C23,'Male Posturing'!D23) ->  | H23: =H_pref_Z('Male Population'!M23,'Male Population'!C23,'Male Posturing'!D23) ->  | I23: =H_adjust_X('Input & Output'!C$20,'Input & Output'!C$21,'Male Posturing'!G23) ->  | J23: =H_adjust_Z('Input & Output'!C$22,'Input & Output'!C$23,'Male Posturing'!H23) ->  | K23: =Hip_X('Male Population'!C23,'Male Posturing'!I23) ->  | L23: =Hip_Z('Male Population'!C23,'Male Population'!B23,'Male Posturing'!J23) ->  | M23: =Eye_X('Male Population'!B23,'Male Population'!C23,'Male Population'!L23,'Male Posturing'!K23,'Male Posturing'!L23) ->  | N23: =Eye_Z('Male Population'!B23,'Male Population'!C23,'Male Population'!L23,'Male Posturing'!K23,'Male Posturing'!L23) ->  | O23: =Shoulder_X('Male Population'!B23,'Male Population'!C23,'Male Population'!L23,'Male Posturing'!K23,'Male Posturing'!L23) ->  | P23: =Shoulder_Z('Male Population'!B23,'Male Population'!C23,'Male Population'!L23,'Male Posturing'!K23,'Male Posturing'!L23) ->  | Q23: =Elbow_X('Male Population'!H23,'Male Population'!K23,'Male Posturing'!E23,'Male Posturing'!F23,'Male Posturing'!O23,'Male Posturing'!P23) ->  | R23: =Elbow_Z('Male Population'!H23,'Male Population'!K23,'Male Posturing'!E23,'Male Posturing'!F23,'Male Posturing'!O23,'Male Posturing'!P23) ->  | S23: =Elbow_Angle('Male Population'!H23,'Male Population'!K23,'Male Posturing'!E23,'Male Posturing'!F23,'Male Posturing'!O23,'Male Posturing'!P23) ->  | T23: =Knee_X('Male Population'!F23,'Male Population'!G23,'Male Posturing'!K23,'Male Posturing'!L23) ->  | U23: =Knee_Z('Male Population'!F23,'Male Population'!G23,'Male Posturing'!K23,'Male Posturing'!L23) ->  | V23: =Knee_Angle('Male Population'!F23,'Male Population'!G23,'Male Posturing'!K23,'Male Posturing'!L23) -> 
A24: =SW_pref_X('Input & Output'!C$24,'Input & Output'!C$25,'Input & Output'!C$29,'Input & Output'!C$30,'Male Population'!A24,'Male Population'!D24,'Male Population'!E24) ->  | B24: =SW_pref_Z('Input & Output'!C$24,'Input & Output'!C$25,'Input & Output'!C$29,'Input & Output'!C$30,'Male Population'!A24,'Male Population'!D24,'Male Population'!E24) ->  | C24: =SW_adjust_X('Input & Output'!C$24,'Input & Output'!C$25,'Input & Output'!C$27,'Input & Output'!C$28,'Input & Output'!C$29,'Input & Output'!C$30,'Male Posturing'!A24,'Male Posturing'!B24) ->  | D24: =SW_adjust_Z('Input & Output'!C$24,'Input & Output'!C$25,'Input & Output'!C$27,'Input & Output'!C$28,'Input & Output'!C$29,'Input & Output'!C$30,'Male Posturing'!A24,'Male Posturing'!B24) ->  | F24: =Grip_Z('Input & Output'!C$26,'Input & Output'!C$29,'Input & Output'!C$30,'Male Population'!D24,'Male Posturing'!D24) ->  | G24: =H_pref_X('Male Population'!M24,'Male Population'!C24,'Male Posturing'!C24,'Male Posturing'!D24) ->  | H24: =H_pref_Z('Male Population'!M24,'Male Population'!C24,'Male Posturing'!D24) ->  | I24: =H_adjust_X('Input & Output'!C$20,'Input & Output'!C$21,'Male Posturing'!G24) ->  | J24: =H_adjust_Z('Input & Output'!C$22,'Input & Output'!C$23,'Male Posturing'!H24) ->  | K24: =Hip_X('Male Population'!C24,'Male Posturing'!I24) ->  | L24: =Hip_Z('Male Population'!C24,'Male Population'!B24,'Male Posturing'!J24) ->  | M24: =Eye_X('Male Population'!B24,'Male Population'!C24,'Male Population'!L24,'Male Posturing'!K24,'Male Posturing'!L24) ->  | N24: =Eye_Z('Male Population'!B24,'Male Population'!C24,'Male Population'!L24,'Male Posturing'!K24,'Male Posturing'!L24) ->  | O24: =Shoulder_X('Male Population'!B24,'Male Population'!C24,'Male Population'!L24,'Male Posturing'!K24,'Male Posturing'!L24) ->  | P24: =Shoulder_Z('Male Population'!B24,'Male Population'!C24,'Male Population'!L24,'Male Posturing'!K24,'Male Posturing'!L24) ->  | Q24: =Elbow_X('Male Population'!H24,'Male Population'!K24,'Male Posturing'!E24,'Male Posturing'!F24,'Male Posturing'!O24,'Male Posturing'!P24) ->  | R24: =Elbow_Z('Male Population'!H24,'Male Population'!K24,'Male Posturing'!E24,'Male Posturing'!F24,'Male Posturing'!O24,'Male Posturing'!P24) ->  | S24: =Elbow_Angle('Male Population'!H24,'Male Population'!K24,'Male Posturing'!E24,'Male Posturing'!F24,'Male Posturing'!O24,'Male Posturing'!P24) ->  | T24: =Knee_X('Male Population'!F24,'Male Population'!G24,'Male Posturing'!K24,'Male Posturing'!L24) ->  | U24: =Knee_Z('Male Population'!F24,'Male Population'!G24,'Male Posturing'!K24,'Male Posturing'!L24) ->  | V24: =Knee_Angle('Male Population'!F24,'Male Population'!G24,'Male Posturing'!K24,'Male Posturing'!L24) -> 
A25: =SW_pref_X('Input & Output'!C$24,'Input & Output'!C$25,'Input & Output'!C$29,'Input & Output'!C$30,'Male Population'!A25,'Male Population'!D25,'Male Population'!E25) ->  | B25: =SW_pref_Z('Input & Output'!C$24,'Input & Output'!C$25,'Input & Output'!C$29,'Input & Output'!C$30,'Male Population'!A25,'Male Population'!D25,'Male Population'!E25) ->  | C25: =SW_adjust_X('Input & Output'!C$24,'Input & Output'!C$25,'Input & Output'!C$27,'Input & Output'!C$28,'Input & Output'!C$29,'Input & Output'!C$30,'Male Posturing'!A25,'Male Posturing'!B25) ->  | D25: =SW_adjust_Z('Input & Output'!C$24,'Input & Output'!C$25,'Input & Output'!C$27,'Input & Output'!C$28,'Input & Output'!C$29,'Input & Output'!C$30,'Male Posturing'!A25,'Male Posturing'!B25) ->  | F25: =Grip_Z('Input & Output'!C$26,'Input & Output'!C$29,'Input & Output'!C$30,'Male Population'!D25,'Male Posturing'!D25) ->  | G25: =H_pref_X('Male Population'!M25,'Male Population'!C25,'Male Posturing'!C25,'Male Posturing'!D25) ->  | H25: =H_pref_Z('Male Population'!M25,'Male Population'!C25,'Male Posturing'!D25) ->  | I25: =H_adjust_X('Input & Output'!C$20,'Input & Output'!C$21,'Male Posturing'!G25) ->  | J25: =H_adjust_Z('Input & Output'!C$22,'Input & Output'!C$23,'Male Posturing'!H25) ->  | K25: =Hip_X('Male Population'!C25,'Male Posturing'!I25) ->  | L25: =Hip_Z('Male Population'!C25,'Male Population'!B25,'Male Posturing'!J25) ->  | M25: =Eye_X('Male Population'!B25,'Male Population'!C25,'Male Population'!L25,'Male Posturing'!K25,'Male Posturing'!L25) ->  | N25: =Eye_Z('Male Population'!B25,'Male Population'!C25,'Male Population'!L25,'Male Posturing'!K25,'Male Posturing'!L25) ->  | O25: =Shoulder_X('Male Population'!B25,'Male Population'!C25,'Male Population'!L25,'Male Posturing'!K25,'Male Posturing'!L25) ->  | P25: =Shoulder_Z('Male Population'!B25,'Male Population'!C25,'Male Population'!L25,'Male Posturing'!K25,'Male Posturing'!L25) ->  | Q25: =Elbow_X('Male Population'!H25,'Male Population'!K25,'Male Posturing'!E25,'Male Posturing'!F25,'Male Posturing'!O25,'Male Posturing'!P25) ->  | R25: =Elbow_Z('Male Population'!H25,'Male Population'!K25,'Male Posturing'!E25,'Male Posturing'!F25,'Male Posturing'!O25,'Male Posturing'!P25) ->  | S25: =Elbow_Angle('Male Population'!H25,'Male Population'!K25,'Male Posturing'!E25,'Male Posturing'!F25,'Male Posturing'!O25,'Male Posturing'!P25) ->  | T25: =Knee_X('Male Population'!F25,'Male Population'!G25,'Male Posturing'!K25,'Male Posturing'!L25) ->  | U25: =Knee_Z('Male Population'!F25,'Male Population'!G25,'Male Posturing'!K25,'Male Posturing'!L25) ->  | V25: =Knee_Angle('Male Population'!F25,'Male Population'!G25,'Male Posturing'!K25,'Male Posturing'!L25) -> 
A26: =SW_pref_X('Input & Output'!C$24,'Input & Output'!C$25,'Input & Output'!C$29,'Input & Output'!C$30,'Male Population'!A26,'Male Population'!D26,'Male Population'!E26) ->  | B26: =SW_pref_Z('Input & Output'!C$24,'Input & Output'!C$25,'Input & Output'!C$29,'Input & Output'!C$30,'Male Population'!A26,'Male Population'!D26,'Male Population'!E26) ->  | C26: =SW_adjust_X('Input & Output'!C$24,'Input & Output'!C$25,'Input & Output'!C$27,'Input & Output'!C$28,'Input & Output'!C$29,'Input & Output'!C$30,'Male Posturing'!A26,'Male Posturing'!B26) ->  | D26: =SW_adjust_Z('Input & Output'!C$24,'Input & Output'!C$25,'Input & Output'!C$27,'Input & Output'!C$28,'Input & Output'!C$29,'Input & Output'!C$30,'Male Posturing'!A26,'Male Posturing'!B26) ->  | F26: =Grip_Z('Input & Output'!C$26,'Input & Output'!C$29,'Input & Output'!C$30,'Male Population'!D26,'Male Posturing'!D26) ->  | G26: =H_pref_X('Male Population'!M26,'Male Population'!C26,'Male Posturing'!C26,'Male Posturing'!D26) ->  | H26: =H_pref_Z('Male Population'!M26,'Male Population'!C26,'Male Posturing'!D26) ->  | I26: =H_adjust_X('Input & Output'!C$20,'Input & Output'!C$21,'Male Posturing'!G26) ->  | J26: =H_adjust_Z('Input & Output'!C$22,'Input & Output'!C$23,'Male Posturing'!H26) ->  | K26: =Hip_X('Male Population'!C26,'Male Posturing'!I26) ->  | L26: =Hip_Z('Male Population'!C26,'Male Population'!B26,'Male Posturing'!J26) ->  | M26: =Eye_X('Male Population'!B26,'Male Population'!C26,'Male Population'!L26,'Male Posturing'!K26,'Male Posturing'!L26) ->  | N26: =Eye_Z('Male Population'!B26,'Male Population'!C26,'Male Population'!L26,'Male Posturing'!K26,'Male Posturing'!L26) ->  | O26: =Shoulder_X('Male Population'!B26,'Male Population'!C26,'Male Population'!L26,'Male Posturing'!K26,'Male Posturing'!L26) ->  | P26: =Shoulder_Z('Male Population'!B26,'Male Population'!C26,'Male Population'!L26,'Male Posturing'!K26,'Male Posturing'!L26) ->  | Q26: =Elbow_X('Male Population'!H26,'Male Population'!K26,'Male Posturing'!E26,'Male Posturing'!F26,'Male Posturing'!O26,'Male Posturing'!P26) ->  | R26: =Elbow_Z('Male Population'!H26,'Male Population'!K26,'Male Posturing'!E26,'Male Posturing'!F26,'Male Posturing'!O26,'Male Posturing'!P26) ->  | S26: =Elbow_Angle('Male Population'!H26,'Male Population'!K26,'Male Posturing'!E26,'Male Posturing'!F26,'Male Posturing'!O26,'Male Posturing'!P26) ->  | T26: =Knee_X('Male Population'!F26,'Male Population'!G26,'Male Posturing'!K26,'Male Posturing'!L26) ->  | U26: =Knee_Z('Male Population'!F26,'Male Population'!G26,'Male Posturing'!K26,'Male Posturing'!L26) ->  | V26: =Knee_Angle('Male Population'!F26,'Male Population'!G26,'Male Posturing'!K26,'Male Posturing'!L26) -> 
A27: =SW_pref_X('Input & Output'!C$24,'Input & Output'!C$25,'Input & Output'!C$29,'Input & Output'!C$30,'Male Population'!A27,'Male Population'!D27,'Male Population'!E27) ->  | B27: =SW_pref_Z('Input & Output'!C$24,'Input & Output'!C$25,'Input & Output'!C$29,'Input & Output'!C$30,'Male Population'!A27,'Male Population'!D27,'Male Population'!E27) ->  | C27: =SW_adjust_X('Input & Output'!C$24,'Input & Output'!C$25,'Input & Output'!C$27,'Input & Output'!C$28,'Input & Output'!C$29,'Input & Output'!C$30,'Male Posturing'!A27,'Male Posturing'!B27) ->  | D27: =SW_adjust_Z('Input & Output'!C$24,'Input & Output'!C$25,'Input & Output'!C$27,'Input & Output'!C$28,'Input & Output'!C$29,'Input & Output'!C$30,'Male Posturing'!A27,'Male Posturing'!B27) ->  | F27: =Grip_Z('Input & Output'!C$26,'Input & Output'!C$29,'Input & Output'!C$30,'Male Population'!D27,'Male Posturing'!D27) ->  | G27: =H_pref_X('Male Population'!M27,'Male Population'!C27,'Male Posturing'!C27,'Male Posturing'!D27) ->  | H27: =H_pref_Z('Male Population'!M27,'Male Population'!C27,'Male Posturing'!D27) ->  | I27: =H_adjust_X('Input & Output'!C$20,'Input & Output'!C$21,'Male Posturing'!G27) ->  | J27: =H_adjust_Z('Input & Output'!C$22,'Input & Output'!C$23,'Male Posturing'!H27) ->  | K27: =Hip_X('Male Population'!C27,'Male Posturing'!I27) ->  | L27: =Hip_Z('Male Population'!C27,'Male Population'!B27,'Male Posturing'!J27) ->  | M27: =Eye_X('Male Population'!B27,'Male Population'!C27,'Male Population'!L27,'Male Posturing'!K27,'Male Posturing'!L27) ->  | N27: =Eye_Z('Male Population'!B27,'Male Population'!C27,'Male Population'!L27,'Male Posturing'!K27,'Male Posturing'!L27) ->  | O27: =Shoulder_X('Male Population'!B27,'Male Population'!C27,'Male Population'!L27,'Male Posturing'!K27,'Male Posturing'!L27) ->  | P27: =Shoulder_Z('Male Population'!B27,'Male Population'!C27,'Male Population'!L27,'Male Posturing'!K27,'Male Posturing'!L27) ->  | Q27: =Elbow_X('Male Population'!H27,'Male Population'!K27,'Male Posturing'!E27,'Male Posturing'!F27,'Male Posturing'!O27,'Male Posturing'!P27) ->  | R27: =Elbow_Z('Male Population'!H27,'Male Population'!K27,'Male Posturing'!E27,'Male Posturing'!F27,'Male Posturing'!O27,'Male Posturing'!P27) ->  | S27: =Elbow_Angle('Male Population'!H27,'Male Population'!K27,'Male Posturing'!E27,'Male Posturing'!F27,'Male Posturing'!O27,'Male Posturing'!P27) ->  | T27: =Knee_X('Male Population'!F27,'Male Population'!G27,'Male Posturing'!K27,'Male Posturing'!L27) ->  | U27: =Knee_Z('Male Population'!F27,'Male Population'!G27,'Male Posturing'!K27,'Male Posturing'!L27) ->  | V27: =Knee_Angle('Male Population'!F27,'Male Population'!G27,'Male Posturing'!K27,'Male Posturing'!L27) -> 
A28: =SW_pref_X('Input & Output'!C$24,'Input & Output'!C$25,'Input & Output'!C$29,'Input & Output'!C$30,'Male Population'!A28,'Male Population'!D28,'Male Population'!E28) ->  | B28: =SW_pref_Z('Input & Output'!C$24,'Input & Output'!C$25,'Input & Output'!C$29,'Input & Output'!C$30,'Male Population'!A28,'Male Population'!D28,'Male Population'!E28) ->  | C28: =SW_adjust_X('Input & Output'!C$24,'Input & Output'!C$25,'Input & Output'!C$27,'Input & Output'!C$28,'Input & Output'!C$29,'Input & Output'!C$30,'Male Posturing'!A28,'Male Posturing'!B28) ->  | D28: =SW_adjust_Z('Input & Output'!C$24,'Input & Output'!C$25,'Input & Output'!C$27,'Input & Output'!C$28,'Input & Output'!C$29,'Input & Output'!C$30,'Male Posturing'!A28,'Male Posturing'!B28) ->  | F28: =Grip_Z('Input & Output'!C$26,'Input & Output'!C$29,'Input & Output'!C$30,'Male Population'!D28,'Male Posturing'!D28) ->  | G28: =H_pref_X('Male Population'!M28,'Male Population'!C28,'Male Posturing'!C28,'Male Posturing'!D28) ->  | H28: =H_pref_Z('Male Population'!M28,'Male Population'!C28,'Male Posturing'!D28) ->  | I28: =H_adjust_X('Input & Output'!C$20,'Input & Output'!C$21,'Male Posturing'!G28) ->  | J28: =H_adjust_Z('Input & Output'!C$22,'Input & Output'!C$23,'Male Posturing'!H28) ->  | K28: =Hip_X('Male Population'!C28,'Male Posturing'!I28) ->  | L28: =Hip_Z('Male Population'!C28,'Male Population'!B28,'Male Posturing'!J28) ->  | M28: =Eye_X('Male Population'!B28,'Male Population'!C28,'Male Population'!L28,'Male Posturing'!K28,'Male Posturing'!L28) ->  | N28: =Eye_Z('Male Population'!B28,'Male Population'!C28,'Male Population'!L28,'Male Posturing'!K28,'Male Posturing'!L28) ->  | O28: =Shoulder_X('Male Population'!B28,'Male Population'!C28,'Male Population'!L28,'Male Posturing'!K28,'Male Posturing'!L28) ->  | P28: =Shoulder_Z('Male Population'!B28,'Male Population'!C28,'Male Population'!L28,'Male Posturing'!K28,'Male Posturing'!L28) ->  | Q28: =Elbow_X('Male Population'!H28,'Male Population'!K28,'Male Posturing'!E28,'Male Posturing'!F28,'Male Posturing'!O28,'Male Posturing'!P28) ->  | R28: =Elbow_Z('Male Population'!H28,'Male Population'!K28,'Male Posturing'!E28,'Male Posturing'!F28,'Male Posturing'!O28,'Male Posturing'!P28) ->  | S28: =Elbow_Angle('Male Population'!H28,'Male Population'!K28,'Male Posturing'!E28,'Male Posturing'!F28,'Male Posturing'!O28,'Male Posturing'!P28) ->  | T28: =Knee_X('Male Population'!F28,'Male Population'!G28,'Male Posturing'!K28,'Male Posturing'!L28) ->  | U28: =Knee_Z('Male Population'!F28,'Male Population'!G28,'Male Posturing'!K28,'Male Posturing'!L28) ->  | V28: =Knee_Angle('Male Population'!F28,'Male Population'!G28,'Male Posturing'!K28,'Male Posturing'!L28) -> 
A29: =SW_pref_X('Input & Output'!C$24,'Input & Output'!C$25,'Input & Output'!C$29,'Input & Output'!C$30,'Male Population'!A29,'Male Population'!D29,'Male Population'!E29) ->  | B29: =SW_pref_Z('Input & Output'!C$24,'Input & Output'!C$25,'Input & Output'!C$29,'Input & Output'!C$30,'Male Population'!A29,'Male Population'!D29,'Male Population'!E29) ->  | C29: =SW_adjust_X('Input & Output'!C$24,'Input & Output'!C$25,'Input & Output'!C$27,'Input & Output'!C$28,'Input & Output'!C$29,'Input & Output'!C$30,'Male Posturing'!A29,'Male Posturing'!B29) ->  | D29: =SW_adjust_Z('Input & Output'!C$24,'Input & Output'!C$25,'Input & Output'!C$27,'Input & Output'!C$28,'Input & Output'!C$29,'Input & Output'!C$30,'Male Posturing'!A29,'Male Posturing'!B29) ->  | F29: =Grip_Z('Input & Output'!C$26,'Input & Output'!C$29,'Input & Output'!C$30,'Male Population'!D29,'Male Posturing'!D29) ->  | G29: =H_pref_X('Male Population'!M29,'Male Population'!C29,'Male Posturing'!C29,'Male Posturing'!D29) ->  | H29: =H_pref_Z('Male Population'!M29,'Male Population'!C29,'Male Posturing'!D29) ->  | I29: =H_adjust_X('Input & Output'!C$20,'Input & Output'!C$21,'Male Posturing'!G29) ->  | J29: =H_adjust_Z('Input & Output'!C$22,'Input & Output'!C$23,'Male Posturing'!H29) ->  | K29: =Hip_X('Male Population'!C29,'Male Posturing'!I29) ->  | L29: =Hip_Z('Male Population'!C29,'Male Population'!B29,'Male Posturing'!J29) ->  | M29: =Eye_X('Male Population'!B29,'Male Population'!C29,'Male Population'!L29,'Male Posturing'!K29,'Male Posturing'!L29) ->  | N29: =Eye_Z('Male Population'!B29,'Male Population'!C29,'Male Population'!L29,'Male Posturing'!K29,'Male Posturing'!L29) ->  | O29: =Shoulder_X('Male Population'!B29,'Male Population'!C29,'Male Population'!L29,'Male Posturing'!K29,'Male Posturing'!L29) ->  | P29: =Shoulder_Z('Male Population'!B29,'Male Population'!C29,'Male Population'!L29,'Male Posturing'!K29,'Male Posturing'!L29) ->  | Q29: =Elbow_X('Male Population'!H29,'Male Population'!K29,'Male Posturing'!E29,'Male Posturing'!F29,'Male Posturing'!O29,'Male Posturing'!P29) ->  | R29: =Elbow_Z('Male Population'!H29,'Male Population'!K29,'Male Posturing'!E29,'Male Posturing'!F29,'Male Posturing'!O29,'Male Posturing'!P29) ->  | S29: =Elbow_Angle('Male Population'!H29,'Male Population'!K29,'Male Posturing'!E29,'Male Posturing'!F29,'Male Posturing'!O29,'Male Posturing'!P29) ->  | T29: =Knee_X('Male Population'!F29,'Male Population'!G29,'Male Posturing'!K29,'Male Posturing'!L29) ->  | U29: =Knee_Z('Male Population'!F29,'Male Population'!G29,'Male Posturing'!K29,'Male Posturing'!L29) ->  | V29: =Knee_Angle('Male Population'!F29,'Male Population'!G29,'Male Posturing'!K29,'Male Posturing'!L29) -> 
A30: =SW_pref_X('Input & Output'!C$24,'Input & Output'!C$25,'Input & Output'!C$29,'Input & Output'!C$30,'Male Population'!A30,'Male Population'!D30,'Male Population'!E30) ->  | B30: =SW_pref_Z('Input & Output'!C$24,'Input & Output'!C$25,'Input & Output'!C$29,'Input & Output'!C$30,'Male Population'!A30,'Male Population'!D30,'Male Population'!E30) ->  | C30: =SW_adjust_X('Input & Output'!C$24,'Input & Output'!C$25,'Input & Output'!C$27,'Input & Output'!C$28,'Input & Output'!C$29,'Input & Output'!C$30,'Male Posturing'!A30,'Male Posturing'!B30) ->  | D30: =SW_adjust_Z('Input & Output'!C$24,'Input & Output'!C$25,'Input & Output'!C$27,'Input & Output'!C$28,'Input & Output'!C$29,'Input & Output'!C$30,'Male Posturing'!A30,'Male Posturing'!B30) ->  | F30: =Grip_Z('Input & Output'!C$26,'Input & Output'!C$29,'Input & Output'!C$30,'Male Population'!D30,'Male Posturing'!D30) ->  | G30: =H_pref_X('Male Population'!M30,'Male Population'!C30,'Male Posturing'!C30,'Male Posturing'!D30) ->  | H30: =H_pref_Z('Male Population'!M30,'Male Population'!C30,'Male Posturing'!D30) ->  | I30: =H_adjust_X('Input & Output'!C$20,'Input & Output'!C$21,'Male Posturing'!G30) ->  | J30: =H_adjust_Z('Input & Output'!C$22,'Input & Output'!C$23,'Male Posturing'!H30) ->  | K30: =Hip_X('Male Population'!C30,'Male Posturing'!I30) ->  | L30: =Hip_Z('Male Population'!C30,'Male Population'!B30,'Male Posturing'!J30) ->  | M30: =Eye_X('Male Population'!B30,'Male Population'!C30,'Male Population'!L30,'Male Posturing'!K30,'Male Posturing'!L30) ->  | N30: =Eye_Z('Male Population'!B30,'Male Population'!C30,'Male Population'!L30,'Male Posturing'!K30,'Male Posturing'!L30) ->  | O30: =Shoulder_X('Male Population'!B30,'Male Population'!C30,'Male Population'!L30,'Male Posturing'!K30,'Male Posturing'!L30) ->  | P30: =Shoulder_Z('Male Population'!B30,'Male Population'!C30,'Male Population'!L30,'Male Posturing'!K30,'Male Posturing'!L30) ->  | Q30: =Elbow_X('Male Population'!H30,'Male Population'!K30,'Male Posturing'!E30,'Male Posturing'!F30,'Male Posturing'!O30,'Male Posturing'!P30) ->  | R30: =Elbow_Z('Male Population'!H30,'Male Population'!K30,'Male Posturing'!E30,'Male Posturing'!F30,'Male Posturing'!O30,'Male Posturing'!P30) ->  | S30: =Elbow_Angle('Male Population'!H30,'Male Population'!K30,'Male Posturing'!E30,'Male Posturing'!F30,'Male Posturing'!O30,'Male Posturing'!P30) ->  | T30: =Knee_X('Male Population'!F30,'Male Population'!G30,'Male Posturing'!K30,'Male Posturing'!L30) ->  | U30: =Knee_Z('Male Population'!F30,'Male Population'!G30,'Male Posturing'!K30,'Male Posturing'!L30) ->  | V30: =Knee_Angle('Male Population'!F30,'Male Population'!G30,'Male Posturing'!K30,'Male Posturing'!L30) -> 
A31: =SW_pref_X('Input & Output'!C$24,'Input & Output'!C$25,'Input & Output'!C$29,'Input & Output'!C$30,'Male Population'!A31,'Male Population'!D31,'Male Population'!E31) ->  | B31: =SW_pref_Z('Input & Output'!C$24,'Input & Output'!C$25,'Input & Output'!C$29,'Input & Output'!C$30,'Male Population'!A31,'Male Population'!D31,'Male Population'!E31) ->  | C31: =SW_adjust_X('Input & Output'!C$24,'Input & Output'!C$25,'Input & Output'!C$27,'Input & Output'!C$28,'Input & Output'!C$29,'Input & Output'!C$30,'Male Posturing'!A31,'Male Posturing'!B31) ->  | D31: =SW_adjust_Z('Input & Output'!C$24,'Input & Output'!C$25,'Input & Output'!C$27,'Input & Output'!C$28,'Input & Output'!C$29,'Input & Output'!C$30,'Male Posturing'!A31,'Male Posturing'!B31) ->  | F31: =Grip_Z('Input & Output'!C$26,'Input & Output'!C$29,'Input & Output'!C$30,'Male Population'!D31,'Male Posturing'!D31) ->  | G31: =H_pref_X('Male Population'!M31,'Male Population'!C31,'Male Posturing'!C31,'Male Posturing'!D31) ->  | H31: =H_pref_Z('Male Population'!M31,'Male Population'!C31,'Male Posturing'!D31) ->  | I31: =H_adjust_X('Input & Output'!C$20,'Input & Output'!C$21,'Male Posturing'!G31) ->  | J31: =H_adjust_Z('Input & Output'!C$22,'Input & Output'!C$23,'Male Posturing'!H31) ->  | K31: =Hip_X('Male Population'!C31,'Male Posturing'!I31) ->  | L31: =Hip_Z('Male Population'!C31,'Male Population'!B31,'Male Posturing'!J31) ->  | M31: =Eye_X('Male Population'!B31,'Male Population'!C31,'Male Population'!L31,'Male Posturing'!K31,'Male Posturing'!L31) ->  | N31: =Eye_Z('Male Population'!B31,'Male Population'!C31,'Male Population'!L31,'Male Posturing'!K31,'Male Posturing'!L31) ->  | O31: =Shoulder_X('Male Population'!B31,'Male Population'!C31,'Male Population'!L31,'Male Posturing'!K31,'Male Posturing'!L31) ->  | P31: =Shoulder_Z('Male Population'!B31,'Male Population'!C31,'Male Population'!L31,'Male Posturing'!K31,'Male Posturing'!L31) ->  | Q31: =Elbow_X('Male Population'!H31,'Male Population'!K31,'Male Posturing'!E31,'Male Posturing'!F31,'Male Posturing'!O31,'Male Posturing'!P31) ->  | R31: =Elbow_Z('Male Population'!H31,'Male Population'!K31,'Male Posturing'!E31,'Male Posturing'!F31,'Male Posturing'!O31,'Male Posturing'!P31) ->  | S31: =Elbow_Angle('Male Population'!H31,'Male Population'!K31,'Male Posturing'!E31,'Male Posturing'!F31,'Male Posturing'!O31,'Male Posturing'!P31) ->  | T31: =Knee_X('Male Population'!F31,'Male Population'!G31,'Male Posturing'!K31,'Male Posturing'!L31) ->  | U31: =Knee_Z('Male Population'!F31,'Male Population'!G31,'Male Posturing'!K31,'Male Posturing'!L31) ->  | V31: =Knee_Angle('Male Population'!F31,'Male Population'!G31,'Male Posturing'!K31,'Male Posturing'!L31) -> 
A32: =SW_pref_X('Input & Output'!C$24,'Input & Output'!C$25,'Input & Output'!C$29,'Input & Output'!C$30,'Male Population'!A32,'Male Population'!D32,'Male Population'!E32) ->  | B32: =SW_pref_Z('Input & Output'!C$24,'Input & Output'!C$25,'Input & Output'!C$29,'Input & Output'!C$30,'Male Population'!A32,'Male Population'!D32,'Male Population'!E32) ->  | C32: =SW_adjust_X('Input & Output'!C$24,'Input & Output'!C$25,'Input & Output'!C$27,'Input & Output'!C$28,'Input & Output'!C$29,'Input & Output'!C$30,'Male Posturing'!A32,'Male Posturing'!B32) ->  | D32: =SW_adjust_Z('Input & Output'!C$24,'Input & Output'!C$25,'Input & Output'!C$27,'Input & Output'!C$28,'Input & Output'!C$29,'Input & Output'!C$30,'Male Posturing'!A32,'Male Posturing'!B32) ->  | F32: =Grip_Z('Input & Output'!C$26,'Input & Output'!C$29,'Input & Output'!C$30,'Male Population'!D32,'Male Posturing'!D32) ->  | G32: =H_pref_X('Male Population'!M32,'Male Population'!C32,'Male Posturing'!C32,'Male Posturing'!D32) ->  | H32: =H_pref_Z('Male Population'!M32,'Male Population'!C32,'Male Posturing'!D32) ->  | I32: =H_adjust_X('Input & Output'!C$20,'Input & Output'!C$21,'Male Posturing'!G32) ->  | J32: =H_adjust_Z('Input & Output'!C$22,'Input & Output'!C$23,'Male Posturing'!H32) ->  | K32: =Hip_X('Male Population'!C32,'Male Posturing'!I32) ->  | L32: =Hip_Z('Male Population'!C32,'Male Population'!B32,'Male Posturing'!J32) ->  | M32: =Eye_X('Male Population'!B32,'Male Population'!C32,'Male Population'!L32,'Male Posturing'!K32,'Male Posturing'!L32) ->  | N32: =Eye_Z('Male Population'!B32,'Male Population'!C32,'Male Population'!L32,'Male Posturing'!K32,'Male Posturing'!L32) ->  | O32: =Shoulder_X('Male Population'!B32,'Male Population'!C32,'Male Population'!L32,'Male Posturing'!K32,'Male Posturing'!L32) ->  | P32: =Shoulder_Z('Male Population'!B32,'Male Population'!C32,'Male Population'!L32,'Male Posturing'!K32,'Male Posturing'!L32) ->  | Q32: =Elbow_X('Male Population'!H32,'Male Population'!K32,'Male Posturing'!E32,'Male Posturing'!F32,'Male Posturing'!O32,'Male Posturing'!P32) ->  | R32: =Elbow_Z('Male Population'!H32,'Male Population'!K32,'Male Posturing'!E32,'Male Posturing'!F32,'Male Posturing'!O32,'Male Posturing'!P32) ->  | S32: =Elbow_Angle('Male Population'!H32,'Male Population'!K32,'Male Posturing'!E32,'Male Posturing'!F32,'Male Posturing'!O32,'Male Posturing'!P32) ->  | T32: =Knee_X('Male Population'!F32,'Male Population'!G32,'Male Posturing'!K32,'Male Posturing'!L32) ->  | U32: =Knee_Z('Male Population'!F32,'Male Population'!G32,'Male Posturing'!K32,'Male Posturing'!L32) ->  | V32: =Knee_Angle('Male Population'!F32,'Male Population'!G32,'Male Posturing'!K32,'Male Posturing'!L32) -> 
A33: =SW_pref_X('Input & Output'!C$24,'Input & Output'!C$25,'Input & Output'!C$29,'Input & Output'!C$30,'Male Population'!A33,'Male Population'!D33,'Male Population'!E33) ->  | B33: =SW_pref_Z('Input & Output'!C$24,'Input & Output'!C$25,'Input & Output'!C$29,'Input & Output'!C$30,'Male Population'!A33,'Male Population'!D33,'Male Population'!E33) ->  | C33: =SW_adjust_X('Input & Output'!C$24,'Input & Output'!C$25,'Input & Output'!C$27,'Input & Output'!C$28,'Input & Output'!C$29,'Input & Output'!C$30,'Male Posturing'!A33,'Male Posturing'!B33) ->  | D33: =SW_adjust_Z('Input & Output'!C$24,'Input & Output'!C$25,'Input & Output'!C$27,'Input & Output'!C$28,'Input & Output'!C$29,'Input & Output'!C$30,'Male Posturing'!A33,'Male Posturing'!B33) ->  | F33: =Grip_Z('Input & Output'!C$26,'Input & Output'!C$29,'Input & Output'!C$30,'Male Population'!D33,'Male Posturing'!D33) ->  | G33: =H_pref_X('Male Population'!M33,'Male Population'!C33,'Male Posturing'!C33,'Male Posturing'!D33) ->  | H33: =H_pref_Z('Male Population'!M33,'Male Population'!C33,'Male Posturing'!D33) ->  | I33: =H_adjust_X('Input & Output'!C$20,'Input & Output'!C$21,'Male Posturing'!G33) ->  | J33: =H_adjust_Z('Input & Output'!C$22,'Input & Output'!C$23,'Male Posturing'!H33) ->  | K33: =Hip_X('Male Population'!C33,'Male Posturing'!I33) ->  | L33: =Hip_Z('Male Population'!C33,'Male Population'!B33,'Male Posturing'!J33) ->  | M33: =Eye_X('Male Population'!B33,'Male Population'!C33,'Male Population'!L33,'Male Posturing'!K33,'Male Posturing'!L33) ->  | N33: =Eye_Z('Male Population'!B33,'Male Population'!C33,'Male Population'!L33,'Male Posturing'!K33,'Male Posturing'!L33) ->  | O33: =Shoulder_X('Male Population'!B33,'Male Population'!C33,'Male Population'!L33,'Male Posturing'!K33,'Male Posturing'!L33) ->  | P33: =Shoulder_Z('Male Population'!B33,'Male Population'!C33,'Male Population'!L33,'Male Posturing'!K33,'Male Posturing'!L33) ->  | Q33: =Elbow_X('Male Population'!H33,'Male Population'!K33,'Male Posturing'!E33,'Male Posturing'!F33,'Male Posturing'!O33,'Male Posturing'!P33) ->  | R33: =Elbow_Z('Male Population'!H33,'Male Population'!K33,'Male Posturing'!E33,'Male Posturing'!F33,'Male Posturing'!O33,'Male Posturing'!P33) ->  | S33: =Elbow_Angle('Male Population'!H33,'Male Population'!K33,'Male Posturing'!E33,'Male Posturing'!F33,'Male Posturing'!O33,'Male Posturing'!P33) ->  | T33: =Knee_X('Male Population'!F33,'Male Population'!G33,'Male Posturing'!K33,'Male Posturing'!L33) ->  | U33: =Knee_Z('Male Population'!F33,'Male Population'!G33,'Male Posturing'!K33,'Male Posturing'!L33) ->  | V33: =Knee_Angle('Male Population'!F33,'Male Population'!G33,'Male Posturing'!K33,'Male Posturing'!L33) -> 
A34: =SW_pref_X('Input & Output'!C$24,'Input & Output'!C$25,'Input & Output'!C$29,'Input & Output'!C$30,'Male Population'!A34,'Male Population'!D34,'Male Population'!E34) ->  | B34: =SW_pref_Z('Input & Output'!C$24,'Input & Output'!C$25,'Input & Output'!C$29,'Input & Output'!C$30,'Male Population'!A34,'Male Population'!D34,'Male Population'!E34) ->  | C34: =SW_adjust_X('Input & Output'!C$24,'Input & Output'!C$25,'Input & Output'!C$27,'Input & Output'!C$28,'Input & Output'!C$29,'Input & Output'!C$30,'Male Posturing'!A34,'Male Posturing'!B34) ->  | D34: =SW_adjust_Z('Input & Output'!C$24,'Input & Output'!C$25,'Input & Output'!C$27,'Input & Output'!C$28,'Input & Output'!C$29,'Input & Output'!C$30,'Male Posturing'!A34,'Male Posturing'!B34) ->  | F34: =Grip_Z('Input & Output'!C$26,'Input & Output'!C$29,'Input & Output'!C$30,'Male Population'!D34,'Male Posturing'!D34) ->  | G34: =H_pref_X('Male Population'!M34,'Male Population'!C34,'Male Posturing'!C34,'Male Posturing'!D34) ->  | H34: =H_pref_Z('Male Population'!M34,'Male Population'!C34,'Male Posturing'!D34) ->  | I34: =H_adjust_X('Input & Output'!C$20,'Input & Output'!C$21,'Male Posturing'!G34) ->  | J34: =H_adjust_Z('Input & Output'!C$22,'Input & Output'!C$23,'Male Posturing'!H34) ->  | K34: =Hip_X('Male Population'!C34,'Male Posturing'!I34) ->  | L34: =Hip_Z('Male Population'!C34,'Male Population'!B34,'Male Posturing'!J34) ->  | M34: =Eye_X('Male Population'!B34,'Male Population'!C34,'Male Population'!L34,'Male Posturing'!K34,'Male Posturing'!L34) ->  | N34: =Eye_Z('Male Population'!B34,'Male Population'!C34,'Male Population'!L34,'Male Posturing'!K34,'Male Posturing'!L34) ->  | O34: =Shoulder_X('Male Population'!B34,'Male Population'!C34,'Male Population'!L34,'Male Posturing'!K34,'Male Posturing'!L34) ->  | P34: =Shoulder_Z('Male Population'!B34,'Male Population'!C34,'Male Population'!L34,'Male Posturing'!K34,'Male Posturing'!L34) ->  | Q34: =Elbow_X('Male Population'!H34,'Male Population'!K34,'Male Posturing'!E34,'Male Posturing'!F34,'Male Posturing'!O34,'Male Posturing'!P34) ->  | R34: =Elbow_Z('Male Population'!H34,'Male Population'!K34,'Male Posturing'!E34,'Male Posturing'!F34,'Male Posturing'!O34,'Male Posturing'!P34) ->  | S34: =Elbow_Angle('Male Population'!H34,'Male Population'!K34,'Male Posturing'!E34,'Male Posturing'!F34,'Male Posturing'!O34,'Male Posturing'!P34) ->  | T34: =Knee_X('Male Population'!F34,'Male Population'!G34,'Male Posturing'!K34,'Male Posturing'!L34) ->  | U34: =Knee_Z('Male Population'!F34,'Male Population'!G34,'Male Posturing'!K34,'Male Posturing'!L34) ->  | V34: =Knee_Angle('Male Population'!F34,'Male Population'!G34,'Male Posturing'!K34,'Male Posturing'!L34) -> 
A35: =SW_pref_X('Input & Output'!C$24,'Input & Output'!C$25,'Input & Output'!C$29,'Input & Output'!C$30,'Male Population'!A35,'Male Population'!D35,'Male Population'!E35) ->  | B35: =SW_pref_Z('Input & Output'!C$24,'Input & Output'!C$25,'Input & Output'!C$29,'Input & Output'!C$30,'Male Population'!A35,'Male Population'!D35,'Male Population'!E35) ->  | C35: =SW_adjust_X('Input & Output'!C$24,'Input & Output'!C$25,'Input & Output'!C$27,'Input & Output'!C$28,'Input & Output'!C$29,'Input & Output'!C$30,'Male Posturing'!A35,'Male Posturing'!B35) ->  | D35: =SW_adjust_Z('Input & Output'!C$24,'Input & Output'!C$25,'Input & Output'!C$27,'Input & Output'!C$28,'Input & Output'!C$29,'Input & Output'!C$30,'Male Posturing'!A35,'Male Posturing'!B35) ->  | F35: =Grip_Z('Input & Output'!C$26,'Input & Output'!C$29,'Input & Output'!C$30,'Male Population'!D35,'Male Posturing'!D35) ->  | G35: =H_pref_X('Male Population'!M35,'Male Population'!C35,'Male Posturing'!C35,'Male Posturing'!D35) ->  | H35: =H_pref_Z('Male Population'!M35,'Male Population'!C35,'Male Posturing'!D35) ->  | I35: =H_adjust_X('Input & Output'!C$20,'Input & Output'!C$21,'Male Posturing'!G35) ->  | J35: =H_adjust_Z('Input & Output'!C$22,'Input & Output'!C$23,'Male Posturing'!H35) ->  | K35: =Hip_X('Male Population'!C35,'Male Posturing'!I35) ->  | L35: =Hip_Z('Male Population'!C35,'Male Population'!B35,'Male Posturing'!J35) ->  | M35: =Eye_X('Male Population'!B35,'Male Population'!C35,'Male Population'!L35,'Male Posturing'!K35,'Male Posturing'!L35) ->  | N35: =Eye_Z('Male Population'!B35,'Male Population'!C35,'Male Population'!L35,'Male Posturing'!K35,'Male Posturing'!L35) ->  | O35: =Shoulder_X('Male Population'!B35,'Male Population'!C35,'Male Population'!L35,'Male Posturing'!K35,'Male Posturing'!L35) ->  | P35: =Shoulder_Z('Male Population'!B35,'Male Population'!C35,'Male Population'!L35,'Male Posturing'!K35,'Male Posturing'!L35) ->  | Q35: =Elbow_X('Male Population'!H35,'Male Population'!K35,'Male Posturing'!E35,'Male Posturing'!F35,'Male Posturing'!O35,'Male Posturing'!P35) ->  | R35: =Elbow_Z('Male Population'!H35,'Male Population'!K35,'Male Posturing'!E35,'Male Posturing'!F35,'Male Posturing'!O35,'Male Posturing'!P35) ->  | S35: =Elbow_Angle('Male Population'!H35,'Male Population'!K35,'Male Posturing'!E35,'Male Posturing'!F35,'Male Posturing'!O35,'Male Posturing'!P35) ->  | T35: =Knee_X('Male Population'!F35,'Male Population'!G35,'Male Posturing'!K35,'Male Posturing'!L35) ->  | U35: =Knee_Z('Male Population'!F35,'Male Population'!G35,'Male Posturing'!K35,'Male Posturing'!L35) ->  | V35: =Knee_Angle('Male Population'!F35,'Male Population'!G35,'Male Posturing'!K35,'Male Posturing'!L35) -> 
A36: =SW_pref_X('Input & Output'!C$24,'Input & Output'!C$25,'Input & Output'!C$29,'Input & Output'!C$30,'Male Population'!A36,'Male Population'!D36,'Male Population'!E36) ->  | B36: =SW_pref_Z('Input & Output'!C$24,'Input & Output'!C$25,'Input & Output'!C$29,'Input & Output'!C$30,'Male Population'!A36,'Male Population'!D36,'Male Population'!E36) ->  | C36: =SW_adjust_X('Input & Output'!C$24,'Input & Output'!C$25,'Input & Output'!C$27,'Input & Output'!C$28,'Input & Output'!C$29,'Input & Output'!C$30,'Male Posturing'!A36,'Male Posturing'!B36) ->  | D36: =SW_adjust_Z('Input & Output'!C$24,'Input & Output'!C$25,'Input & Output'!C$27,'Input & Output'!C$28,'Input & Output'!C$29,'Input & Output'!C$30,'Male Posturing'!A36,'Male Posturing'!B36) ->  | F36: =Grip_Z('Input & Output'!C$26,'Input & Output'!C$29,'Input & Output'!C$30,'Male Population'!D36,'Male Posturing'!D36) ->  | G36: =H_pref_X('Male Population'!M36,'Male Population'!C36,'Male Posturing'!C36,'Male Posturing'!D36) ->  | H36: =H_pref_Z('Male Population'!M36,'Male Population'!C36,'Male Posturing'!D36) ->  | I36: =H_adjust_X('Input & Output'!C$20,'Input & Output'!C$21,'Male Posturing'!G36) ->  | J36: =H_adjust_Z('Input & Output'!C$22,'Input & Output'!C$23,'Male Posturing'!H36) ->  | K36: =Hip_X('Male Population'!C36,'Male Posturing'!I36) ->  | L36: =Hip_Z('Male Population'!C36,'Male Population'!B36,'Male Posturing'!J36) ->  | M36: =Eye_X('Male Population'!B36,'Male Population'!C36,'Male Population'!L36,'Male Posturing'!K36,'Male Posturing'!L36) ->  | N36: =Eye_Z('Male Population'!B36,'Male Population'!C36,'Male Population'!L36,'Male Posturing'!K36,'Male Posturing'!L36) ->  | O36: =Shoulder_X('Male Population'!B36,'Male Population'!C36,'Male Population'!L36,'Male Posturing'!K36,'Male Posturing'!L36) ->  | P36: =Shoulder_Z('Male Population'!B36,'Male Population'!C36,'Male Population'!L36,'Male Posturing'!K36,'Male Posturing'!L36) ->  | Q36: =Elbow_X('Male Population'!H36,'Male Population'!K36,'Male Posturing'!E36,'Male Posturing'!F36,'Male Posturing'!O36,'Male Posturing'!P36) ->  | R36: =Elbow_Z('Male Population'!H36,'Male Population'!K36,'Male Posturing'!E36,'Male Posturing'!F36,'Male Posturing'!O36,'Male Posturing'!P36) ->  | S36: =Elbow_Angle('Male Population'!H36,'Male Population'!K36,'Male Posturing'!E36,'Male Posturing'!F36,'Male Posturing'!O36,'Male Posturing'!P36) ->  | T36: =Knee_X('Male Population'!F36,'Male Population'!G36,'Male Posturing'!K36,'Male Posturing'!L36) ->  | U36: =Knee_Z('Male Population'!F36,'Male Population'!G36,'Male Posturing'!K36,'Male Posturing'!L36) ->  | V36: =Knee_Angle('Male Population'!F36,'Male Population'!G36,'Male Posturing'!K36,'Male Posturing'!L36) -> 
A37: =SW_pref_X('Input & Output'!C$24,'Input & Output'!C$25,'Input & Output'!C$29,'Input & Output'!C$30,'Male Population'!A37,'Male Population'!D37,'Male Population'!E37) ->  | B37: =SW_pref_Z('Input & Output'!C$24,'Input & Output'!C$25,'Input & Output'!C$29,'Input & Output'!C$30,'Male Population'!A37,'Male Population'!D37,'Male Population'!E37) ->  | C37: =SW_adjust_X('Input & Output'!C$24,'Input & Output'!C$25,'Input & Output'!C$27,'Input & Output'!C$28,'Input & Output'!C$29,'Input & Output'!C$30,'Male Posturing'!A37,'Male Posturing'!B37) ->  | D37: =SW_adjust_Z('Input & Output'!C$24,'Input & Output'!C$25,'Input & Output'!C$27,'Input & Output'!C$28,'Input & Output'!C$29,'Input & Output'!C$30,'Male Posturing'!A37,'Male Posturing'!B37) ->  | F37: =Grip_Z('Input & Output'!C$26,'Input & Output'!C$29,'Input & Output'!C$30,'Male Population'!D37,'Male Posturing'!D37) ->  | G37: =H_pref_X('Male Population'!M37,'Male Population'!C37,'Male Posturing'!C37,'Male Posturing'!D37) ->  | H37: =H_pref_Z('Male Population'!M37,'Male Population'!C37,'Male Posturing'!D37) ->  | I37: =H_adjust_X('Input & Output'!C$20,'Input & Output'!C$21,'Male Posturing'!G37) ->  | J37: =H_adjust_Z('Input & Output'!C$22,'Input & Output'!C$23,'Male Posturing'!H37) ->  | K37: =Hip_X('Male Population'!C37,'Male Posturing'!I37) ->  | L37: =Hip_Z('Male Population'!C37,'Male Population'!B37,'Male Posturing'!J37) ->  | M37: =Eye_X('Male Population'!B37,'Male Population'!C37,'Male Population'!L37,'Male Posturing'!K37,'Male Posturing'!L37) ->  | N37: =Eye_Z('Male Population'!B37,'Male Population'!C37,'Male Population'!L37,'Male Posturing'!K37,'Male Posturing'!L37) ->  | O37: =Shoulder_X('Male Population'!B37,'Male Population'!C37,'Male Population'!L37,'Male Posturing'!K37,'Male Posturing'!L37) ->  | P37: =Shoulder_Z('Male Population'!B37,'Male Population'!C37,'Male Population'!L37,'Male Posturing'!K37,'Male Posturing'!L37) ->  | Q37: =Elbow_X('Male Population'!H37,'Male Population'!K37,'Male Posturing'!E37,'Male Posturing'!F37,'Male Posturing'!O37,'Male Posturing'!P37) ->  | R37: =Elbow_Z('Male Population'!H37,'Male Population'!K37,'Male Posturing'!E37,'Male Posturing'!F37,'Male Posturing'!O37,'Male Posturing'!P37) ->  | S37: =Elbow_Angle('Male Population'!H37,'Male Population'!K37,'Male Posturing'!E37,'Male Posturing'!F37,'Male Posturing'!O37,'Male Posturing'!P37) ->  | T37: =Knee_X('Male Population'!F37,'Male Population'!G37,'Male Posturing'!K37,'Male Posturing'!L37) ->  | U37: =Knee_Z('Male Population'!F37,'Male Population'!G37,'Male Posturing'!K37,'Male Posturing'!L37) ->  | V37: =Knee_Angle('Male Population'!F37,'Male Population'!G37,'Male Posturing'!K37,'Male Posturing'!L37) -> 
A38: =SW_pref_X('Input & Output'!C$24,'Input & Output'!C$25,'Input & Output'!C$29,'Input & Output'!C$30,'Male Population'!A38,'Male Population'!D38,'Male Population'!E38) ->  | B38: =SW_pref_Z('Input & Output'!C$24,'Input & Output'!C$25,'Input & Output'!C$29,'Input & Output'!C$30,'Male Population'!A38,'Male Population'!D38,'Male Population'!E38) ->  | C38: =SW_adjust_X('Input & Output'!C$24,'Input & Output'!C$25,'Input & Output'!C$27,'Input & Output'!C$28,'Input & Output'!C$29,'Input & Output'!C$30,'Male Posturing'!A38,'Male Posturing'!B38) ->  | D38: =SW_adjust_Z('Input & Output'!C$24,'Input & Output'!C$25,'Input & Output'!C$27,'Input & Output'!C$28,'Input & Output'!C$29,'Input & Output'!C$30,'Male Posturing'!A38,'Male Posturing'!B38) ->  | F38: =Grip_Z('Input & Output'!C$26,'Input & Output'!C$29,'Input & Output'!C$30,'Male Population'!D38,'Male Posturing'!D38) ->  | G38: =H_pref_X('Male Population'!M38,'Male Population'!C38,'Male Posturing'!C38,'Male Posturing'!D38) ->  | H38: =H_pref_Z('Male Population'!M38,'Male Population'!C38,'Male Posturing'!D38) ->  | I38: =H_adjust_X('Input & Output'!C$20,'Input & Output'!C$21,'Male Posturing'!G38) ->  | J38: =H_adjust_Z('Input & Output'!C$22,'Input & Output'!C$23,'Male Posturing'!H38) ->  | K38: =Hip_X('Male Population'!C38,'Male Posturing'!I38) ->  | L38: =Hip_Z('Male Population'!C38,'Male Population'!B38,'Male Posturing'!J38) ->  | M38: =Eye_X('Male Population'!B38,'Male Population'!C38,'Male Population'!L38,'Male Posturing'!K38,'Male Posturing'!L38) ->  | N38: =Eye_Z('Male Population'!B38,'Male Population'!C38,'Male Population'!L38,'Male Posturing'!K38,'Male Posturing'!L38) ->  | O38: =Shoulder_X('Male Population'!B38,'Male Population'!C38,'Male Population'!L38,'Male Posturing'!K38,'Male Posturing'!L38) ->  | P38: =Shoulder_Z('Male Population'!B38,'Male Population'!C38,'Male Population'!L38,'Male Posturing'!K38,'Male Posturing'!L38) ->  | Q38: =Elbow_X('Male Population'!H38,'Male Population'!K38,'Male Posturing'!E38,'Male Posturing'!F38,'Male Posturing'!O38,'Male Posturing'!P38) ->  | R38: =Elbow_Z('Male Population'!H38,'Male Population'!K38,'Male Posturing'!E38,'Male Posturing'!F38,'Male Posturing'!O38,'Male Posturing'!P38) ->  | S38: =Elbow_Angle('Male Population'!H38,'Male Population'!K38,'Male Posturing'!E38,'Male Posturing'!F38,'Male Posturing'!O38,'Male Posturing'!P38) ->  | T38: =Knee_X('Male Population'!F38,'Male Population'!G38,'Male Posturing'!K38,'Male Posturing'!L38) ->  | U38: =Knee_Z('Male Population'!F38,'Male Population'!G38,'Male Posturing'!K38,'Male Posturing'!L38) ->  | V38: =Knee_Angle('Male Population'!F38,'Male Population'!G38,'Male Posturing'!K38,'Male Posturing'!L38) -> 
A39: =SW_pref_X('Input & Output'!C$24,'Input & Output'!C$25,'Input & Output'!C$29,'Input & Output'!C$30,'Male Population'!A39,'Male Population'!D39,'Male Population'!E39) ->  | B39: =SW_pref_Z('Input & Output'!C$24,'Input & Output'!C$25,'Input & Output'!C$29,'Input & Output'!C$30,'Male Population'!A39,'Male Population'!D39,'Male Population'!E39) ->  | C39: =SW_adjust_X('Input & Output'!C$24,'Input & Output'!C$25,'Input & Output'!C$27,'Input & Output'!C$28,'Input & Output'!C$29,'Input & Output'!C$30,'Male Posturing'!A39,'Male Posturing'!B39) ->  | D39: =SW_adjust_Z('Input & Output'!C$24,'Input & Output'!C$25,'Input & Output'!C$27,'Input & Output'!C$28,'Input & Output'!C$29,'Input & Output'!C$30,'Male Posturing'!A39,'Male Posturing'!B39) ->  | F39: =Grip_Z('Input & Output'!C$26,'Input & Output'!C$29,'Input & Output'!C$30,'Male Population'!D39,'Male Posturing'!D39) ->  | G39: =H_pref_X('Male Population'!M39,'Male Population'!C39,'Male Posturing'!C39,'Male Posturing'!D39) ->  | H39: =H_pref_Z('Male Population'!M39,'Male Population'!C39,'Male Posturing'!D39) ->  | I39: =H_adjust_X('Input & Output'!C$20,'Input & Output'!C$21,'Male Posturing'!G39) ->  | J39: =H_adjust_Z('Input & Output'!C$22,'Input & Output'!C$23,'Male Posturing'!H39) ->  | K39: =Hip_X('Male Population'!C39,'Male Posturing'!I39) ->  | L39: =Hip_Z('Male Population'!C39,'Male Population'!B39,'Male Posturing'!J39) ->  | M39: =Eye_X('Male Population'!B39,'Male Population'!C39,'Male Population'!L39,'Male Posturing'!K39,'Male Posturing'!L39) ->  | N39: =Eye_Z('Male Population'!B39,'Male Population'!C39,'Male Population'!L39,'Male Posturing'!K39,'Male Posturing'!L39) ->  | O39: =Shoulder_X('Male Population'!B39,'Male Population'!C39,'Male Population'!L39,'Male Posturing'!K39,'Male Posturing'!L39) ->  | P39: =Shoulder_Z('Male Population'!B39,'Male Population'!C39,'Male Population'!L39,'Male Posturing'!K39,'Male Posturing'!L39) ->  | Q39: =Elbow_X('Male Population'!H39,'Male Population'!K39,'Male Posturing'!E39,'Male Posturing'!F39,'Male Posturing'!O39,'Male Posturing'!P39) ->  | R39: =Elbow_Z('Male Population'!H39,'Male Population'!K39,'Male Posturing'!E39,'Male Posturing'!F39,'Male Posturing'!O39,'Male Posturing'!P39) ->  | S39: =Elbow_Angle('Male Population'!H39,'Male Population'!K39,'Male Posturing'!E39,'Male Posturing'!F39,'Male Posturing'!O39,'Male Posturing'!P39) ->  | T39: =Knee_X('Male Population'!F39,'Male Population'!G39,'Male Posturing'!K39,'Male Posturing'!L39) ->  | U39: =Knee_Z('Male Population'!F39,'Male Population'!G39,'Male Posturing'!K39,'Male Posturing'!L39) ->  | V39: =Knee_Angle('Male Population'!F39,'Male Population'!G39,'Male Posturing'!K39,'Male Posturing'!L39) -> 
A40: =SW_pref_X('Input & Output'!C$24,'Input & Output'!C$25,'Input & Output'!C$29,'Input & Output'!C$30,'Male Population'!A40,'Male Population'!D40,'Male Population'!E40) ->  | B40: =SW_pref_Z('Input & Output'!C$24,'Input & Output'!C$25,'Input & Output'!C$29,'Input & Output'!C$30,'Male Population'!A40,'Male Population'!D40,'Male Population'!E40) ->  | C40: =SW_adjust_X('Input & Output'!C$24,'Input & Output'!C$25,'Input & Output'!C$27,'Input & Output'!C$28,'Input & Output'!C$29,'Input & Output'!C$30,'Male Posturing'!A40,'Male Posturing'!B40) ->  | D40: =SW_adjust_Z('Input & Output'!C$24,'Input & Output'!C$25,'Input & Output'!C$27,'Input & Output'!C$28,'Input & Output'!C$29,'Input & Output'!C$30,'Male Posturing'!A40,'Male Posturing'!B40) ->  | F40: =Grip_Z('Input & Output'!C$26,'Input & Output'!C$29,'Input & Output'!C$30,'Male Population'!D40,'Male Posturing'!D40) ->  | G40: =H_pref_X('Male Population'!M40,'Male Population'!C40,'Male Posturing'!C40,'Male Posturing'!D40) ->  | H40: =H_pref_Z('Male Population'!M40,'Male Population'!C40,'Male Posturing'!D40) ->  | I40: =H_adjust_X('Input & Output'!C$20,'Input & Output'!C$21,'Male Posturing'!G40) ->  | J40: =H_adjust_Z('Input & Output'!C$22,'Input & Output'!C$23,'Male Posturing'!H40) ->  | K40: =Hip_X('Male Population'!C40,'Male Posturing'!I40) ->  | L40: =Hip_Z('Male Population'!C40,'Male Population'!B40,'Male Posturing'!J40) ->  | M40: =Eye_X('Male Population'!B40,'Male Population'!C40,'Male Population'!L40,'Male Posturing'!K40,'Male Posturing'!L40) ->  | N40: =Eye_Z('Male Population'!B40,'Male Population'!C40,'Male Population'!L40,'Male Posturing'!K40,'Male Posturing'!L40) ->  | O40: =Shoulder_X('Male Population'!B40,'Male Population'!C40,'Male Population'!L40,'Male Posturing'!K40,'Male Posturing'!L40) ->  | P40: =Shoulder_Z('Male Population'!B40,'Male Population'!C40,'Male Population'!L40,'Male Posturing'!K40,'Male Posturing'!L40) ->  | Q40: =Elbow_X('Male Population'!H40,'Male Population'!K40,'Male Posturing'!E40,'Male Posturing'!F40,'Male Posturing'!O40,'Male Posturing'!P40) ->  | R40: =Elbow_Z('Male Population'!H40,'Male Population'!K40,'Male Posturing'!E40,'Male Posturing'!F40,'Male Posturing'!O40,'Male Posturing'!P40) ->  | S40: =Elbow_Angle('Male Population'!H40,'Male Population'!K40,'Male Posturing'!E40,'Male Posturing'!F40,'Male Posturing'!O40,'Male Posturing'!P40) ->  | T40: =Knee_X('Male Population'!F40,'Male Population'!G40,'Male Posturing'!K40,'Male Posturing'!L40) ->  | U40: =Knee_Z('Male Population'!F40,'Male Population'!G40,'Male Posturing'!K40,'Male Posturing'!L40) ->  | V40: =Knee_Angle('Male Population'!F40,'Male Population'!G40,'Male Posturing'!K40,'Male Posturing'!L40) -> 
A41: =SW_pref_X('Input & Output'!C$24,'Input & Output'!C$25,'Input & Output'!C$29,'Input & Output'!C$30,'Male Population'!A41,'Male Population'!D41,'Male Population'!E41) ->  | B41: =SW_pref_Z('Input & Output'!C$24,'Input & Output'!C$25,'Input & Output'!C$29,'Input & Output'!C$30,'Male Population'!A41,'Male Population'!D41,'Male Population'!E41) ->  | C41: =SW_adjust_X('Input & Output'!C$24,'Input & Output'!C$25,'Input & Output'!C$27,'Input & Output'!C$28,'Input & Output'!C$29,'Input & Output'!C$30,'Male Posturing'!A41,'Male Posturing'!B41) ->  | D41: =SW_adjust_Z('Input & Output'!C$24,'Input & Output'!C$25,'Input & Output'!C$27,'Input & Output'!C$28,'Input & Output'!C$29,'Input & Output'!C$30,'Male Posturing'!A41,'Male Posturing'!B41) ->  | F41: =Grip_Z('Input & Output'!C$26,'Input & Output'!C$29,'Input & Output'!C$30,'Male Population'!D41,'Male Posturing'!D41) ->  | G41: =H_pref_X('Male Population'!M41,'Male Population'!C41,'Male Posturing'!C41,'Male Posturing'!D41) ->  | H41: =H_pref_Z('Male Population'!M41,'Male Population'!C41,'Male Posturing'!D41) ->  | I41: =H_adjust_X('Input & Output'!C$20,'Input & Output'!C$21,'Male Posturing'!G41) ->  | J41: =H_adjust_Z('Input & Output'!C$22,'Input & Output'!C$23,'Male Posturing'!H41) ->  | K41: =Hip_X('Male Population'!C41,'Male Posturing'!I41) ->  | L41: =Hip_Z('Male Population'!C41,'Male Population'!B41,'Male Posturing'!J41) ->  | M41: =Eye_X('Male Population'!B41,'Male Population'!C41,'Male Population'!L41,'Male Posturing'!K41,'Male Posturing'!L41) ->  | N41: =Eye_Z('Male Population'!B41,'Male Population'!C41,'Male Population'!L41,'Male Posturing'!K41,'Male Posturing'!L41) ->  | O41: =Shoulder_X('Male Population'!B41,'Male Population'!C41,'Male Population'!L41,'Male Posturing'!K41,'Male Posturing'!L41) ->  | P41: =Shoulder_Z('Male Population'!B41,'Male Population'!C41,'Male Population'!L41,'Male Posturing'!K41,'Male Posturing'!L41) ->  | Q41: =Elbow_X('Male Population'!H41,'Male Population'!K41,'Male Posturing'!E41,'Male Posturing'!F41,'Male Posturing'!O41,'Male Posturing'!P41) ->  | R41: =Elbow_Z('Male Population'!H41,'Male Population'!K41,'Male Posturing'!E41,'Male Posturing'!F41,'Male Posturing'!O41,'Male Posturing'!P41) ->  | S41: =Elbow_Angle('Male Population'!H41,'Male Population'!K41,'Male Posturing'!E41,'Male Posturing'!F41,'Male Posturing'!O41,'Male Posturing'!P41) ->  | T41: =Knee_X('Male Population'!F41,'Male Population'!G41,'Male Posturing'!K41,'Male Posturing'!L41) ->  | U41: =Knee_Z('Male Population'!F41,'Male Population'!G41,'Male Posturing'!K41,'Male Posturing'!L41) ->  | V41: =Knee_Angle('Male Population'!F41,'Male Population'!G41,'Male Posturing'!K41,'Male Posturing'!L41) -> 
A42: =SW_pref_X('Input & Output'!C$24,'Input & Output'!C$25,'Input & Output'!C$29,'Input & Output'!C$30,'Male Population'!A42,'Male Population'!D42,'Male Population'!E42) ->  | B42: =SW_pref_Z('Input & Output'!C$24,'Input & Output'!C$25,'Input & Output'!C$29,'Input & Output'!C$30,'Male Population'!A42,'Male Population'!D42,'Male Population'!E42) ->  | C42: =SW_adjust_X('Input & Output'!C$24,'Input & Output'!C$25,'Input & Output'!C$27,'Input & Output'!C$28,'Input & Output'!C$29,'Input & Output'!C$30,'Male Posturing'!A42,'Male Posturing'!B42) ->  | D42: =SW_adjust_Z('Input & Output'!C$24,'Input & Output'!C$25,'Input & Output'!C$27,'Input & Output'!C$28,'Input & Output'!C$29,'Input & Output'!C$30,'Male Posturing'!A42,'Male Posturing'!B42) ->  | F42: =Grip_Z('Input & Output'!C$26,'Input & Output'!C$29,'Input & Output'!C$30,'Male Population'!D42,'Male Posturing'!D42) ->  | G42: =H_pref_X('Male Population'!M42,'Male Population'!C42,'Male Posturing'!C42,'Male Posturing'!D42) ->  | H42: =H_pref_Z('Male Population'!M42,'Male Population'!C42,'Male Posturing'!D42) ->  | I42: =H_adjust_X('Input & Output'!C$20,'Input & Output'!C$21,'Male Posturing'!G42) ->  | J42: =H_adjust_Z('Input & Output'!C$22,'Input & Output'!C$23,'Male Posturing'!H42) ->  | K42: =Hip_X('Male Population'!C42,'Male Posturing'!I42) ->  | L42: =Hip_Z('Male Population'!C42,'Male Population'!B42,'Male Posturing'!J42) ->  | M42: =Eye_X('Male Population'!B42,'Male Population'!C42,'Male Population'!L42,'Male Posturing'!K42,'Male Posturing'!L42) ->  | N42: =Eye_Z('Male Population'!B42,'Male Population'!C42,'Male Population'!L42,'Male Posturing'!K42,'Male Posturing'!L42) ->  | O42: =Shoulder_X('Male Population'!B42,'Male Population'!C42,'Male Population'!L42,'Male Posturing'!K42,'Male Posturing'!L42) ->  | P42: =Shoulder_Z('Male Population'!B42,'Male Population'!C42,'Male Population'!L42,'Male Posturing'!K42,'Male Posturing'!L42) ->  | Q42: =Elbow_X('Male Population'!H42,'Male Population'!K42,'Male Posturing'!E42,'Male Posturing'!F42,'Male Posturing'!O42,'Male Posturing'!P42) ->  | R42: =Elbow_Z('Male Population'!H42,'Male Population'!K42,'Male Posturing'!E42,'Male Posturing'!F42,'Male Posturing'!O42,'Male Posturing'!P42) ->  | S42: =Elbow_Angle('Male Population'!H42,'Male Population'!K42,'Male Posturing'!E42,'Male Posturing'!F42,'Male Posturing'!O42,'Male Posturing'!P42) ->  | T42: =Knee_X('Male Population'!F42,'Male Population'!G42,'Male Posturing'!K42,'Male Posturing'!L42) ->  | U42: =Knee_Z('Male Population'!F42,'Male Population'!G42,'Male Posturing'!K42,'Male Posturing'!L42) ->  | V42: =Knee_Angle('Male Population'!F42,'Male Population'!G42,'Male Posturing'!K42,'Male Posturing'!L42) -> 
A43: =SW_pref_X('Input & Output'!C$24,'Input & Output'!C$25,'Input & Output'!C$29,'Input & Output'!C$30,'Male Population'!A43,'Male Population'!D43,'Male Population'!E43) ->  | B43: =SW_pref_Z('Input & Output'!C$24,'Input & Output'!C$25,'Input & Output'!C$29,'Input & Output'!C$30,'Male Population'!A43,'Male Population'!D43,'Male Population'!E43) ->  | C43: =SW_adjust_X('Input & Output'!C$24,'Input & Output'!C$25,'Input & Output'!C$27,'Input & Output'!C$28,'Input & Output'!C$29,'Input & Output'!C$30,'Male Posturing'!A43,'Male Posturing'!B43) ->  | D43: =SW_adjust_Z('Input & Output'!C$24,'Input & Output'!C$25,'Input & Output'!C$27,'Input & Output'!C$28,'Input & Output'!C$29,'Input & Output'!C$30,'Male Posturing'!A43,'Male Posturing'!B43) ->  | F43: =Grip_Z('Input & Output'!C$26,'Input & Output'!C$29,'Input & Output'!C$30,'Male Population'!D43,'Male Posturing'!D43) ->  | G43: =H_pref_X('Male Population'!M43,'Male Population'!C43,'Male Posturing'!C43,'Male Posturing'!D43) ->  | H43: =H_pref_Z('Male Population'!M43,'Male Population'!C43,'Male Posturing'!D43) ->  | I43: =H_adjust_X('Input & Output'!C$20,'Input & Output'!C$21,'Male Posturing'!G43) ->  | J43: =H_adjust_Z('Input & Output'!C$22,'Input & Output'!C$23,'Male Posturing'!H43) ->  | K43: =Hip_X('Male Population'!C43,'Male Posturing'!I43) ->  | L43: =Hip_Z('Male Population'!C43,'Male Population'!B43,'Male Posturing'!J43) ->  | M43: =Eye_X('Male Population'!B43,'Male Population'!C43,'Male Population'!L43,'Male Posturing'!K43,'Male Posturing'!L43) ->  | N43: =Eye_Z('Male Population'!B43,'Male Population'!C43,'Male Population'!L43,'Male Posturing'!K43,'Male Posturing'!L43) ->  | O43: =Shoulder_X('Male Population'!B43,'Male Population'!C43,'Male Population'!L43,'Male Posturing'!K43,'Male Posturing'!L43) ->  | P43: =Shoulder_Z('Male Population'!B43,'Male Population'!C43,'Male Population'!L43,'Male Posturing'!K43,'Male Posturing'!L43) ->  | Q43: =Elbow_X('Male Population'!H43,'Male Population'!K43,'Male Posturing'!E43,'Male Posturing'!F43,'Male Posturing'!O43,'Male Posturing'!P43) ->  | R43: =Elbow_Z('Male Population'!H43,'Male Population'!K43,'Male Posturing'!E43,'Male Posturing'!F43,'Male Posturing'!O43,'Male Posturing'!P43) ->  | S43: =Elbow_Angle('Male Population'!H43,'Male Population'!K43,'Male Posturing'!E43,'Male Posturing'!F43,'Male Posturing'!O43,'Male Posturing'!P43) ->  | T43: =Knee_X('Male Population'!F43,'Male Population'!G43,'Male Posturing'!K43,'Male Posturing'!L43) ->  | U43: =Knee_Z('Male Population'!F43,'Male Population'!G43,'Male Posturing'!K43,'Male Posturing'!L43) ->  | V43: =Knee_Angle('Male Population'!F43,'Male Population'!G43,'Male Posturing'!K43,'Male Posturing'!L43) -> 
A44: =SW_pref_X('Input & Output'!C$24,'Input & Output'!C$25,'Input & Output'!C$29,'Input & Output'!C$30,'Male Population'!A44,'Male Population'!D44,'Male Population'!E44) ->  | B44: =SW_pref_Z('Input & Output'!C$24,'Input & Output'!C$25,'Input & Output'!C$29,'Input & Output'!C$30,'Male Population'!A44,'Male Population'!D44,'Male Population'!E44) ->  | C44: =SW_adjust_X('Input & Output'!C$24,'Input & Output'!C$25,'Input & Output'!C$27,'Input & Output'!C$28,'Input & Output'!C$29,'Input & Output'!C$30,'Male Posturing'!A44,'Male Posturing'!B44) ->  | D44: =SW_adjust_Z('Input & Output'!C$24,'Input & Output'!C$25,'Input & Output'!C$27,'Input & Output'!C$28,'Input & Output'!C$29,'Input & Output'!C$30,'Male Posturing'!A44,'Male Posturing'!B44) ->  | F44: =Grip_Z('Input & Output'!C$26,'Input & Output'!C$29,'Input & Output'!C$30,'Male Population'!D44,'Male Posturing'!D44) ->  | G44: =H_pref_X('Male Population'!M44,'Male Population'!C44,'Male Posturing'!C44,'Male Posturing'!D44) ->  | H44: =H_pref_Z('Male Population'!M44,'Male Population'!C44,'Male Posturing'!D44) ->  | I44: =H_adjust_X('Input & Output'!C$20,'Input & Output'!C$21,'Male Posturing'!G44) ->  | J44: =H_adjust_Z('Input & Output'!C$22,'Input & Output'!C$23,'Male Posturing'!H44) ->  | K44: =Hip_X('Male Population'!C44,'Male Posturing'!I44) ->  | L44: =Hip_Z('Male Population'!C44,'Male Population'!B44,'Male Posturing'!J44) ->  | M44: =Eye_X('Male Population'!B44,'Male Population'!C44,'Male Population'!L44,'Male Posturing'!K44,'Male Posturing'!L44) ->  | N44: =Eye_Z('Male Population'!B44,'Male Population'!C44,'Male Population'!L44,'Male Posturing'!K44,'Male Posturing'!L44) ->  | O44: =Shoulder_X('Male Population'!B44,'Male Population'!C44,'Male Population'!L44,'Male Posturing'!K44,'Male Posturing'!L44) ->  | P44: =Shoulder_Z('Male Population'!B44,'Male Population'!C44,'Male Population'!L44,'Male Posturing'!K44,'Male Posturing'!L44) ->  | Q44: =Elbow_X('Male Population'!H44,'Male Population'!K44,'Male Posturing'!E44,'Male Posturing'!F44,'Male Posturing'!O44,'Male Posturing'!P44) ->  | R44: =Elbow_Z('Male Population'!H44,'Male Population'!K44,'Male Posturing'!E44,'Male Posturing'!F44,'Male Posturing'!O44,'Male Posturing'!P44) ->  | S44: =Elbow_Angle('Male Population'!H44,'Male Population'!K44,'Male Posturing'!E44,'Male Posturing'!F44,'Male Posturing'!O44,'Male Posturing'!P44) ->  | T44: =Knee_X('Male Population'!F44,'Male Population'!G44,'Male Posturing'!K44,'Male Posturing'!L44) ->  | U44: =Knee_Z('Male Population'!F44,'Male Population'!G44,'Male Posturing'!K44,'Male Posturing'!L44) ->  | V44: =Knee_Angle('Male Population'!F44,'Male Population'!G44,'Male Posturing'!K44,'Male Posturing'!L44) -> 
A45: =SW_pref_X('Input & Output'!C$24,'Input & Output'!C$25,'Input & Output'!C$29,'Input & Output'!C$30,'Male Population'!A45,'Male Population'!D45,'Male Population'!E45) ->  | B45: =SW_pref_Z('Input & Output'!C$24,'Input & Output'!C$25,'Input & Output'!C$29,'Input & Output'!C$30,'Male Population'!A45,'Male Population'!D45,'Male Population'!E45) ->  | C45: =SW_adjust_X('Input & Output'!C$24,'Input & Output'!C$25,'Input & Output'!C$27,'Input & Output'!C$28,'Input & Output'!C$29,'Input & Output'!C$30,'Male Posturing'!A45,'Male Posturing'!B45) ->  | D45: =SW_adjust_Z('Input & Output'!C$24,'Input & Output'!C$25,'Input & Output'!C$27,'Input & Output'!C$28,'Input & Output'!C$29,'Input & Output'!C$30,'Male Posturing'!A45,'Male Posturing'!B45) ->  | F45: =Grip_Z('Input & Output'!C$26,'Input & Output'!C$29,'Input & Output'!C$30,'Male Population'!D45,'Male Posturing'!D45) ->  | G45: =H_pref_X('Male Population'!M45,'Male Population'!C45,'Male Posturing'!C45,'Male Posturing'!D45) ->  | H45: =H_pref_Z('Male Population'!M45,'Male Population'!C45,'Male Posturing'!D45) ->  | I45: =H_adjust_X('Input & Output'!C$20,'Input & Output'!C$21,'Male Posturing'!G45) ->  | J45: =H_adjust_Z('Input & Output'!C$22,'Input & Output'!C$23,'Male Posturing'!H45) ->  | K45: =Hip_X('Male Population'!C45,'Male Posturing'!I45) ->  | L45: =Hip_Z('Male Population'!C45,'Male Population'!B45,'Male Posturing'!J45) ->  | M45: =Eye_X('Male Population'!B45,'Male Population'!C45,'Male Population'!L45,'Male Posturing'!K45,'Male Posturing'!L45) ->  | N45: =Eye_Z('Male Population'!B45,'Male Population'!C45,'Male Population'!L45,'Male Posturing'!K45,'Male Posturing'!L45) ->  | O45: =Shoulder_X('Male Population'!B45,'Male Population'!C45,'Male Population'!L45,'Male Posturing'!K45,'Male Posturing'!L45) ->  | P45: =Shoulder_Z('Male Population'!B45,'Male Population'!C45,'Male Population'!L45,'Male Posturing'!K45,'Male Posturing'!L45) ->  | Q45: =Elbow_X('Male Population'!H45,'Male Population'!K45,'Male Posturing'!E45,'Male Posturing'!F45,'Male Posturing'!O45,'Male Posturing'!P45) ->  | R45: =Elbow_Z('Male Population'!H45,'Male Population'!K45,'Male Posturing'!E45,'Male Posturing'!F45,'Male Posturing'!O45,'Male Posturing'!P45) ->  | S45: =Elbow_Angle('Male Population'!H45,'Male Population'!K45,'Male Posturing'!E45,'Male Posturing'!F45,'Male Posturing'!O45,'Male Posturing'!P45) ->  | T45: =Knee_X('Male Population'!F45,'Male Population'!G45,'Male Posturing'!K45,'Male Posturing'!L45) ->  | U45: =Knee_Z('Male Population'!F45,'Male Population'!G45,'Male Posturing'!K45,'Male Posturing'!L45) ->  | V45: =Knee_Angle('Male Population'!F45,'Male Population'!G45,'Male Posturing'!K45,'Male Posturing'!L45) -> 
A46: =SW_pref_X('Input & Output'!C$24,'Input & Output'!C$25,'Input & Output'!C$29,'Input & Output'!C$30,'Male Population'!A46,'Male Population'!D46,'Male Population'!E46) ->  | B46: =SW_pref_Z('Input & Output'!C$24,'Input & Output'!C$25,'Input & Output'!C$29,'Input & Output'!C$30,'Male Population'!A46,'Male Population'!D46,'Male Population'!E46) ->  | C46: =SW_adjust_X('Input & Output'!C$24,'Input & Output'!C$25,'Input & Output'!C$27,'Input & Output'!C$28,'Input & Output'!C$29,'Input & Output'!C$30,'Male Posturing'!A46,'Male Posturing'!B46) ->  | D46: =SW_adjust_Z('Input & Output'!C$24,'Input & Output'!C$25,'Input & Output'!C$27,'Input & Output'!C$28,'Input & Output'!C$29,'Input & Output'!C$30,'Male Posturing'!A46,'Male Posturing'!B46) ->  | F46: =Grip_Z('Input & Output'!C$26,'Input & Output'!C$29,'Input & Output'!C$30,'Male Population'!D46,'Male Posturing'!D46) ->  | G46: =H_pref_X('Male Population'!M46,'Male Population'!C46,'Male Posturing'!C46,'Male Posturing'!D46) ->  | H46: =H_pref_Z('Male Population'!M46,'Male Population'!C46,'Male Posturing'!D46) ->  | I46: =H_adjust_X('Input & Output'!C$20,'Input & Output'!C$21,'Male Posturing'!G46) ->  | J46: =H_adjust_Z('Input & Output'!C$22,'Input & Output'!C$23,'Male Posturing'!H46) ->  | K46: =Hip_X('Male Population'!C46,'Male Posturing'!I46) ->  | L46: =Hip_Z('Male Population'!C46,'Male Population'!B46,'Male Posturing'!J46) ->  | M46: =Eye_X('Male Population'!B46,'Male Population'!C46,'Male Population'!L46,'Male Posturing'!K46,'Male Posturing'!L46) ->  | N46: =Eye_Z('Male Population'!B46,'Male Population'!C46,'Male Population'!L46,'Male Posturing'!K46,'Male Posturing'!L46) ->  | O46: =Shoulder_X('Male Population'!B46,'Male Population'!C46,'Male Population'!L46,'Male Posturing'!K46,'Male Posturing'!L46) ->  | P46: =Shoulder_Z('Male Population'!B46,'Male Population'!C46,'Male Population'!L46,'Male Posturing'!K46,'Male Posturing'!L46) ->  | Q46: =Elbow_X('Male Population'!H46,'Male Population'!K46,'Male Posturing'!E46,'Male Posturing'!F46,'Male Posturing'!O46,'Male Posturing'!P46) ->  | R46: =Elbow_Z('Male Population'!H46,'Male Population'!K46,'Male Posturing'!E46,'Male Posturing'!F46,'Male Posturing'!O46,'Male Posturing'!P46) ->  | S46: =Elbow_Angle('Male Population'!H46,'Male Population'!K46,'Male Posturing'!E46,'Male Posturing'!F46,'Male Posturing'!O46,'Male Posturing'!P46) ->  | T46: =Knee_X('Male Population'!F46,'Male Population'!G46,'Male Posturing'!K46,'Male Posturing'!L46) ->  | U46: =Knee_Z('Male Population'!F46,'Male Population'!G46,'Male Posturing'!K46,'Male Posturing'!L46) ->  | V46: =Knee_Angle('Male Population'!F46,'Male Population'!G46,'Male Posturing'!K46,'Male Posturing'!L46) -> 
A47: =SW_pref_X('Input & Output'!C$24,'Input & Output'!C$25,'Input & Output'!C$29,'Input & Output'!C$30,'Male Population'!A47,'Male Population'!D47,'Male Population'!E47) ->  | B47: =SW_pref_Z('Input & Output'!C$24,'Input & Output'!C$25,'Input & Output'!C$29,'Input & Output'!C$30,'Male Population'!A47,'Male Population'!D47,'Male Population'!E47) ->  | C47: =SW_adjust_X('Input & Output'!C$24,'Input & Output'!C$25,'Input & Output'!C$27,'Input & Output'!C$28,'Input & Output'!C$29,'Input & Output'!C$30,'Male Posturing'!A47,'Male Posturing'!B47) ->  | D47: =SW_adjust_Z('Input & Output'!C$24,'Input & Output'!C$25,'Input & Output'!C$27,'Input & Output'!C$28,'Input & Output'!C$29,'Input & Output'!C$30,'Male Posturing'!A47,'Male Posturing'!B47) ->  | F47: =Grip_Z('Input & Output'!C$26,'Input & Output'!C$29,'Input & Output'!C$30,'Male Population'!D47,'Male Posturing'!D47) ->  | G47: =H_pref_X('Male Population'!M47,'Male Population'!C47,'Male Posturing'!C47,'Male Posturing'!D47) ->  | H47: =H_pref_Z('Male Population'!M47,'Male Population'!C47,'Male Posturing'!D47) ->  | I47: =H_adjust_X('Input & Output'!C$20,'Input & Output'!C$21,'Male Posturing'!G47) ->  | J47: =H_adjust_Z('Input & Output'!C$22,'Input & Output'!C$23,'Male Posturing'!H47) ->  | K47: =Hip_X('Male Population'!C47,'Male Posturing'!I47) ->  | L47: =Hip_Z('Male Population'!C47,'Male Population'!B47,'Male Posturing'!J47) ->  | M47: =Eye_X('Male Population'!B47,'Male Population'!C47,'Male Population'!L47,'Male Posturing'!K47,'Male Posturing'!L47) ->  | N47: =Eye_Z('Male Population'!B47,'Male Population'!C47,'Male Population'!L47,'Male Posturing'!K47,'Male Posturing'!L47) ->  | O47: =Shoulder_X('Male Population'!B47,'Male Population'!C47,'Male Population'!L47,'Male Posturing'!K47,'Male Posturing'!L47) ->  | P47: =Shoulder_Z('Male Population'!B47,'Male Population'!C47,'Male Population'!L47,'Male Posturing'!K47,'Male Posturing'!L47) ->  | Q47: =Elbow_X('Male Population'!H47,'Male Population'!K47,'Male Posturing'!E47,'Male Posturing'!F47,'Male Posturing'!O47,'Male Posturing'!P47) ->  | R47: =Elbow_Z('Male Population'!H47,'Male Population'!K47,'Male Posturing'!E47,'Male Posturing'!F47,'Male Posturing'!O47,'Male Posturing'!P47) ->  | S47: =Elbow_Angle('Male Population'!H47,'Male Population'!K47,'Male Posturing'!E47,'Male Posturing'!F47,'Male Posturing'!O47,'Male Posturing'!P47) ->  | T47: =Knee_X('Male Population'!F47,'Male Population'!G47,'Male Posturing'!K47,'Male Posturing'!L47) ->  | U47: =Knee_Z('Male Population'!F47,'Male Population'!G47,'Male Posturing'!K47,'Male Posturing'!L47) ->  | V47: =Knee_Angle('Male Population'!F47,'Male Population'!G47,'Male Posturing'!K47,'Male Posturing'!L47) -> 
A48: =SW_pref_X('Input & Output'!C$24,'Input & Output'!C$25,'Input & Output'!C$29,'Input & Output'!C$30,'Male Population'!A48,'Male Population'!D48,'Male Population'!E48) ->  | B48: =SW_pref_Z('Input & Output'!C$24,'Input & Output'!C$25,'Input & Output'!C$29,'Input & Output'!C$30,'Male Population'!A48,'Male Population'!D48,'Male Population'!E48) ->  | C48: =SW_adjust_X('Input & Output'!C$24,'Input & Output'!C$25,'Input & Output'!C$27,'Input & Output'!C$28,'Input & Output'!C$29,'Input & Output'!C$30,'Male Posturing'!A48,'Male Posturing'!B48) ->  | D48: =SW_adjust_Z('Input & Output'!C$24,'Input & Output'!C$25,'Input & Output'!C$27,'Input & Output'!C$28,'Input & Output'!C$29,'Input & Output'!C$30,'Male Posturing'!A48,'Male Posturing'!B48) ->  | F48: =Grip_Z('Input & Output'!C$26,'Input & Output'!C$29,'Input & Output'!C$30,'Male Population'!D48,'Male Posturing'!D48) ->  | G48: =H_pref_X('Male Population'!M48,'Male Population'!C48,'Male Posturing'!C48,'Male Posturing'!D48) ->  | H48: =H_pref_Z('Male Population'!M48,'Male Population'!C48,'Male Posturing'!D48) ->  | I48: =H_adjust_X('Input & Output'!C$20,'Input & Output'!C$21,'Male Posturing'!G48) ->  | J48: =H_adjust_Z('Input & Output'!C$22,'Input & Output'!C$23,'Male Posturing'!H48) ->  | K48: =Hip_X('Male Population'!C48,'Male Posturing'!I48) ->  | L48: =Hip_Z('Male Population'!C48,'Male Population'!B48,'Male Posturing'!J48) ->  | M48: =Eye_X('Male Population'!B48,'Male Population'!C48,'Male Population'!L48,'Male Posturing'!K48,'Male Posturing'!L48) ->  | N48: =Eye_Z('Male Population'!B48,'Male Population'!C48,'Male Population'!L48,'Male Posturing'!K48,'Male Posturing'!L48) ->  | O48: =Shoulder_X('Male Population'!B48,'Male Population'!C48,'Male Population'!L48,'Male Posturing'!K48,'Male Posturing'!L48) ->  | P48: =Shoulder_Z('Male Population'!B48,'Male Population'!C48,'Male Population'!L48,'Male Posturing'!K48,'Male Posturing'!L48) ->  | Q48: =Elbow_X('Male Population'!H48,'Male Population'!K48,'Male Posturing'!E48,'Male Posturing'!F48,'Male Posturing'!O48,'Male Posturing'!P48) ->  | R48: =Elbow_Z('Male Population'!H48,'Male Population'!K48,'Male Posturing'!E48,'Male Posturing'!F48,'Male Posturing'!O48,'Male Posturing'!P48) ->  | S48: =Elbow_Angle('Male Population'!H48,'Male Population'!K48,'Male Posturing'!E48,'Male Posturing'!F48,'Male Posturing'!O48,'Male Posturing'!P48) ->  | T48: =Knee_X('Male Population'!F48,'Male Population'!G48,'Male Posturing'!K48,'Male Posturing'!L48) ->  | U48: =Knee_Z('Male Population'!F48,'Male Population'!G48,'Male Posturing'!K48,'Male Posturing'!L48) ->  | V48: =Knee_Angle('Male Population'!F48,'Male Population'!G48,'Male Posturing'!K48,'Male Posturing'!L48) -> 
A49: =SW_pref_X('Input & Output'!C$24,'Input & Output'!C$25,'Input & Output'!C$29,'Input & Output'!C$30,'Male Population'!A49,'Male Population'!D49,'Male Population'!E49) ->  | B49: =SW_pref_Z('Input & Output'!C$24,'Input & Output'!C$25,'Input & Output'!C$29,'Input & Output'!C$30,'Male Population'!A49,'Male Population'!D49,'Male Population'!E49) ->  | C49: =SW_adjust_X('Input & Output'!C$24,'Input & Output'!C$25,'Input & Output'!C$27,'Input & Output'!C$28,'Input & Output'!C$29,'Input & Output'!C$30,'Male Posturing'!A49,'Male Posturing'!B49) ->  | D49: =SW_adjust_Z('Input & Output'!C$24,'Input & Output'!C$25,'Input & Output'!C$27,'Input & Output'!C$28,'Input & Output'!C$29,'Input & Output'!C$30,'Male Posturing'!A49,'Male Posturing'!B49) ->  | F49: =Grip_Z('Input & Output'!C$26,'Input & Output'!C$29,'Input & Output'!C$30,'Male Population'!D49,'Male Posturing'!D49) ->  | G49: =H_pref_X('Male Population'!M49,'Male Population'!C49,'Male Posturing'!C49,'Male Posturing'!D49) ->  | H49: =H_pref_Z('Male Population'!M49,'Male Population'!C49,'Male Posturing'!D49) ->  | I49: =H_adjust_X('Input & Output'!C$20,'Input & Output'!C$21,'Male Posturing'!G49) ->  | J49: =H_adjust_Z('Input & Output'!C$22,'Input & Output'!C$23,'Male Posturing'!H49) ->  | K49: =Hip_X('Male Population'!C49,'Male Posturing'!I49) ->  | L49: =Hip_Z('Male Population'!C49,'Male Population'!B49,'Male Posturing'!J49) ->  | M49: =Eye_X('Male Population'!B49,'Male Population'!C49,'Male Population'!L49,'Male Posturing'!K49,'Male Posturing'!L49) ->  | N49: =Eye_Z('Male Population'!B49,'Male Population'!C49,'Male Population'!L49,'Male Posturing'!K49,'Male Posturing'!L49) ->  | O49: =Shoulder_X('Male Population'!B49,'Male Population'!C49,'Male Population'!L49,'Male Posturing'!K49,'Male Posturing'!L49) ->  | P49: =Shoulder_Z('Male Population'!B49,'Male Population'!C49,'Male Population'!L49,'Male Posturing'!K49,'Male Posturing'!L49) ->  | Q49: =Elbow_X('Male Population'!H49,'Male Population'!K49,'Male Posturing'!E49,'Male Posturing'!F49,'Male Posturing'!O49,'Male Posturing'!P49) ->  | R49: =Elbow_Z('Male Population'!H49,'Male Population'!K49,'Male Posturing'!E49,'Male Posturing'!F49,'Male Posturing'!O49,'Male Posturing'!P49) ->  | S49: =Elbow_Angle('Male Population'!H49,'Male Population'!K49,'Male Posturing'!E49,'Male Posturing'!F49,'Male Posturing'!O49,'Male Posturing'!P49) ->  | T49: =Knee_X('Male Population'!F49,'Male Population'!G49,'Male Posturing'!K49,'Male Posturing'!L49) ->  | U49: =Knee_Z('Male Population'!F49,'Male Population'!G49,'Male Posturing'!K49,'Male Posturing'!L49) ->  | V49: =Knee_Angle('Male Population'!F49,'Male Population'!G49,'Male Posturing'!K49,'Male Posturing'!L49) -> 
A50: =SW_pref_X('Input & Output'!C$24,'Input & Output'!C$25,'Input & Output'!C$29,'Input & Output'!C$30,'Male Population'!A50,'Male Population'!D50,'Male Population'!E50) ->  | B50: =SW_pref_Z('Input & Output'!C$24,'Input & Output'!C$25,'Input & Output'!C$29,'Input & Output'!C$30,'Male Population'!A50,'Male Population'!D50,'Male Population'!E50) ->  | C50: =SW_adjust_X('Input & Output'!C$24,'Input & Output'!C$25,'Input & Output'!C$27,'Input & Output'!C$28,'Input & Output'!C$29,'Input & Output'!C$30,'Male Posturing'!A50,'Male Posturing'!B50) ->  | D50: =SW_adjust_Z('Input & Output'!C$24,'Input & Output'!C$25,'Input & Output'!C$27,'Input & Output'!C$28,'Input & Output'!C$29,'Input & Output'!C$30,'Male Posturing'!A50,'Male Posturing'!B50) ->  | F50: =Grip_Z('Input & Output'!C$26,'Input & Output'!C$29,'Input & Output'!C$30,'Male Population'!D50,'Male Posturing'!D50) ->  | G50: =H_pref_X('Male Population'!M50,'Male Population'!C50,'Male Posturing'!C50,'Male Posturing'!D50) ->  | H50: =H_pref_Z('Male Population'!M50,'Male Population'!C50,'Male Posturing'!D50) ->  | I50: =H_adjust_X('Input & Output'!C$20,'Input & Output'!C$21,'Male Posturing'!G50) ->  | J50: =H_adjust_Z('Input & Output'!C$22,'Input & Output'!C$23,'Male Posturing'!H50) ->  | K50: =Hip_X('Male Population'!C50,'Male Posturing'!I50) ->  | L50: =Hip_Z('Male Population'!C50,'Male Population'!B50,'Male Posturing'!J50) ->  | M50: =Eye_X('Male Population'!B50,'Male Population'!C50,'Male Population'!L50,'Male Posturing'!K50,'Male Posturing'!L50) ->  | N50: =Eye_Z('Male Population'!B50,'Male Population'!C50,'Male Population'!L50,'Male Posturing'!K50,'Male Posturing'!L50) ->  | O50: =Shoulder_X('Male Population'!B50,'Male Population'!C50,'Male Population'!L50,'Male Posturing'!K50,'Male Posturing'!L50) ->  | P50: =Shoulder_Z('Male Population'!B50,'Male Population'!C50,'Male Population'!L50,'Male Posturing'!K50,'Male Posturing'!L50) ->  | Q50: =Elbow_X('Male Population'!H50,'Male Population'!K50,'Male Posturing'!E50,'Male Posturing'!F50,'Male Posturing'!O50,'Male Posturing'!P50) ->  | R50: =Elbow_Z('Male Population'!H50,'Male Population'!K50,'Male Posturing'!E50,'Male Posturing'!F50,'Male Posturing'!O50,'Male Posturing'!P50) ->  | S50: =Elbow_Angle('Male Population'!H50,'Male Population'!K50,'Male Posturing'!E50,'Male Posturing'!F50,'Male Posturing'!O50,'Male Posturing'!P50) ->  | T50: =Knee_X('Male Population'!F50,'Male Population'!G50,'Male Posturing'!K50,'Male Posturing'!L50) ->  | U50: =Knee_Z('Male Population'!F50,'Male Population'!G50,'Male Posturing'!K50,'Male Posturing'!L50) ->  | V50: =Knee_Angle('Male Population'!F50,'Male Population'!G50,'Male Posturing'!K50,'Male Posturing'!L50) -> 
A51: =SW_pref_X('Input & Output'!C$24,'Input & Output'!C$25,'Input & Output'!C$29,'Input & Output'!C$30,'Male Population'!A51,'Male Population'!D51,'Male Population'!E51) ->  | B51: =SW_pref_Z('Input & Output'!C$24,'Input & Output'!C$25,'Input & Output'!C$29,'Input & Output'!C$30,'Male Population'!A51,'Male Population'!D51,'Male Population'!E51) ->  | C51: =SW_adjust_X('Input & Output'!C$24,'Input & Output'!C$25,'Input & Output'!C$27,'Input & Output'!C$28,'Input & Output'!C$29,'Input & Output'!C$30,'Male Posturing'!A51,'Male Posturing'!B51) ->  | D51: =SW_adjust_Z('Input & Output'!C$24,'Input & Output'!C$25,'Input & Output'!C$27,'Input & Output'!C$28,'Input & Output'!C$29,'Input & Output'!C$30,'Male Posturing'!A51,'Male Posturing'!B51) ->  | F51: =Grip_Z('Input & Output'!C$26,'Input & Output'!C$29,'Input & Output'!C$30,'Male Population'!D51,'Male Posturing'!D51) ->  | G51: =H_pref_X('Male Population'!M51,'Male Population'!C51,'Male Posturing'!C51,'Male Posturing'!D51) ->  | H51: =H_pref_Z('Male Population'!M51,'Male Population'!C51,'Male Posturing'!D51) ->  | I51: =H_adjust_X('Input & Output'!C$20,'Input & Output'!C$21,'Male Posturing'!G51) ->  | J51: =H_adjust_Z('Input & Output'!C$22,'Input & Output'!C$23,'Male Posturing'!H51) ->  | K51: =Hip_X('Male Population'!C51,'Male Posturing'!I51) ->  | L51: =Hip_Z('Male Population'!C51,'Male Population'!B51,'Male Posturing'!J51) ->  | M51: =Eye_X('Male Population'!B51,'Male Population'!C51,'Male Population'!L51,'Male Posturing'!K51,'Male Posturing'!L51) ->  | N51: =Eye_Z('Male Population'!B51,'Male Population'!C51,'Male Population'!L51,'Male Posturing'!K51,'Male Posturing'!L51) ->  | O51: =Shoulder_X('Male Population'!B51,'Male Population'!C51,'Male Population'!L51,'Male Posturing'!K51,'Male Posturing'!L51) ->  | P51: =Shoulder_Z('Male Population'!B51,'Male Population'!C51,'Male Population'!L51,'Male Posturing'!K51,'Male Posturing'!L51) ->  | Q51: =Elbow_X('Male Population'!H51,'Male Population'!K51,'Male Posturing'!E51,'Male Posturing'!F51,'Male Posturing'!O51,'Male Posturing'!P51) ->  | R51: =Elbow_Z('Male Population'!H51,'Male Population'!K51,'Male Posturing'!E51,'Male Posturing'!F51,'Male Posturing'!O51,'Male Posturing'!P51) ->  | S51: =Elbow_Angle('Male Population'!H51,'Male Population'!K51,'Male Posturing'!E51,'Male Posturing'!F51,'Male Posturing'!O51,'Male Posturing'!P51) ->  | T51: =Knee_X('Male Population'!F51,'Male Population'!G51,'Male Posturing'!K51,'Male Posturing'!L51) ->  | U51: =Knee_Z('Male Population'!F51,'Male Population'!G51,'Male Posturing'!K51,'Male Posturing'!L51) ->  | V51: =Knee_Angle('Male Population'!F51,'Male Population'!G51,'Male Posturing'!K51,'Male Posturing'!L51) -> 
A52: =SW_pref_X('Input & Output'!C$24,'Input & Output'!C$25,'Input & Output'!C$29,'Input & Output'!C$30,'Male Population'!A52,'Male Population'!D52,'Male Population'!E52) ->  | B52: =SW_pref_Z('Input & Output'!C$24,'Input & Output'!C$25,'Input & Output'!C$29,'Input & Output'!C$30,'Male Population'!A52,'Male Population'!D52,'Male Population'!E52) ->  | C52: =SW_adjust_X('Input & Output'!C$24,'Input & Output'!C$25,'Input & Output'!C$27,'Input & Output'!C$28,'Input & Output'!C$29,'Input & Output'!C$30,'Male Posturing'!A52,'Male Posturing'!B52) ->  | D52: =SW_adjust_Z('Input & Output'!C$24,'Input & Output'!C$25,'Input & Output'!C$27,'Input & Output'!C$28,'Input & Output'!C$29,'Input & Output'!C$30,'Male Posturing'!A52,'Male Posturing'!B52) ->  | F52: =Grip_Z('Input & Output'!C$26,'Input & Output'!C$29,'Input & Output'!C$30,'Male Population'!D52,'Male Posturing'!D52) ->  | G52: =H_pref_X('Male Population'!M52,'Male Population'!C52,'Male Posturing'!C52,'Male Posturing'!D52) ->  | H52: =H_pref_Z('Male Population'!M52,'Male Population'!C52,'Male Posturing'!D52) ->  | I52: =H_adjust_X('Input & Output'!C$20,'Input & Output'!C$21,'Male Posturing'!G52) ->  | J52: =H_adjust_Z('Input & Output'!C$22,'Input & Output'!C$23,'Male Posturing'!H52) ->  | K52: =Hip_X('Male Population'!C52,'Male Posturing'!I52) ->  | L52: =Hip_Z('Male Population'!C52,'Male Population'!B52,'Male Posturing'!J52) ->  | M52: =Eye_X('Male Population'!B52,'Male Population'!C52,'Male Population'!L52,'Male Posturing'!K52,'Male Posturing'!L52) ->  | N52: =Eye_Z('Male Population'!B52,'Male Population'!C52,'Male Population'!L52,'Male Posturing'!K52,'Male Posturing'!L52) ->  | O52: =Shoulder_X('Male Population'!B52,'Male Population'!C52,'Male Population'!L52,'Male Posturing'!K52,'Male Posturing'!L52) ->  | P52: =Shoulder_Z('Male Population'!B52,'Male Population'!C52,'Male Population'!L52,'Male Posturing'!K52,'Male Posturing'!L52) ->  | Q52: =Elbow_X('Male Population'!H52,'Male Population'!K52,'Male Posturing'!E52,'Male Posturing'!F52,'Male Posturing'!O52,'Male Posturing'!P52) ->  | R52: =Elbow_Z('Male Population'!H52,'Male Population'!K52,'Male Posturing'!E52,'Male Posturing'!F52,'Male Posturing'!O52,'Male Posturing'!P52) ->  | S52: =Elbow_Angle('Male Population'!H52,'Male Population'!K52,'Male Posturing'!E52,'Male Posturing'!F52,'Male Posturing'!O52,'Male Posturing'!P52) ->  | T52: =Knee_X('Male Population'!F52,'Male Population'!G52,'Male Posturing'!K52,'Male Posturing'!L52) ->  | U52: =Knee_Z('Male Population'!F52,'Male Population'!G52,'Male Posturing'!K52,'Male Posturing'!L52) ->  | V52: =Knee_Angle('Male Population'!F52,'Male Population'!G52,'Male Posturing'!K52,'Male Posturing'!L52) -> 
A53: =SW_pref_X('Input & Output'!C$24,'Input & Output'!C$25,'Input & Output'!C$29,'Input & Output'!C$30,'Male Population'!A53,'Male Population'!D53,'Male Population'!E53) ->  | B53: =SW_pref_Z('Input & Output'!C$24,'Input & Output'!C$25,'Input & Output'!C$29,'Input & Output'!C$30,'Male Population'!A53,'Male Population'!D53,'Male Population'!E53) ->  | C53: =SW_adjust_X('Input & Output'!C$24,'Input & Output'!C$25,'Input & Output'!C$27,'Input & Output'!C$28,'Input & Output'!C$29,'Input & Output'!C$30,'Male Posturing'!A53,'Male Posturing'!B53) ->  | D53: =SW_adjust_Z('Input & Output'!C$24,'Input & Output'!C$25,'Input & Output'!C$27,'Input & Output'!C$28,'Input & Output'!C$29,'Input & Output'!C$30,'Male Posturing'!A53,'Male Posturing'!B53) ->  | F53: =Grip_Z('Input & Output'!C$26,'Input & Output'!C$29,'Input & Output'!C$30,'Male Population'!D53,'Male Posturing'!D53) ->  | G53: =H_pref_X('Male Population'!M53,'Male Population'!C53,'Male Posturing'!C53,'Male Posturing'!D53) ->  | H53: =H_pref_Z('Male Population'!M53,'Male Population'!C53,'Male Posturing'!D53) ->  | I53: =H_adjust_X('Input & Output'!C$20,'Input & Output'!C$21,'Male Posturing'!G53) ->  | J53: =H_adjust_Z('Input & Output'!C$22,'Input & Output'!C$23,'Male Posturing'!H53) ->  | K53: =Hip_X('Male Population'!C53,'Male Posturing'!I53) ->  | L53: =Hip_Z('Male Population'!C53,'Male Population'!B53,'Male Posturing'!J53) ->  | M53: =Eye_X('Male Population'!B53,'Male Population'!C53,'Male Population'!L53,'Male Posturing'!K53,'Male Posturing'!L53) ->  | N53: =Eye_Z('Male Population'!B53,'Male Population'!C53,'Male Population'!L53,'Male Posturing'!K53,'Male Posturing'!L53) ->  | O53: =Shoulder_X('Male Population'!B53,'Male Population'!C53,'Male Population'!L53,'Male Posturing'!K53,'Male Posturing'!L53) ->  | P53: =Shoulder_Z('Male Population'!B53,'Male Population'!C53,'Male Population'!L53,'Male Posturing'!K53,'Male Posturing'!L53) ->  | Q53: =Elbow_X('Male Population'!H53,'Male Population'!K53,'Male Posturing'!E53,'Male Posturing'!F53,'Male Posturing'!O53,'Male Posturing'!P53) ->  | R53: =Elbow_Z('Male Population'!H53,'Male Population'!K53,'Male Posturing'!E53,'Male Posturing'!F53,'Male Posturing'!O53,'Male Posturing'!P53) ->  | S53: =Elbow_Angle('Male Population'!H53,'Male Population'!K53,'Male Posturing'!E53,'Male Posturing'!F53,'Male Posturing'!O53,'Male Posturing'!P53) ->  | T53: =Knee_X('Male Population'!F53,'Male Population'!G53,'Male Posturing'!K53,'Male Posturing'!L53) ->  | U53: =Knee_Z('Male Population'!F53,'Male Population'!G53,'Male Posturing'!K53,'Male Posturing'!L53) ->  | V53: =Knee_Angle('Male Population'!F53,'Male Population'!G53,'Male Posturing'!K53,'Male Posturing'!L53) -> 
A54: =SW_pref_X('Input & Output'!C$24,'Input & Output'!C$25,'Input & Output'!C$29,'Input & Output'!C$30,'Male Population'!A54,'Male Population'!D54,'Male Population'!E54) ->  | B54: =SW_pref_Z('Input & Output'!C$24,'Input & Output'!C$25,'Input & Output'!C$29,'Input & Output'!C$30,'Male Population'!A54,'Male Population'!D54,'Male Population'!E54) ->  | C54: =SW_adjust_X('Input & Output'!C$24,'Input & Output'!C$25,'Input & Output'!C$27,'Input & Output'!C$28,'Input & Output'!C$29,'Input & Output'!C$30,'Male Posturing'!A54,'Male Posturing'!B54) ->  | D54: =SW_adjust_Z('Input & Output'!C$24,'Input & Output'!C$25,'Input & Output'!C$27,'Input & Output'!C$28,'Input & Output'!C$29,'Input & Output'!C$30,'Male Posturing'!A54,'Male Posturing'!B54) ->  | F54: =Grip_Z('Input & Output'!C$26,'Input & Output'!C$29,'Input & Output'!C$30,'Male Population'!D54,'Male Posturing'!D54) ->  | G54: =H_pref_X('Male Population'!M54,'Male Population'!C54,'Male Posturing'!C54,'Male Posturing'!D54) ->  | H54: =H_pref_Z('Male Population'!M54,'Male Population'!C54,'Male Posturing'!D54) ->  | I54: =H_adjust_X('Input & Output'!C$20,'Input & Output'!C$21,'Male Posturing'!G54) ->  | J54: =H_adjust_Z('Input & Output'!C$22,'Input & Output'!C$23,'Male Posturing'!H54) ->  | K54: =Hip_X('Male Population'!C54,'Male Posturing'!I54) ->  | L54: =Hip_Z('Male Population'!C54,'Male Population'!B54,'Male Posturing'!J54) ->  | M54: =Eye_X('Male Population'!B54,'Male Population'!C54,'Male Population'!L54,'Male Posturing'!K54,'Male Posturing'!L54) ->  | N54: =Eye_Z('Male Population'!B54,'Male Population'!C54,'Male Population'!L54,'Male Posturing'!K54,'Male Posturing'!L54) ->  | O54: =Shoulder_X('Male Population'!B54,'Male Population'!C54,'Male Population'!L54,'Male Posturing'!K54,'Male Posturing'!L54) ->  | P54: =Shoulder_Z('Male Population'!B54,'Male Population'!C54,'Male Population'!L54,'Male Posturing'!K54,'Male Posturing'!L54) ->  | Q54: =Elbow_X('Male Population'!H54,'Male Population'!K54,'Male Posturing'!E54,'Male Posturing'!F54,'Male Posturing'!O54,'Male Posturing'!P54) ->  | R54: =Elbow_Z('Male Population'!H54,'Male Population'!K54,'Male Posturing'!E54,'Male Posturing'!F54,'Male Posturing'!O54,'Male Posturing'!P54) ->  | S54: =Elbow_Angle('Male Population'!H54,'Male Population'!K54,'Male Posturing'!E54,'Male Posturing'!F54,'Male Posturing'!O54,'Male Posturing'!P54) ->  | T54: =Knee_X('Male Population'!F54,'Male Population'!G54,'Male Posturing'!K54,'Male Posturing'!L54) ->  | U54: =Knee_Z('Male Population'!F54,'Male Population'!G54,'Male Posturing'!K54,'Male Posturing'!L54) ->  | V54: =Knee_Angle('Male Population'!F54,'Male Population'!G54,'Male Posturing'!K54,'Male Posturing'!L54) -> 
A55: =SW_pref_X('Input & Output'!C$24,'Input & Output'!C$25,'Input & Output'!C$29,'Input & Output'!C$30,'Male Population'!A55,'Male Population'!D55,'Male Population'!E55) ->  | B55: =SW_pref_Z('Input & Output'!C$24,'Input & Output'!C$25,'Input & Output'!C$29,'Input & Output'!C$30,'Male Population'!A55,'Male Population'!D55,'Male Population'!E55) ->  | C55: =SW_adjust_X('Input & Output'!C$24,'Input & Output'!C$25,'Input & Output'!C$27,'Input & Output'!C$28,'Input & Output'!C$29,'Input & Output'!C$30,'Male Posturing'!A55,'Male Posturing'!B55) ->  | D55: =SW_adjust_Z('Input & Output'!C$24,'Input & Output'!C$25,'Input & Output'!C$27,'Input & Output'!C$28,'Input & Output'!C$29,'Input & Output'!C$30,'Male Posturing'!A55,'Male Posturing'!B55) ->  | F55: =Grip_Z('Input & Output'!C$26,'Input & Output'!C$29,'Input & Output'!C$30,'Male Population'!D55,'Male Posturing'!D55) ->  | G55: =H_pref_X('Male Population'!M55,'Male Population'!C55,'Male Posturing'!C55,'Male Posturing'!D55) ->  | H55: =H_pref_Z('Male Population'!M55,'Male Population'!C55,'Male Posturing'!D55) ->  | I55: =H_adjust_X('Input & Output'!C$20,'Input & Output'!C$21,'Male Posturing'!G55) ->  | J55: =H_adjust_Z('Input & Output'!C$22,'Input & Output'!C$23,'Male Posturing'!H55) ->  | K55: =Hip_X('Male Population'!C55,'Male Posturing'!I55) ->  | L55: =Hip_Z('Male Population'!C55,'Male Population'!B55,'Male Posturing'!J55) ->  | M55: =Eye_X('Male Population'!B55,'Male Population'!C55,'Male Population'!L55,'Male Posturing'!K55,'Male Posturing'!L55) ->  | N55: =Eye_Z('Male Population'!B55,'Male Population'!C55,'Male Population'!L55,'Male Posturing'!K55,'Male Posturing'!L55) ->  | O55: =Shoulder_X('Male Population'!B55,'Male Population'!C55,'Male Population'!L55,'Male Posturing'!K55,'Male Posturing'!L55) ->  | P55: =Shoulder_Z('Male Population'!B55,'Male Population'!C55,'Male Population'!L55,'Male Posturing'!K55,'Male Posturing'!L55) ->  | Q55: =Elbow_X('Male Population'!H55,'Male Population'!K55,'Male Posturing'!E55,'Male Posturing'!F55,'Male Posturing'!O55,'Male Posturing'!P55) ->  | R55: =Elbow_Z('Male Population'!H55,'Male Population'!K55,'Male Posturing'!E55,'Male Posturing'!F55,'Male Posturing'!O55,'Male Posturing'!P55) ->  | S55: =Elbow_Angle('Male Population'!H55,'Male Population'!K55,'Male Posturing'!E55,'Male Posturing'!F55,'Male Posturing'!O55,'Male Posturing'!P55) ->  | T55: =Knee_X('Male Population'!F55,'Male Population'!G55,'Male Posturing'!K55,'Male Posturing'!L55) ->  | U55: =Knee_Z('Male Population'!F55,'Male Population'!G55,'Male Posturing'!K55,'Male Posturing'!L55) ->  | V55: =Knee_Angle('Male Population'!F55,'Male Population'!G55,'Male Posturing'!K55,'Male Posturing'!L55) -> 
A56: =SW_pref_X('Input & Output'!C$24,'Input & Output'!C$25,'Input & Output'!C$29,'Input & Output'!C$30,'Male Population'!A56,'Male Population'!D56,'Male Population'!E56) ->  | B56: =SW_pref_Z('Input & Output'!C$24,'Input & Output'!C$25,'Input & Output'!C$29,'Input & Output'!C$30,'Male Population'!A56,'Male Population'!D56,'Male Population'!E56) ->  | C56: =SW_adjust_X('Input & Output'!C$24,'Input & Output'!C$25,'Input & Output'!C$27,'Input & Output'!C$28,'Input & Output'!C$29,'Input & Output'!C$30,'Male Posturing'!A56,'Male Posturing'!B56) ->  | D56: =SW_adjust_Z('Input & Output'!C$24,'Input & Output'!C$25,'Input & Output'!C$27,'Input & Output'!C$28,'Input & Output'!C$29,'Input & Output'!C$30,'Male Posturing'!A56,'Male Posturing'!B56) ->  | F56: =Grip_Z('Input & Output'!C$26,'Input & Output'!C$29,'Input & Output'!C$30,'Male Population'!D56,'Male Posturing'!D56) ->  | G56: =H_pref_X('Male Population'!M56,'Male Population'!C56,'Male Posturing'!C56,'Male Posturing'!D56) ->  | H56: =H_pref_Z('Male Population'!M56,'Male Population'!C56,'Male Posturing'!D56) ->  | I56: =H_adjust_X('Input & Output'!C$20,'Input & Output'!C$21,'Male Posturing'!G56) ->  | J56: =H_adjust_Z('Input & Output'!C$22,'Input & Output'!C$23,'Male Posturing'!H56) ->  | K56: =Hip_X('Male Population'!C56,'Male Posturing'!I56) ->  | L56: =Hip_Z('Male Population'!C56,'Male Population'!B56,'Male Posturing'!J56) ->  | M56: =Eye_X('Male Population'!B56,'Male Population'!C56,'Male Population'!L56,'Male Posturing'!K56,'Male Posturing'!L56) ->  | N56: =Eye_Z('Male Population'!B56,'Male Population'!C56,'Male Population'!L56,'Male Posturing'!K56,'Male Posturing'!L56) ->  | O56: =Shoulder_X('Male Population'!B56,'Male Population'!C56,'Male Population'!L56,'Male Posturing'!K56,'Male Posturing'!L56) ->  | P56: =Shoulder_Z('Male Population'!B56,'Male Population'!C56,'Male Population'!L56,'Male Posturing'!K56,'Male Posturing'!L56) ->  | Q56: =Elbow_X('Male Population'!H56,'Male Population'!K56,'Male Posturing'!E56,'Male Posturing'!F56,'Male Posturing'!O56,'Male Posturing'!P56) ->  | R56: =Elbow_Z('Male Population'!H56,'Male Population'!K56,'Male Posturing'!E56,'Male Posturing'!F56,'Male Posturing'!O56,'Male Posturing'!P56) ->  | S56: =Elbow_Angle('Male Population'!H56,'Male Population'!K56,'Male Posturing'!E56,'Male Posturing'!F56,'Male Posturing'!O56,'Male Posturing'!P56) ->  | T56: =Knee_X('Male Population'!F56,'Male Population'!G56,'Male Posturing'!K56,'Male Posturing'!L56) ->  | U56: =Knee_Z('Male Population'!F56,'Male Population'!G56,'Male Posturing'!K56,'Male Posturing'!L56) ->  | V56: =Knee_Angle('Male Population'!F56,'Male Population'!G56,'Male Posturing'!K56,'Male Posturing'!L56) -> 
A57: =SW_pref_X('Input & Output'!C$24,'Input & Output'!C$25,'Input & Output'!C$29,'Input & Output'!C$30,'Male Population'!A57,'Male Population'!D57,'Male Population'!E57) ->  | B57: =SW_pref_Z('Input & Output'!C$24,'Input & Output'!C$25,'Input & Output'!C$29,'Input & Output'!C$30,'Male Population'!A57,'Male Population'!D57,'Male Population'!E57) ->  | C57: =SW_adjust_X('Input & Output'!C$24,'Input & Output'!C$25,'Input & Output'!C$27,'Input & Output'!C$28,'Input & Output'!C$29,'Input & Output'!C$30,'Male Posturing'!A57,'Male Posturing'!B57) ->  | D57: =SW_adjust_Z('Input & Output'!C$24,'Input & Output'!C$25,'Input & Output'!C$27,'Input & Output'!C$28,'Input & Output'!C$29,'Input & Output'!C$30,'Male Posturing'!A57,'Male Posturing'!B57) ->  | F57: =Grip_Z('Input & Output'!C$26,'Input & Output'!C$29,'Input & Output'!C$30,'Male Population'!D57,'Male Posturing'!D57) ->  | G57: =H_pref_X('Male Population'!M57,'Male Population'!C57,'Male Posturing'!C57,'Male Posturing'!D57) ->  | H57: =H_pref_Z('Male Population'!M57,'Male Population'!C57,'Male Posturing'!D57) ->  | I57: =H_adjust_X('Input & Output'!C$20,'Input & Output'!C$21,'Male Posturing'!G57) ->  | J57: =H_adjust_Z('Input & Output'!C$22,'Input & Output'!C$23,'Male Posturing'!H57) ->  | K57: =Hip_X('Male Population'!C57,'Male Posturing'!I57) ->  | L57: =Hip_Z('Male Population'!C57,'Male Population'!B57,'Male Posturing'!J57) ->  | M57: =Eye_X('Male Population'!B57,'Male Population'!C57,'Male Population'!L57,'Male Posturing'!K57,'Male Posturing'!L57) ->  | N57: =Eye_Z('Male Population'!B57,'Male Population'!C57,'Male Population'!L57,'Male Posturing'!K57,'Male Posturing'!L57) ->  | O57: =Shoulder_X('Male Population'!B57,'Male Population'!C57,'Male Population'!L57,'Male Posturing'!K57,'Male Posturing'!L57) ->  | P57: =Shoulder_Z('Male Population'!B57,'Male Population'!C57,'Male Population'!L57,'Male Posturing'!K57,'Male Posturing'!L57) ->  | Q57: =Elbow_X('Male Population'!H57,'Male Population'!K57,'Male Posturing'!E57,'Male Posturing'!F57,'Male Posturing'!O57,'Male Posturing'!P57) ->  | R57: =Elbow_Z('Male Population'!H57,'Male Population'!K57,'Male Posturing'!E57,'Male Posturing'!F57,'Male Posturing'!O57,'Male Posturing'!P57) ->  | S57: =Elbow_Angle('Male Population'!H57,'Male Population'!K57,'Male Posturing'!E57,'Male Posturing'!F57,'Male Posturing'!O57,'Male Posturing'!P57) ->  | T57: =Knee_X('Male Population'!F57,'Male Population'!G57,'Male Posturing'!K57,'Male Posturing'!L57) ->  | U57: =Knee_Z('Male Population'!F57,'Male Population'!G57,'Male Posturing'!K57,'Male Posturing'!L57) ->  | V57: =Knee_Angle('Male Population'!F57,'Male Population'!G57,'Male Posturing'!K57,'Male Posturing'!L57) -> 
A58: =SW_pref_X('Input & Output'!C$24,'Input & Output'!C$25,'Input & Output'!C$29,'Input & Output'!C$30,'Male Population'!A58,'Male Population'!D58,'Male Population'!E58) ->  | B58: =SW_pref_Z('Input & Output'!C$24,'Input & Output'!C$25,'Input & Output'!C$29,'Input & Output'!C$30,'Male Population'!A58,'Male Population'!D58,'Male Population'!E58) ->  | C58: =SW_adjust_X('Input & Output'!C$24,'Input & Output'!C$25,'Input & Output'!C$27,'Input & Output'!C$28,'Input & Output'!C$29,'Input & Output'!C$30,'Male Posturing'!A58,'Male Posturing'!B58) ->  | D58: =SW_adjust_Z('Input & Output'!C$24,'Input & Output'!C$25,'Input & Output'!C$27,'Input & Output'!C$28,'Input & Output'!C$29,'Input & Output'!C$30,'Male Posturing'!A58,'Male Posturing'!B58) ->  | F58: =Grip_Z('Input & Output'!C$26,'Input & Output'!C$29,'Input & Output'!C$30,'Male Population'!D58,'Male Posturing'!D58) ->  | G58: =H_pref_X('Male Population'!M58,'Male Population'!C58,'Male Posturing'!C58,'Male Posturing'!D58) ->  | H58: =H_pref_Z('Male Population'!M58,'Male Population'!C58,'Male Posturing'!D58) ->  | I58: =H_adjust_X('Input & Output'!C$20,'Input & Output'!C$21,'Male Posturing'!G58) ->  | J58: =H_adjust_Z('Input & Output'!C$22,'Input & Output'!C$23,'Male Posturing'!H58) ->  | K58: =Hip_X('Male Population'!C58,'Male Posturing'!I58) ->  | L58: =Hip_Z('Male Population'!C58,'Male Population'!B58,'Male Posturing'!J58) ->  | M58: =Eye_X('Male Population'!B58,'Male Population'!C58,'Male Population'!L58,'Male Posturing'!K58,'Male Posturing'!L58) ->  | N58: =Eye_Z('Male Population'!B58,'Male Population'!C58,'Male Population'!L58,'Male Posturing'!K58,'Male Posturing'!L58) ->  | O58: =Shoulder_X('Male Population'!B58,'Male Population'!C58,'Male Population'!L58,'Male Posturing'!K58,'Male Posturing'!L58) ->  | P58: =Shoulder_Z('Male Population'!B58,'Male Population'!C58,'Male Population'!L58,'Male Posturing'!K58,'Male Posturing'!L58) ->  | Q58: =Elbow_X('Male Population'!H58,'Male Population'!K58,'Male Posturing'!E58,'Male Posturing'!F58,'Male Posturing'!O58,'Male Posturing'!P58) ->  | R58: =Elbow_Z('Male Population'!H58,'Male Population'!K58,'Male Posturing'!E58,'Male Posturing'!F58,'Male Posturing'!O58,'Male Posturing'!P58) ->  | S58: =Elbow_Angle('Male Population'!H58,'Male Population'!K58,'Male Posturing'!E58,'Male Posturing'!F58,'Male Posturing'!O58,'Male Posturing'!P58) ->  | T58: =Knee_X('Male Population'!F58,'Male Population'!G58,'Male Posturing'!K58,'Male Posturing'!L58) ->  | U58: =Knee_Z('Male Population'!F58,'Male Population'!G58,'Male Posturing'!K58,'Male Posturing'!L58) ->  | V58: =Knee_Angle('Male Population'!F58,'Male Population'!G58,'Male Posturing'!K58,'Male Posturing'!L58) -> 
A59: =SW_pref_X('Input & Output'!C$24,'Input & Output'!C$25,'Input & Output'!C$29,'Input & Output'!C$30,'Male Population'!A59,'Male Population'!D59,'Male Population'!E59) ->  | B59: =SW_pref_Z('Input & Output'!C$24,'Input & Output'!C$25,'Input & Output'!C$29,'Input & Output'!C$30,'Male Population'!A59,'Male Population'!D59,'Male Population'!E59) ->  | C59: =SW_adjust_X('Input & Output'!C$24,'Input & Output'!C$25,'Input & Output'!C$27,'Input & Output'!C$28,'Input & Output'!C$29,'Input & Output'!C$30,'Male Posturing'!A59,'Male Posturing'!B59) ->  | D59: =SW_adjust_Z('Input & Output'!C$24,'Input & Output'!C$25,'Input & Output'!C$27,'Input & Output'!C$28,'Input & Output'!C$29,'Input & Output'!C$30,'Male Posturing'!A59,'Male Posturing'!B59) ->  | F59: =Grip_Z('Input & Output'!C$26,'Input & Output'!C$29,'Input & Output'!C$30,'Male Population'!D59,'Male Posturing'!D59) ->  | G59: =H_pref_X('Male Population'!M59,'Male Population'!C59,'Male Posturing'!C59,'Male Posturing'!D59) ->  | H59: =H_pref_Z('Male Population'!M59,'Male Population'!C59,'Male Posturing'!D59) ->  | I59: =H_adjust_X('Input & Output'!C$20,'Input & Output'!C$21,'Male Posturing'!G59) ->  | J59: =H_adjust_Z('Input & Output'!C$22,'Input & Output'!C$23,'Male Posturing'!H59) ->  | K59: =Hip_X('Male Population'!C59,'Male Posturing'!I59) ->  | L59: =Hip_Z('Male Population'!C59,'Male Population'!B59,'Male Posturing'!J59) ->  | M59: =Eye_X('Male Population'!B59,'Male Population'!C59,'Male Population'!L59,'Male Posturing'!K59,'Male Posturing'!L59) ->  | N59: =Eye_Z('Male Population'!B59,'Male Population'!C59,'Male Population'!L59,'Male Posturing'!K59,'Male Posturing'!L59) ->  | O59: =Shoulder_X('Male Population'!B59,'Male Population'!C59,'Male Population'!L59,'Male Posturing'!K59,'Male Posturing'!L59) ->  | P59: =Shoulder_Z('Male Population'!B59,'Male Population'!C59,'Male Population'!L59,'Male Posturing'!K59,'Male Posturing'!L59) ->  | Q59: =Elbow_X('Male Population'!H59,'Male Population'!K59,'Male Posturing'!E59,'Male Posturing'!F59,'Male Posturing'!O59,'Male Posturing'!P59) ->  | R59: =Elbow_Z('Male Population'!H59,'Male Population'!K59,'Male Posturing'!E59,'Male Posturing'!F59,'Male Posturing'!O59,'Male Posturing'!P59) ->  | S59: =Elbow_Angle('Male Population'!H59,'Male Population'!K59,'Male Posturing'!E59,'Male Posturing'!F59,'Male Posturing'!O59,'Male Posturing'!P59) ->  | T59: =Knee_X('Male Population'!F59,'Male Population'!G59,'Male Posturing'!K59,'Male Posturing'!L59) ->  | U59: =Knee_Z('Male Population'!F59,'Male Population'!G59,'Male Posturing'!K59,'Male Posturing'!L59) ->  | V59: =Knee_Angle('Male Population'!F59,'Male Population'!G59,'Male Posturing'!K59,'Male Posturing'!L59) -> 
A60: =SW_pref_X('Input & Output'!C$24,'Input & Output'!C$25,'Input & Output'!C$29,'Input & Output'!C$30,'Male Population'!A60,'Male Population'!D60,'Male Population'!E60) ->  | B60: =SW_pref_Z('Input & Output'!C$24,'Input & Output'!C$25,'Input & Output'!C$29,'Input & Output'!C$30,'Male Population'!A60,'Male Population'!D60,'Male Population'!E60) ->  | C60: =SW_adjust_X('Input & Output'!C$24,'Input & Output'!C$25,'Input & Output'!C$27,'Input & Output'!C$28,'Input & Output'!C$29,'Input & Output'!C$30,'Male Posturing'!A60,'Male Posturing'!B60) ->  | D60: =SW_adjust_Z('Input & Output'!C$24,'Input & Output'!C$25,'Input & Output'!C$27,'Input & Output'!C$28,'Input & Output'!C$29,'Input & Output'!C$30,'Male Posturing'!A60,'Male Posturing'!B60) ->  | F60: =Grip_Z('Input & Output'!C$26,'Input & Output'!C$29,'Input & Output'!C$30,'Male Population'!D60,'Male Posturing'!D60) ->  | G60: =H_pref_X('Male Population'!M60,'Male Population'!C60,'Male Posturing'!C60,'Male Posturing'!D60) ->  | H60: =H_pref_Z('Male Population'!M60,'Male Population'!C60,'Male Posturing'!D60) ->  | I60: =H_adjust_X('Input & Output'!C$20,'Input & Output'!C$21,'Male Posturing'!G60) ->  | J60: =H_adjust_Z('Input & Output'!C$22,'Input & Output'!C$23,'Male Posturing'!H60) ->  | K60: =Hip_X('Male Population'!C60,'Male Posturing'!I60) ->  | L60: =Hip_Z('Male Population'!C60,'Male Population'!B60,'Male Posturing'!J60) ->  | M60: =Eye_X('Male Population'!B60,'Male Population'!C60,'Male Population'!L60,'Male Posturing'!K60,'Male Posturing'!L60) ->  | N60: =Eye_Z('Male Population'!B60,'Male Population'!C60,'Male Population'!L60,'Male Posturing'!K60,'Male Posturing'!L60) ->  | O60: =Shoulder_X('Male Population'!B60,'Male Population'!C60,'Male Population'!L60,'Male Posturing'!K60,'Male Posturing'!L60) ->  | P60: =Shoulder_Z('Male Population'!B60,'Male Population'!C60,'Male Population'!L60,'Male Posturing'!K60,'Male Posturing'!L60) ->  | Q60: =Elbow_X('Male Population'!H60,'Male Population'!K60,'Male Posturing'!E60,'Male Posturing'!F60,'Male Posturing'!O60,'Male Posturing'!P60) ->  | R60: =Elbow_Z('Male Population'!H60,'Male Population'!K60,'Male Posturing'!E60,'Male Posturing'!F60,'Male Posturing'!O60,'Male Posturing'!P60) ->  | S60: =Elbow_Angle('Male Population'!H60,'Male Population'!K60,'Male Posturing'!E60,'Male Posturing'!F60,'Male Posturing'!O60,'Male Posturing'!P60) ->  | T60: =Knee_X('Male Population'!F60,'Male Population'!G60,'Male Posturing'!K60,'Male Posturing'!L60) ->  | U60: =Knee_Z('Male Population'!F60,'Male Population'!G60,'Male Posturing'!K60,'Male Posturing'!L60) ->  | V60: =Knee_Angle('Male Population'!F60,'Male Population'!G60,'Male Posturing'!K60,'Male Posturing'!L60) -> 
A61: =SW_pref_X('Input & Output'!C$24,'Input & Output'!C$25,'Input & Output'!C$29,'Input & Output'!C$30,'Male Population'!A61,'Male Population'!D61,'Male Population'!E61) ->  | B61: =SW_pref_Z('Input & Output'!C$24,'Input & Output'!C$25,'Input & Output'!C$29,'Input & Output'!C$30,'Male Population'!A61,'Male Population'!D61,'Male Population'!E61) ->  | C61: =SW_adjust_X('Input & Output'!C$24,'Input & Output'!C$25,'Input & Output'!C$27,'Input & Output'!C$28,'Input & Output'!C$29,'Input & Output'!C$30,'Male Posturing'!A61,'Male Posturing'!B61) ->  | D61: =SW_adjust_Z('Input & Output'!C$24,'Input & Output'!C$25,'Input & Output'!C$27,'Input & Output'!C$28,'Input & Output'!C$29,'Input & Output'!C$30,'Male Posturing'!A61,'Male Posturing'!B61) ->  | F61: =Grip_Z('Input & Output'!C$26,'Input & Output'!C$29,'Input & Output'!C$30,'Male Population'!D61,'Male Posturing'!D61) ->  | G61: =H_pref_X('Male Population'!M61,'Male Population'!C61,'Male Posturing'!C61,'Male Posturing'!D61) ->  | H61: =H_pref_Z('Male Population'!M61,'Male Population'!C61,'Male Posturing'!D61) ->  | I61: =H_adjust_X('Input & Output'!C$20,'Input & Output'!C$21,'Male Posturing'!G61) ->  | J61: =H_adjust_Z('Input & Output'!C$22,'Input & Output'!C$23,'Male Posturing'!H61) ->  | K61: =Hip_X('Male Population'!C61,'Male Posturing'!I61) ->  | L61: =Hip_Z('Male Population'!C61,'Male Population'!B61,'Male Posturing'!J61) ->  | M61: =Eye_X('Male Population'!B61,'Male Population'!C61,'Male Population'!L61,'Male Posturing'!K61,'Male Posturing'!L61) ->  | N61: =Eye_Z('Male Population'!B61,'Male Population'!C61,'Male Population'!L61,'Male Posturing'!K61,'Male Posturing'!L61) ->  | O61: =Shoulder_X('Male Population'!B61,'Male Population'!C61,'Male Population'!L61,'Male Posturing'!K61,'Male Posturing'!L61) ->  | P61: =Shoulder_Z('Male Population'!B61,'Male Population'!C61,'Male Population'!L61,'Male Posturing'!K61,'Male Posturing'!L61) ->  | Q61: =Elbow_X('Male Population'!H61,'Male Population'!K61,'Male Posturing'!E61,'Male Posturing'!F61,'Male Posturing'!O61,'Male Posturing'!P61) ->  | R61: =Elbow_Z('Male Population'!H61,'Male Population'!K61,'Male Posturing'!E61,'Male Posturing'!F61,'Male Posturing'!O61,'Male Posturing'!P61) ->  | S61: =Elbow_Angle('Male Population'!H61,'Male Population'!K61,'Male Posturing'!E61,'Male Posturing'!F61,'Male Posturing'!O61,'Male Posturing'!P61) ->  | T61: =Knee_X('Male Population'!F61,'Male Population'!G61,'Male Posturing'!K61,'Male Posturing'!L61) ->  | U61: =Knee_Z('Male Population'!F61,'Male Population'!G61,'Male Posturing'!K61,'Male Posturing'!L61) ->  | V61: =Knee_Angle('Male Population'!F61,'Male Population'!G61,'Male Posturing'!K61,'Male Posturing'!L61) -> 
A62: =SW_pref_X('Input & Output'!C$24,'Input & Output'!C$25,'Input & Output'!C$29,'Input & Output'!C$30,'Male Population'!A62,'Male Population'!D62,'Male Population'!E62) ->  | B62: =SW_pref_Z('Input & Output'!C$24,'Input & Output'!C$25,'Input & Output'!C$29,'Input & Output'!C$30,'Male Population'!A62,'Male Population'!D62,'Male Population'!E62) ->  | C62: =SW_adjust_X('Input & Output'!C$24,'Input & Output'!C$25,'Input & Output'!C$27,'Input & Output'!C$28,'Input & Output'!C$29,'Input & Output'!C$30,'Male Posturing'!A62,'Male Posturing'!B62) ->  | D62: =SW_adjust_Z('Input & Output'!C$24,'Input & Output'!C$25,'Input & Output'!C$27,'Input & Output'!C$28,'Input & Output'!C$29,'Input & Output'!C$30,'Male Posturing'!A62,'Male Posturing'!B62) ->  | F62: =Grip_Z('Input & Output'!C$26,'Input & Output'!C$29,'Input & Output'!C$30,'Male Population'!D62,'Male Posturing'!D62) ->  | G62: =H_pref_X('Male Population'!M62,'Male Population'!C62,'Male Posturing'!C62,'Male Posturing'!D62) ->  | H62: =H_pref_Z('Male Population'!M62,'Male Population'!C62,'Male Posturing'!D62) ->  | I62: =H_adjust_X('Input & Output'!C$20,'Input & Output'!C$21,'Male Posturing'!G62) ->  | J62: =H_adjust_Z('Input & Output'!C$22,'Input & Output'!C$23,'Male Posturing'!H62) ->  | K62: =Hip_X('Male Population'!C62,'Male Posturing'!I62) ->  | L62: =Hip_Z('Male Population'!C62,'Male Population'!B62,'Male Posturing'!J62) ->  | M62: =Eye_X('Male Population'!B62,'Male Population'!C62,'Male Population'!L62,'Male Posturing'!K62,'Male Posturing'!L62) ->  | N62: =Eye_Z('Male Population'!B62,'Male Population'!C62,'Male Population'!L62,'Male Posturing'!K62,'Male Posturing'!L62) ->  | O62: =Shoulder_X('Male Population'!B62,'Male Population'!C62,'Male Population'!L62,'Male Posturing'!K62,'Male Posturing'!L62) ->  | P62: =Shoulder_Z('Male Population'!B62,'Male Population'!C62,'Male Population'!L62,'Male Posturing'!K62,'Male Posturing'!L62) ->  | Q62: =Elbow_X('Male Population'!H62,'Male Population'!K62,'Male Posturing'!E62,'Male Posturing'!F62,'Male Posturing'!O62,'Male Posturing'!P62) ->  | R62: =Elbow_Z('Male Population'!H62,'Male Population'!K62,'Male Posturing'!E62,'Male Posturing'!F62,'Male Posturing'!O62,'Male Posturing'!P62) ->  | S62: =Elbow_Angle('Male Population'!H62,'Male Population'!K62,'Male Posturing'!E62,'Male Posturing'!F62,'Male Posturing'!O62,'Male Posturing'!P62) ->  | T62: =Knee_X('Male Population'!F62,'Male Population'!G62,'Male Posturing'!K62,'Male Posturing'!L62) ->  | U62: =Knee_Z('Male Population'!F62,'Male Population'!G62,'Male Posturing'!K62,'Male Posturing'!L62) ->  | V62: =Knee_Angle('Male Population'!F62,'Male Population'!G62,'Male Posturing'!K62,'Male Posturing'!L62) -> 
A63: =SW_pref_X('Input & Output'!C$24,'Input & Output'!C$25,'Input & Output'!C$29,'Input & Output'!C$30,'Male Population'!A63,'Male Population'!D63,'Male Population'!E63) ->  | B63: =SW_pref_Z('Input & Output'!C$24,'Input & Output'!C$25,'Input & Output'!C$29,'Input & Output'!C$30,'Male Population'!A63,'Male Population'!D63,'Male Population'!E63) ->  | C63: =SW_adjust_X('Input & Output'!C$24,'Input & Output'!C$25,'Input & Output'!C$27,'Input & Output'!C$28,'Input & Output'!C$29,'Input & Output'!C$30,'Male Posturing'!A63,'Male Posturing'!B63) ->  | D63: =SW_adjust_Z('Input & Output'!C$24,'Input & Output'!C$25,'Input & Output'!C$27,'Input & Output'!C$28,'Input & Output'!C$29,'Input & Output'!C$30,'Male Posturing'!A63,'Male Posturing'!B63) ->  | F63: =Grip_Z('Input & Output'!C$26,'Input & Output'!C$29,'Input & Output'!C$30,'Male Population'!D63,'Male Posturing'!D63) ->  | G63: =H_pref_X('Male Population'!M63,'Male Population'!C63,'Male Posturing'!C63,'Male Posturing'!D63) ->  | H63: =H_pref_Z('Male Population'!M63,'Male Population'!C63,'Male Posturing'!D63) ->  | I63: =H_adjust_X('Input & Output'!C$20,'Input & Output'!C$21,'Male Posturing'!G63) ->  | J63: =H_adjust_Z('Input & Output'!C$22,'Input & Output'!C$23,'Male Posturing'!H63) ->  | K63: =Hip_X('Male Population'!C63,'Male Posturing'!I63) ->  | L63: =Hip_Z('Male Population'!C63,'Male Population'!B63,'Male Posturing'!J63) ->  | M63: =Eye_X('Male Population'!B63,'Male Population'!C63,'Male Population'!L63,'Male Posturing'!K63,'Male Posturing'!L63) ->  | N63: =Eye_Z('Male Population'!B63,'Male Population'!C63,'Male Population'!L63,'Male Posturing'!K63,'Male Posturing'!L63) ->  | O63: =Shoulder_X('Male Population'!B63,'Male Population'!C63,'Male Population'!L63,'Male Posturing'!K63,'Male Posturing'!L63) ->  | P63: =Shoulder_Z('Male Population'!B63,'Male Population'!C63,'Male Population'!L63,'Male Posturing'!K63,'Male Posturing'!L63) ->  | Q63: =Elbow_X('Male Population'!H63,'Male Population'!K63,'Male Posturing'!E63,'Male Posturing'!F63,'Male Posturing'!O63,'Male Posturing'!P63) ->  | R63: =Elbow_Z('Male Population'!H63,'Male Population'!K63,'Male Posturing'!E63,'Male Posturing'!F63,'Male Posturing'!O63,'Male Posturing'!P63) ->  | S63: =Elbow_Angle('Male Population'!H63,'Male Population'!K63,'Male Posturing'!E63,'Male Posturing'!F63,'Male Posturing'!O63,'Male Posturing'!P63) ->  | T63: =Knee_X('Male Population'!F63,'Male Population'!G63,'Male Posturing'!K63,'Male Posturing'!L63) ->  | U63: =Knee_Z('Male Population'!F63,'Male Population'!G63,'Male Posturing'!K63,'Male Posturing'!L63) ->  | V63: =Knee_Angle('Male Population'!F63,'Male Population'!G63,'Male Posturing'!K63,'Male Posturing'!L63) -> 
A64: =SW_pref_X('Input & Output'!C$24,'Input & Output'!C$25,'Input & Output'!C$29,'Input & Output'!C$30,'Male Population'!A64,'Male Population'!D64,'Male Population'!E64) ->  | B64: =SW_pref_Z('Input & Output'!C$24,'Input & Output'!C$25,'Input & Output'!C$29,'Input & Output'!C$30,'Male Population'!A64,'Male Population'!D64,'Male Population'!E64) ->  | C64: =SW_adjust_X('Input & Output'!C$24,'Input & Output'!C$25,'Input & Output'!C$27,'Input & Output'!C$28,'Input & Output'!C$29,'Input & Output'!C$30,'Male Posturing'!A64,'Male Posturing'!B64) ->  | D64: =SW_adjust_Z('Input & Output'!C$24,'Input & Output'!C$25,'Input & Output'!C$27,'Input & Output'!C$28,'Input & Output'!C$29,'Input & Output'!C$30,'Male Posturing'!A64,'Male Posturing'!B64) ->  | F64: =Grip_Z('Input & Output'!C$26,'Input & Output'!C$29,'Input & Output'!C$30,'Male Population'!D64,'Male Posturing'!D64) ->  | G64: =H_pref_X('Male Population'!M64,'Male Population'!C64,'Male Posturing'!C64,'Male Posturing'!D64) ->  | H64: =H_pref_Z('Male Population'!M64,'Male Population'!C64,'Male Posturing'!D64) ->  | I64: =H_adjust_X('Input & Output'!C$20,'Input & Output'!C$21,'Male Posturing'!G64) ->  | J64: =H_adjust_Z('Input & Output'!C$22,'Input & Output'!C$23,'Male Posturing'!H64) ->  | K64: =Hip_X('Male Population'!C64,'Male Posturing'!I64) ->  | L64: =Hip_Z('Male Population'!C64,'Male Population'!B64,'Male Posturing'!J64) ->  | M64: =Eye_X('Male Population'!B64,'Male Population'!C64,'Male Population'!L64,'Male Posturing'!K64,'Male Posturing'!L64) ->  | N64: =Eye_Z('Male Population'!B64,'Male Population'!C64,'Male Population'!L64,'Male Posturing'!K64,'Male Posturing'!L64) ->  | O64: =Shoulder_X('Male Population'!B64,'Male Population'!C64,'Male Population'!L64,'Male Posturing'!K64,'Male Posturing'!L64) ->  | P64: =Shoulder_Z('Male Population'!B64,'Male Population'!C64,'Male Population'!L64,'Male Posturing'!K64,'Male Posturing'!L64) ->  | Q64: =Elbow_X('Male Population'!H64,'Male Population'!K64,'Male Posturing'!E64,'Male Posturing'!F64,'Male Posturing'!O64,'Male Posturing'!P64) ->  | R64: =Elbow_Z('Male Population'!H64,'Male Population'!K64,'Male Posturing'!E64,'Male Posturing'!F64,'Male Posturing'!O64,'Male Posturing'!P64) ->  | S64: =Elbow_Angle('Male Population'!H64,'Male Population'!K64,'Male Posturing'!E64,'Male Posturing'!F64,'Male Posturing'!O64,'Male Posturing'!P64) ->  | T64: =Knee_X('Male Population'!F64,'Male Population'!G64,'Male Posturing'!K64,'Male Posturing'!L64) ->  | U64: =Knee_Z('Male Population'!F64,'Male Population'!G64,'Male Posturing'!K64,'Male Posturing'!L64) ->  | V64: =Knee_Angle('Male Population'!F64,'Male Population'!G64,'Male Posturing'!K64,'Male Posturing'!L64) -> 
A65: =SW_pref_X('Input & Output'!C$24,'Input & Output'!C$25,'Input & Output'!C$29,'Input & Output'!C$30,'Male Population'!A65,'Male Population'!D65,'Male Population'!E65) ->  | B65: =SW_pref_Z('Input & Output'!C$24,'Input & Output'!C$25,'Input & Output'!C$29,'Input & Output'!C$30,'Male Population'!A65,'Male Population'!D65,'Male Population'!E65) ->  | C65: =SW_adjust_X('Input & Output'!C$24,'Input & Output'!C$25,'Input & Output'!C$27,'Input & Output'!C$28,'Input & Output'!C$29,'Input & Output'!C$30,'Male Posturing'!A65,'Male Posturing'!B65) ->  | D65: =SW_adjust_Z('Input & Output'!C$24,'Input & Output'!C$25,'Input & Output'!C$27,'Input & Output'!C$28,'Input & Output'!C$29,'Input & Output'!C$30,'Male Posturing'!A65,'Male Posturing'!B65) ->  | F65: =Grip_Z('Input & Output'!C$26,'Input & Output'!C$29,'Input & Output'!C$30,'Male Population'!D65,'Male Posturing'!D65) ->  | G65: =H_pref_X('Male Population'!M65,'Male Population'!C65,'Male Posturing'!C65,'Male Posturing'!D65) ->  | H65: =H_pref_Z('Male Population'!M65,'Male Population'!C65,'Male Posturing'!D65) ->  | I65: =H_adjust_X('Input & Output'!C$20,'Input & Output'!C$21,'Male Posturing'!G65) ->  | J65: =H_adjust_Z('Input & Output'!C$22,'Input & Output'!C$23,'Male Posturing'!H65) ->  | K65: =Hip_X('Male Population'!C65,'Male Posturing'!I65) ->  | L65: =Hip_Z('Male Population'!C65,'Male Population'!B65,'Male Posturing'!J65) ->  | M65: =Eye_X('Male Population'!B65,'Male Population'!C65,'Male Population'!L65,'Male Posturing'!K65,'Male Posturing'!L65) ->  | N65: =Eye_Z('Male Population'!B65,'Male Population'!C65,'Male Population'!L65,'Male Posturing'!K65,'Male Posturing'!L65) ->  | O65: =Shoulder_X('Male Population'!B65,'Male Population'!C65,'Male Population'!L65,'Male Posturing'!K65,'Male Posturing'!L65) ->  | P65: =Shoulder_Z('Male Population'!B65,'Male Population'!C65,'Male Population'!L65,'Male Posturing'!K65,'Male Posturing'!L65) ->  | Q65: =Elbow_X('Male Population'!H65,'Male Population'!K65,'Male Posturing'!E65,'Male Posturing'!F65,'Male Posturing'!O65,'Male Posturing'!P65) ->  | R65: =Elbow_Z('Male Population'!H65,'Male Population'!K65,'Male Posturing'!E65,'Male Posturing'!F65,'Male Posturing'!O65,'Male Posturing'!P65) ->  | S65: =Elbow_Angle('Male Population'!H65,'Male Population'!K65,'Male Posturing'!E65,'Male Posturing'!F65,'Male Posturing'!O65,'Male Posturing'!P65) ->  | T65: =Knee_X('Male Population'!F65,'Male Population'!G65,'Male Posturing'!K65,'Male Posturing'!L65) ->  | U65: =Knee_Z('Male Population'!F65,'Male Population'!G65,'Male Posturing'!K65,'Male Posturing'!L65) ->  | V65: =Knee_Angle('Male Population'!F65,'Male Population'!G65,'Male Posturing'!K65,'Male Posturing'!L65) -> 
A66: =SW_pref_X('Input & Output'!C$24,'Input & Output'!C$25,'Input & Output'!C$29,'Input & Output'!C$30,'Male Population'!A66,'Male Population'!D66,'Male Population'!E66) ->  | B66: =SW_pref_Z('Input & Output'!C$24,'Input & Output'!C$25,'Input & Output'!C$29,'Input & Output'!C$30,'Male Population'!A66,'Male Population'!D66,'Male Population'!E66) ->  | C66: =SW_adjust_X('Input & Output'!C$24,'Input & Output'!C$25,'Input & Output'!C$27,'Input & Output'!C$28,'Input & Output'!C$29,'Input & Output'!C$30,'Male Posturing'!A66,'Male Posturing'!B66) ->  | D66: =SW_adjust_Z('Input & Output'!C$24,'Input & Output'!C$25,'Input & Output'!C$27,'Input & Output'!C$28,'Input & Output'!C$29,'Input & Output'!C$30,'Male Posturing'!A66,'Male Posturing'!B66) ->  | F66: =Grip_Z('Input & Output'!C$26,'Input & Output'!C$29,'Input & Output'!C$30,'Male Population'!D66,'Male Posturing'!D66) ->  | G66: =H_pref_X('Male Population'!M66,'Male Population'!C66,'Male Posturing'!C66,'Male Posturing'!D66) ->  | H66: =H_pref_Z('Male Population'!M66,'Male Population'!C66,'Male Posturing'!D66) ->  | I66: =H_adjust_X('Input & Output'!C$20,'Input & Output'!C$21,'Male Posturing'!G66) ->  | J66: =H_adjust_Z('Input & Output'!C$22,'Input & Output'!C$23,'Male Posturing'!H66) ->  | K66: =Hip_X('Male Population'!C66,'Male Posturing'!I66) ->  | L66: =Hip_Z('Male Population'!C66,'Male Population'!B66,'Male Posturing'!J66) ->  | M66: =Eye_X('Male Population'!B66,'Male Population'!C66,'Male Population'!L66,'Male Posturing'!K66,'Male Posturing'!L66) ->  | N66: =Eye_Z('Male Population'!B66,'Male Population'!C66,'Male Population'!L66,'Male Posturing'!K66,'Male Posturing'!L66) ->  | O66: =Shoulder_X('Male Population'!B66,'Male Population'!C66,'Male Population'!L66,'Male Posturing'!K66,'Male Posturing'!L66) ->  | P66: =Shoulder_Z('Male Population'!B66,'Male Population'!C66,'Male Population'!L66,'Male Posturing'!K66,'Male Posturing'!L66) ->  | Q66: =Elbow_X('Male Population'!H66,'Male Population'!K66,'Male Posturing'!E66,'Male Posturing'!F66,'Male Posturing'!O66,'Male Posturing'!P66) ->  | R66: =Elbow_Z('Male Population'!H66,'Male Population'!K66,'Male Posturing'!E66,'Male Posturing'!F66,'Male Posturing'!O66,'Male Posturing'!P66) ->  | S66: =Elbow_Angle('Male Population'!H66,'Male Population'!K66,'Male Posturing'!E66,'Male Posturing'!F66,'Male Posturing'!O66,'Male Posturing'!P66) ->  | T66: =Knee_X('Male Population'!F66,'Male Population'!G66,'Male Posturing'!K66,'Male Posturing'!L66) ->  | U66: =Knee_Z('Male Population'!F66,'Male Population'!G66,'Male Posturing'!K66,'Male Posturing'!L66) ->  | V66: =Knee_Angle('Male Population'!F66,'Male Population'!G66,'Male Posturing'!K66,'Male Posturing'!L66) -> 
A67: =SW_pref_X('Input & Output'!C$24,'Input & Output'!C$25,'Input & Output'!C$29,'Input & Output'!C$30,'Male Population'!A67,'Male Population'!D67,'Male Population'!E67) ->  | B67: =SW_pref_Z('Input & Output'!C$24,'Input & Output'!C$25,'Input & Output'!C$29,'Input & Output'!C$30,'Male Population'!A67,'Male Population'!D67,'Male Population'!E67) ->  | C67: =SW_adjust_X('Input & Output'!C$24,'Input & Output'!C$25,'Input & Output'!C$27,'Input & Output'!C$28,'Input & Output'!C$29,'Input & Output'!C$30,'Male Posturing'!A67,'Male Posturing'!B67) ->  | D67: =SW_adjust_Z('Input & Output'!C$24,'Input & Output'!C$25,'Input & Output'!C$27,'Input & Output'!C$28,'Input & Output'!C$29,'Input & Output'!C$30,'Male Posturing'!A67,'Male Posturing'!B67) ->  | E67: =Grip_X(C67) ->  | F67: =Grip_Z('Input & Output'!C$26,'Input & Output'!C$29,'Input & Output'!C$30,'Male Population'!D67,'Male Posturing'!D67) ->  | G67: =H_pref_X('Male Population'!M67,'Male Population'!C67,'Male Posturing'!C67,'Male Posturing'!D67) ->  | H67: =H_pref_Z('Male Population'!M67,'Male Population'!C67,'Male Posturing'!D67) ->  | I67: =H_adjust_X('Input & Output'!C$20,'Input & Output'!C$21,'Male Posturing'!G67) ->  | J67: =H_adjust_Z('Input & Output'!C$22,'Input & Output'!C$23,'Male Posturing'!H67) ->  | K67: =Hip_X('Male Population'!C67,'Male Posturing'!I67) ->  | L67: =Hip_Z('Male Population'!C67,'Male Population'!B67,'Male Posturing'!J67) ->  | M67: =Eye_X('Male Population'!B67,'Male Population'!C67,'Male Population'!L67,'Male Posturing'!K67,'Male Posturing'!L67) ->  | N67: =Eye_Z('Male Population'!B67,'Male Population'!C67,'Male Population'!L67,'Male Posturing'!K67,'Male Posturing'!L67) ->  | O67: =Shoulder_X('Male Population'!B67,'Male Population'!C67,'Male Population'!L67,'Male Posturing'!K67,'Male Posturing'!L67) ->  | P67: =Shoulder_Z('Male Population'!B67,'Male Population'!C67,'Male Population'!L67,'Male Posturing'!K67,'Male Posturing'!L67) ->  | Q67: =Elbow_X('Male Population'!H67,'Male Population'!K67,'Male Posturing'!E67,'Male Posturing'!F67,'Male Posturing'!O67,'Male Posturing'!P67) ->  | R67: =Elbow_Z('Male Population'!H67,'Male Population'!K67,'Male Posturing'!E67,'Male Posturing'!F67,'Male Posturing'!O67,'Male Posturing'!P67) ->  | S67: =Elbow_Angle('Male Population'!H67,'Male Population'!K67,'Male Posturing'!E67,'Male Posturing'!F67,'Male Posturing'!O67,'Male Posturing'!P67) ->  | T67: =Knee_X('Male Population'!F67,'Male Population'!G67,'Male Posturing'!K67,'Male Posturing'!L67) ->  | U67: =Knee_Z('Male Population'!F67,'Male Population'!G67,'Male Posturing'!K67,'Male Posturing'!L67) ->  | V67: =Knee_Angle('Male Population'!F67,'Male Population'!G67,'Male Posturing'!K67,'Male Posturing'!L67) ->  | W67: =ArmAngle(O67,P67,Q67,R67) -> 
A68: =SW_pref_X('Input & Output'!C$24,'Input & Output'!C$25,'Input & Output'!C$29,'Input & Output'!C$30,'Male Population'!A68,'Male Population'!D68,'Male Population'!E68) ->  | B68: =SW_pref_Z('Input & Output'!C$24,'Input & Output'!C$25,'Input & Output'!C$29,'Input & Output'!C$30,'Male Population'!A68,'Male Population'!D68,'Male Population'!E68) ->  | C68: =SW_adjust_X('Input & Output'!C$24,'Input & Output'!C$25,'Input & Output'!C$27,'Input & Output'!C$28,'Input & Output'!C$29,'Input & Output'!C$30,'Male Posturing'!A68,'Male Posturing'!B68) ->  | D68: =SW_adjust_Z('Input & Output'!C$24,'Input & Output'!C$25,'Input & Output'!C$27,'Input & Output'!C$28,'Input & Output'!C$29,'Input & Output'!C$30,'Male Posturing'!A68,'Male Posturing'!B68) ->  | F68: =Grip_Z('Input & Output'!C$26,'Input & Output'!C$29,'Input & Output'!C$30,'Male Population'!D68,'Male Posturing'!D68) ->  | G68: =H_pref_X('Male Population'!M68,'Male Population'!C68,'Male Posturing'!C68,'Male Posturing'!D68) ->  | H68: =H_pref_Z('Male Population'!M68,'Male Population'!C68,'Male Posturing'!D68) ->  | I68: =H_adjust_X('Input & Output'!C$20,'Input & Output'!C$21,'Male Posturing'!G68) ->  | J68: =H_adjust_Z('Input & Output'!C$22,'Input & Output'!C$23,'Male Posturing'!H68) ->  | K68: =Hip_X('Male Population'!C68,'Male Posturing'!I68) ->  | L68: =Hip_Z('Male Population'!C68,'Male Population'!B68,'Male Posturing'!J68) ->  | M68: =Eye_X('Male Population'!B68,'Male Population'!C68,'Male Population'!L68,'Male Posturing'!K68,'Male Posturing'!L68) ->  | N68: =Eye_Z('Male Population'!B68,'Male Population'!C68,'Male Population'!L68,'Male Posturing'!K68,'Male Posturing'!L68) ->  | O68: =Shoulder_X('Male Population'!B68,'Male Population'!C68,'Male Population'!L68,'Male Posturing'!K68,'Male Posturing'!L68) ->  | P68: =Shoulder_Z('Male Population'!B68,'Male Population'!C68,'Male Population'!L68,'Male Posturing'!K68,'Male Posturing'!L68) ->  | Q68: =Elbow_X('Male Population'!H68,'Male Population'!K68,'Male Posturing'!E68,'Male Posturing'!F68,'Male Posturing'!O68,'Male Posturing'!P68) ->  | R68: =Elbow_Z('Male Population'!H68,'Male Population'!K68,'Male Posturing'!E68,'Male Posturing'!F68,'Male Posturing'!O68,'Male Posturing'!P68) ->  | S68: =Elbow_Angle('Male Population'!H68,'Male Population'!K68,'Male Posturing'!E68,'Male Posturing'!F68,'Male Posturing'!O68,'Male Posturing'!P68) ->  | T68: =Knee_X('Male Population'!F68,'Male Population'!G68,'Male Posturing'!K68,'Male Posturing'!L68) ->  | U68: =Knee_Z('Male Population'!F68,'Male Population'!G68,'Male Posturing'!K68,'Male Posturing'!L68) ->  | V68: =Knee_Angle('Male Population'!F68,'Male Population'!G68,'Male Posturing'!K68,'Male Posturing'!L68) -> 
A69: =SW_pref_X('Input & Output'!C$24,'Input & Output'!C$25,'Input & Output'!C$29,'Input & Output'!C$30,'Male Population'!A69,'Male Population'!D69,'Male Population'!E69) ->  | B69: =SW_pref_Z('Input & Output'!C$24,'Input & Output'!C$25,'Input & Output'!C$29,'Input & Output'!C$30,'Male Population'!A69,'Male Population'!D69,'Male Population'!E69) ->  | C69: =SW_adjust_X('Input & Output'!C$24,'Input & Output'!C$25,'Input & Output'!C$27,'Input & Output'!C$28,'Input & Output'!C$29,'Input & Output'!C$30,'Male Posturing'!A69,'Male Posturing'!B69) ->  | D69: =SW_adjust_Z('Input & Output'!C$24,'Input & Output'!C$25,'Input & Output'!C$27,'Input & Output'!C$28,'Input & Output'!C$29,'Input & Output'!C$30,'Male Posturing'!A69,'Male Posturing'!B69) ->  | F69: =Grip_Z('Input & Output'!C$26,'Input & Output'!C$29,'Input & Output'!C$30,'Male Population'!D69,'Male Posturing'!D69) ->  | G69: =H_pref_X('Male Population'!M69,'Male Population'!C69,'Male Posturing'!C69,'Male Posturing'!D69) ->  | H69: =H_pref_Z('Male Population'!M69,'Male Population'!C69,'Male Posturing'!D69) ->  | I69: =H_adjust_X('Input & Output'!C$20,'Input & Output'!C$21,'Male Posturing'!G69) ->  | J69: =H_adjust_Z('Input & Output'!C$22,'Input & Output'!C$23,'Male Posturing'!H69) ->  | K69: =Hip_X('Male Population'!C69,'Male Posturing'!I69) ->  | L69: =Hip_Z('Male Population'!C69,'Male Population'!B69,'Male Posturing'!J69) ->  | M69: =Eye_X('Male Population'!B69,'Male Population'!C69,'Male Population'!L69,'Male Posturing'!K69,'Male Posturing'!L69) ->  | N69: =Eye_Z('Male Population'!B69,'Male Population'!C69,'Male Population'!L69,'Male Posturing'!K69,'Male Posturing'!L69) ->  | O69: =Shoulder_X('Male Population'!B69,'Male Population'!C69,'Male Population'!L69,'Male Posturing'!K69,'Male Posturing'!L69) ->  | P69: =Shoulder_Z('Male Population'!B69,'Male Population'!C69,'Male Population'!L69,'Male Posturing'!K69,'Male Posturing'!L69) ->  | Q69: =Elbow_X('Male Population'!H69,'Male Population'!K69,'Male Posturing'!E69,'Male Posturing'!F69,'Male Posturing'!O69,'Male Posturing'!P69) ->  | R69: =Elbow_Z('Male Population'!H69,'Male Population'!K69,'Male Posturing'!E69,'Male Posturing'!F69,'Male Posturing'!O69,'Male Posturing'!P69) ->  | S69: =Elbow_Angle('Male Population'!H69,'Male Population'!K69,'Male Posturing'!E69,'Male Posturing'!F69,'Male Posturing'!O69,'Male Posturing'!P69) ->  | T69: =Knee_X('Male Population'!F69,'Male Population'!G69,'Male Posturing'!K69,'Male Posturing'!L69) ->  | U69: =Knee_Z('Male Population'!F69,'Male Population'!G69,'Male Posturing'!K69,'Male Posturing'!L69) ->  | V69: =Knee_Angle('Male Population'!F69,'Male Population'!G69,'Male Posturing'!K69,'Male Posturing'!L69) -> 
A70: =SW_pref_X('Input & Output'!C$24,'Input & Output'!C$25,'Input & Output'!C$29,'Input & Output'!C$30,'Male Population'!A70,'Male Population'!D70,'Male Population'!E70) ->  | B70: =SW_pref_Z('Input & Output'!C$24,'Input & Output'!C$25,'Input & Output'!C$29,'Input & Output'!C$30,'Male Population'!A70,'Male Population'!D70,'Male Population'!E70) ->  | C70: =SW_adjust_X('Input & Output'!C$24,'Input & Output'!C$25,'Input & Output'!C$27,'Input & Output'!C$28,'Input & Output'!C$29,'Input & Output'!C$30,'Male Posturing'!A70,'Male Posturing'!B70) ->  | D70: =SW_adjust_Z('Input & Output'!C$24,'Input & Output'!C$25,'Input & Output'!C$27,'Input & Output'!C$28,'Input & Output'!C$29,'Input & Output'!C$30,'Male Posturing'!A70,'Male Posturing'!B70) ->  | F70: =Grip_Z('Input & Output'!C$26,'Input & Output'!C$29,'Input & Output'!C$30,'Male Population'!D70,'Male Posturing'!D70) ->  | G70: =H_pref_X('Male Population'!M70,'Male Population'!C70,'Male Posturing'!C70,'Male Posturing'!D70) ->  | H70: =H_pref_Z('Male Population'!M70,'Male Population'!C70,'Male Posturing'!D70) ->  | I70: =H_adjust_X('Input & Output'!C$20,'Input & Output'!C$21,'Male Posturing'!G70) ->  | J70: =H_adjust_Z('Input & Output'!C$22,'Input & Output'!C$23,'Male Posturing'!H70) ->  | K70: =Hip_X('Male Population'!C70,'Male Posturing'!I70) ->  | L70: =Hip_Z('Male Population'!C70,'Male Population'!B70,'Male Posturing'!J70) ->  | M70: =Eye_X('Male Population'!B70,'Male Population'!C70,'Male Population'!L70,'Male Posturing'!K70,'Male Posturing'!L70) ->  | N70: =Eye_Z('Male Population'!B70,'Male Population'!C70,'Male Population'!L70,'Male Posturing'!K70,'Male Posturing'!L70) ->  | O70: =Shoulder_X('Male Population'!B70,'Male Population'!C70,'Male Population'!L70,'Male Posturing'!K70,'Male Posturing'!L70) ->  | P70: =Shoulder_Z('Male Population'!B70,'Male Population'!C70,'Male Population'!L70,'Male Posturing'!K70,'Male Posturing'!L70) ->  | Q70: =Elbow_X('Male Population'!H70,'Male Population'!K70,'Male Posturing'!E70,'Male Posturing'!F70,'Male Posturing'!O70,'Male Posturing'!P70) ->  | R70: =Elbow_Z('Male Population'!H70,'Male Population'!K70,'Male Posturing'!E70,'Male Posturing'!F70,'Male Posturing'!O70,'Male Posturing'!P70) ->  | S70: =Elbow_Angle('Male Population'!H70,'Male Population'!K70,'Male Posturing'!E70,'Male Posturing'!F70,'Male Posturing'!O70,'Male Posturing'!P70) ->  | T70: =Knee_X('Male Population'!F70,'Male Population'!G70,'Male Posturing'!K70,'Male Posturing'!L70) ->  | U70: =Knee_Z('Male Population'!F70,'Male Population'!G70,'Male Posturing'!K70,'Male Posturing'!L70) ->  | V70: =Knee_Angle('Male Population'!F70,'Male Population'!G70,'Male Posturing'!K70,'Male Posturing'!L70) -> 
